Workbook

Sheet Instructions (hidden)
B2: Purpose of This File | C2: OHA Public Health Division provides grant funding to organizations for work related to M110 • To report expenses for funding received, you must complete 'Budget Cat. &Service Area' • Once the workbook has been completed, certify the report by signing 'Authorized Agent Signature' (Cell B10 in Certification Tab).
B4: Tab | C4: Instruction | D4: Tab Completion Checklist
B5: Instructions | C5: This expenditure report is submitted quarterly, and documents cumulative expenses incurred for the 2022 M110 contract. Expenditure reports should be submitted to OHA one month after the quarter end date. i.e. Expenditure reports for January 1st, 2022 - March 31st, 2022 are due to OHA by April 30th, 2022. | D5: • Please fill in applicable cells highlighted in blue
B6: 1. Budget Cat. &Service Area | C6: Please complete the following: • Your BHRN name in Cell D6. • Your organization's name in Cell D7. • Your Grant agreement number in Cell D8 • The quarter end date in Cell D9. Section A: M110 EXPENDITURES BY BUDGET CATEGORY • Allocate your Personnel (Salaries) and Fringe Benefits costs in the appropriate quarter (Row 13). • Allocate Program Staff Training Costs in the appropriate quarter (Row 14). • Allocate Services and Supplies Costs in the appropriate quarter (Row 15). • Allocate Capital Equipment in the appropriate quarter (Row 16). Section B: M110 EXPENDITURES BY SERVICE AREA • Allocate Section A expenditures to the appropriate category: • Screening and Comp Behavioral Health Needs • Individual Intervention Planning • Low Barrier Substance Use Treatment • Peer Support, Mentoring, etc. • Housing Services • Harm Reduction Intervention • Supported Employment Note: If the file has red indicators, then Section A is not balanced with Section B. | D6: 1. Verify that you have entered in your BHRN name (Cell D6). 2. Verify that Section A Total Expenditures (Cell H17) balances with your Section B Total Expenditures (Cell E28). 3. Verify that all cells highlighted in blue have been filled in (if applicable). 4. Verify that all previous quarters expenses prior quarterly expenditure data are included, this report is cumulative and will capture all expenditures incurred since the start of the contract.
B7: 2. Narrative | C7: Please complete the following: • Narrative Explanation of funding (Cell C3:C14) this a broad description of what the funds are being spent on. Please include any information that will show impact of dollars spent. This could include any outputs or outcomes, any stories of impact, or general numbers of clients served in each area.
B8: 3. Certification | C8: Please complete the following: • Check box to confirm that all funding is from M110 • Check box to attest that data and narratives are accurate • Complete prepared by and authorized agent signature boxes
B9: 4. Data Entry Import | C9: This tab will auto populate after tabs 1 and 2 are completed, it is used to check for completeness.

Sheet Budget Report
D2: OREGON HEALTH AUTHORITY | F2: Legend
D3: Health Services Division (HSD) | F3: Blue cells - require input
D4: Behavioral Health Measure 110 - Budget Report Template | F4: Gray cells - auto populate
C6: BHRN Name: | D6: Yamhill_County
C7: Organization Name:
C8: Grant Agreement #: | D8: =IFERROR(INDEX('Data Validation'!J:J,MATCH('Data Validation'!D1,'Data Validation'!E:E,0)),"") -> 
C9: Contract Not-to-Exceed Amount: | D9: =IFERROR(INDEX('Data Validation'!$AY:$AY,MATCH('Data Validation'!$D$1,'Data Validation'!$E:$E,0)),0) -> 0
C11: Does Original Budget Require Revision?
B14: M110 ORIGINAL BUDGET BY BUDGET CATEGORY
B15: A | C15: Budget Category | D15: Original Budget Allocation | E15: Original Budget Amount ($)
B16: 1. | C16: Personnel Costs | D16: =IFERROR(INDEX('Data Validation'!BR:BR,MATCH('Data Validation'!$D$1,'Data Validation'!E:E,0)),"") ->  | E16: =IFERROR(D16*$D$9,"") -> 
B17: 2. | C17: Program Staff Training Costs | D17: =IFERROR(INDEX('Data Validation'!BS:BS,MATCH('Data Validation'!$D$1,'Data Validation'!E:E,0)),"") ->  | E17: =IFERROR(D17*$D$9,"") -> 
B18: 3. | C18: Services and Supplies Costs | D18: =IFERROR(INDEX('Data Validation'!BT:BT,MATCH('Data Validation'!$D$1,'Data Validation'!E:E,0)),"") ->  | E18: =IFERROR(D18*$D$9,"") -> 
B19: 4. | C19: Capital Outlay Costs | D19: =IFERROR(INDEX('Data Validation'!BU:BU,MATCH('Data Validation'!$D$1,'Data Validation'!E:E,0)),"") ->  | E19: =IFERROR(D19*$D$9,"") -> 
B20: 5. | C20: Admin Costs | D20: =IFERROR(INDEX('Data Validation'!BV:BV,MATCH('Data Validation'!$D$1,'Data Validation'!E:E,0)),"") ->  | E20: =IFERROR(D20*$D$9,"") -> 
C21: TOTAL BUDGET | D21: =SUM(D16:D20) -> 0 | E21: =SUM(E16:E20) -> 0
B24: Budget Revisions Using Dollar or Percentage Amount?
B26: M110 BUDGET BY BUDGET CATEGORY USING PERCENTAGE AMOUNT
B27: A | C27: Budget Category | D27: Original Budget Allocation | E27: Revised Budget Allocation (%) | F27: Revised Budget Amount ($) | H27: Step 5: • If you selected "No" in Cell D11, your original allocations will populate • If you selected "Yes" in Cell D11, please enter your revised budget allocations either in percentage or dollar amounts in the blue cells (Row E for percentage amounts, Row F for dollar amounts) Note: If Budget Allocation does not equal 100% or the full Contract Not-to-Exceed amount, the Total Budget row will highlight red.
B28: 1. | C28: Personnel Costs | D28: =IFERROR(INDEX('Data Validation'!BR:BR,MATCH('Data Validation'!$D$1,'Data Validation'!E:E,0)),"") ->  | F28: =IF($D$13="Dollar ($)","",IFERROR($D$9*E28,"")) -> 0
B29: 2. | C29: Program Staff Training Costs | D29: =IFERROR(INDEX('Data Validation'!BS:BS,MATCH('Data Validation'!$D$1,'Data Validation'!E:E,0)),"") ->  | F29: =IF($D$13="Dollar ($)","",IFERROR($D$9*E29,"")) -> 0
B30: 3. | C30: Services and Supplies Costs | D30: =IFERROR(INDEX('Data Validation'!BT:BT,MATCH('Data Validation'!$D$1,'Data Validation'!E:E,0)),"") ->  | F30: =IF($D$13="Dollar ($)","",IFERROR($D$9*E30,"")) -> 0
B31: 4. | C31: Capital Outlay Costs | D31: =IFERROR(INDEX('Data Validation'!BU:BU,MATCH('Data Validation'!$D$1,'Data Validation'!E:E,0)),"") ->  | F31: =IF($D$13="Dollar ($)","",IFERROR($D$9*E31,"")) -> 0
B32: 5. | C32: Admin Costs | D32: =IFERROR(INDEX('Data Validation'!BV:BV,MATCH('Data Validation'!$D$1,'Data Validation'!E:E,0)),"") ->  | F32: num
C33: TOTAL BUDGET | D33: =SUM(D28:D32) -> 0 | E33: =SUM(E28:E32) -> 0 | F33: =SUM(F28:F32) -> 0
B37: M110 BUDGET BY BUDGET CATEGORY USING DOLLAR AMOUNT
B38: A | C38: Budget Category | D38: Original Budget Allocation | E38: Revised Budget Allocation (%) | F38: Revised Budget Amount ($) | H38: Step 5: • If you selected "No" in Cell D11, your original allocations will populate • If you selected "Yes" in Cell D11, please enter your revised budget allocations either in percentage or dollar amounts in the blue cells (Row E for percentage amounts, Row F for dollar amounts) Note: If Budget Allocation does not equal 100% or the full Contract Not-to-Exceed amount, the Total Budget row will highlight red.
B39: 1. | C39: Personnel Costs | D39: =IFERROR(INDEX('Data Validation'!BR:BR,MATCH('Data Validation'!$D$1,'Data Validation'!E:E,0)),"") ->  | E39: =IFERROR(IF($D$11="No",D39,IF($D$24="Percentage Amount","",F39/$D$9)),"") ->  | F39: 98000
B40: 2. | C40: Program Staff Training Costs | D40: =IFERROR(INDEX('Data Validation'!BS:BS,MATCH('Data Validation'!$D$1,'Data Validation'!E:E,0)),"") ->  | E40: =IFERROR(IF($D$11="No",D40,IF($D$24="Percentage Amount","",F40/$D$9)),"") ->  | F40: 7000
B41: 3. | C41: Services and Supplies Costs | D41: =IFERROR(INDEX('Data Validation'!BT:BT,MATCH('Data Validation'!$D$1,'Data Validation'!E:E,0)),"") ->  | E41: =IFERROR(IF($D$11="No",D41,IF($D$24="Percentage Amount","",F41/$D$9)),"") ->  | F41: 25000
B42: 4. | C42: Capital Outlay Costs | D42: =IFERROR(INDEX('Data Validation'!BU:BU,MATCH('Data Validation'!$D$1,'Data Validation'!E:E,0)),"") ->  | E42: =IFERROR(IF($D$11="No",D42,IF($D$24="Percentage Amount","",F42/$D$9)),"") ->  | F42: 10000
B43: 5. | C43: Admin Costs | D43: =IFERROR(INDEX('Data Validation'!BV:BV,MATCH('Data Validation'!$D$1,'Data Validation'!E:E,0)),"") ->  | E43: =IFERROR(IF($D$11="No",D43,IF($D$24="Percentage Amount","",F43/$D$9)),"") ->  | F43: 14000
C44: TOTAL BUDGET | D44: =SUM(D39:D43) -> 0 | E44: =SUM(E39:E43) -> 0 | F44: =SUM(F39:F43) -> 154000

Sheet Narrative (hidden)
B2: Budget Category | C2: Narrative Explanation of Spending | E2: Legend
B3: Personnel Costs | E3: Blue cells - require input
B4: Program Staff Training Costs | E4: Gray cells - auto populate
B5: Services and Supplies Costs
B6: Capital Outlay Costs
B7: Service Area | C7: Narrative Explanation of Spending
B8: Screening and Comp Behavioral Health Needs
B9: Individual Intervention Planning
B10: Low Barrier Substance Use Treatment
B11: Peer Support, Mentoring, etc.
B12: Housing Services
B13: Harm Reduction Intervention
B14: Supported Employment

Sheet Data Validation (hidden)
D1: =_xlfn.CONCAT(D2,'Budget Report'!D7) -> Yamhill County
D2: =INDEX(C:C,MATCH('Budget Report'!D6,'Data Validation'!B:B,0)) -> Yamhill County | E2: ID | F2: County | G2: County ID | H2: BHRN Name | I2: BHRN ID | J2: Grant Number | K2: Grantee Name | L2: Legal Name | M2: Grant ID | N2: SOS Check Complete | O2: SOS Expiration Date | P2: SOS Expired | Q2: Access to Care Grantee | R2: Access to Care Grant Agreement Number | S2: Access to Care End Date | T2: Insurance Confirmation | U2: License Expiration Date | V2: Workers' Comp & Employers' Liability (both >$500k) | W2: Commercial General Liability occur>$1m; annual>$2m | X2: Professional Liability occur>$1m; annual>$2m | Y2: COI Saved to Teams | Z2: COI Notes | AA2: Grant Agreement Number | AB2: Grant Agreement # w/ Amendment | AC2: Grant Agreement Execution Date | AD2: Date of Last BHRN Grant Agreement Execution | AE2: MOU Due Date | AF2: MOU Received Date (From BHRN Grantee) | AG2: MOU Execution Date | AH2: MOU Submission Date | AI2: MOU Saved to Teams? | AJ2: MOU Email Saved to Teams | AK2: MOU Days Outstanding | AL2: Policies and Procedures Submitted | AM2: C&L Specific Svcs Submission | AN2: C&L Responsive Svcs Submission | AO2: APIDD Submission Date | AP2: APPD Submission Date | AQ2: GARC Submission Date | AR2: LGBTQIA2S+ AIS Submission Date | AS2: YFIS Submission Date | AT2: PC&N Svcs Submission Date | AU2: TIE & C Submission Date | AV2: SPYC Submission Date | AW2: MOU Payment Due Date | AX2: Amount Approved | AY2: Grant Agreement NTE Amount | AZ2: Approved vs. Signed Amount Variance | BA2: MOU Milestone Payment Amount | BB2: Quarterly Payment Amount | BC2: Quarterly Payments | BD2: Total Amount to be Paid | BE2: Total to be Paid vs. Grant Agreement NTE | BF2: Ready for MOU Payment | BG2: Payment w/o MOU | BH2: Amount Paid to Date | BI2: Payment Variance | BJ2: Personnel Costs | BK2: Program Staff Training Costs | BL2: Services and Supplies Costs | BM2: Capital Outlay Costs | BN2: Admin Costs | BO2: Calculated Total Costs | BP2: Budget Table vs. Grant Agreement Variance | BQ2: Budget Table Notes | BR2: Personnel Costs | BS2: Program Staff Training Costs | BT2: Services and Supplies Costs | BU2: Capital Outlay Costs | BV2: Admin Costs | BW2: Calculated Total Costs | BY2: Example | BZ2: Baker | CA2: Benton | CB2: Clackamas | CC2: Clatsop | CD2: Columbia | CE2: Columbia_County | CF2: Coos | CG2: Crook | CH2: Curry | CI2: Deschutes | CJ2: Douglas | CK2: Gilliam | CL2: Grant | CM2: Harney | CN2: Hood_River_County | CO2: Jackson_County | CP2: Jefferson | CQ2: Josephine | CR2: Klamath | CS2: Klamath_Child_and_Family_Treatment_Center | CT2: Lake | CU2: Lane_BHRN_#1 | CV2: Lane_BHRN_2 | CW2: Lane_BHRN_3 | CX2: Lincoln_County_BHRN_1 | CY2: Lincoln_County_BHRN_2 | CZ2: Linn | DA2: Malheur | DB2: Marion | DC2: Morrow | DD2: East_Multnomah_BHRN_Providers | DE2: Indigeninity_BHRN_Providers | DF2: Latino_a_x_Multnomah_County_BHRN | DG2: No_Wrong_Door_BHRN_Providers | DH2: Polk | DI2: Sherman | DJ2: Tillamook | DK2: Tribal | DL2: Umatilla | DM2: Union | DN2: Wallowa | DO2: Wasco | DP2: Washington | DQ2: Wheeler | DR2: Brightside | DS2: Yamhill_County
E3: =_xlfn.CONCAT(H3,K3) -> ExampleGood Example | H3: Example | J3: 123456 | K3: Good Example | AX3: =AY3 -> 154000 | AY3: =BO3 -> 154000 | BA3: =AY3*0.4 -> 61600 | BJ3: 100000 | BK3: 5000 | BL3: 25000 | BM3: 10000 | BN3: =140000*0.1 -> 14000 | BO3: =SUM(BJ3:BN3) -> 154000 | BR3: =IFERROR(BJ3/$BO3,"") -> 0.6493506494 | BS3: =IFERROR(BK3/$BO3,"") -> 0.03246753247 | BT3: =IFERROR(BL3/$BO3,"") -> 0.1623376623 | BU3: =IFERROR(BM3/$BO3,"") -> 0.06493506494 | BV3: =IFERROR(BN3/$BO3,"") -> 0.09090909091 | BY3: Good Example | BZ3: New Directions NW | CA3: Benton County Health Department | CB3: Bridges to Change | CC3: Clatsop Behavioral Healthcare | CD3: Boulder Care, Inc. | CE3: Boulder Care, Inc. | CF3: Adapt | CG3: BestCare Treatment Services, Inc. | CH3: Adapt | CI3: BestCare Treatment Services, Inc. | CJ3: Adapt | CK3: Boulder Care, Inc. | CL3: Boulder Care, Inc. | CM3: Symmetry Care, Inc. | CN3: Columbia Gorge Health Council | CO3: Stabbin' Wagon | CP3: BestCare Treatment Services, Inc. | CQ3: BestCare Treatment Services, Inc. | CR3: Max's Mission | CS3: Max's Mission | CT3: North Lake Health Center, Inc. | CU3: Community Outreach Through Radical Empowerment (CORE) | CV3: Addiction Counseling and Education Services (Emergence) | CW3: Centro Latino Americano | CX3: Coastal Phoenix Rising | CY3: CHANCE | CZ3: Addiction Counseling and Education Services (Emergence) | DA3: Eastern Oregon Center for Independent Living | DB3: Bridgeway | DC3: Community Counseling Solutions | DD3: Bright Transitions | DE3: Alano Club of Portland | DF3: Central City Concern Puentes | DG3: Cascade Aids Project | DH3: Polk County | DI3: Boulder Care, Inc. | DJ3: Adventist Health Tillamook | DK3: Burns Paiute Tribe | DL3: Community Counseling Solutions | DM3: Center for Human Development | DN3: Boulder Care, Inc. | DO3: Bridges to Change | DP3: Bridges to Change | DQ3: Boulder Care, Inc. | DR3: Recovery Works NW | DS3: Alano Club
E4: ExampleBad Example | H4: Example | J4: 123457 | K4: Bad Example | AX4: =AY4 -> 79500 | AY4: =BO4 -> 79500 | BA4: =AY4*0.4 -> 31800 | BJ4: 50000 | BK4: 2500 | BL4: 15000 | BM4: 5000 | BN4: 7000 | BO4: =SUM(BJ4:BN4) -> 79500 | BP4: -0.6800000001 | BR4: =IFERROR(BJ4/$BO4,"") -> 0.6289308176 | BS4: 0.03144654088 | BT4: =IFERROR(BL4/$BO4,"") -> 0.1886792453 | BU4: =IFERROR(BM4/$BO4,"") -> 0.06289308176 | BV4: =IFERROR(BN4/$BO4,"") -> 0.08805031447 | BY4: Bad Example | CA4: CHANCE | CB4: Cascadia Behavioral Healthcare | CC4: Clatsop Community Action | CD4: Columbia Community Mental Health | CE4: Columbia Community Mental Health | CF4: Bay Area First Step Inc. | CG4: Ideal Option | CH4: Brookings Community Resource Response | CI4: Boulder Care, Inc. | CJ4: Boulder Care, Inc. | CK4: Community Counseling Solutions | CL4: Community Counseling Solutions | CN4: Hood River County Health Dept. | CO4: Addiction Recovery Center | CQ4: Adapt | CR4: Red is the Road to Wellness | CS4: Red is the Road to Wellness | CU4: Daisy C.H.A.I.N. | CV4: Center for Family Development | CW4: HIV Alliance | CX4: Faith, Hope and Charity, Inc. (FHC) | CY4: Phoenix Wellness Center LLC | CZ4: Albany Comprehensive Treatment (CRC Health OR) | DA4: Lifeways | DB4: HIV Alliance | DD4: Cascadia Behavioral Healthcare, Inc. | DE4: Bridges to Change | DF4: Fresh-Out Community Based Re-Entry Program | DG4: Cascadia Behavioral Healthcare | DH4: Youth Era | DI4: Mid-Columbia Center for Living | DJ4: CARE | DK4: Coquille Indian Tribe | DL4: Eastern Oregon Alcoholism Foundation | DM4: Eastern Oregon Center for Independent Living | DN4: Wallowa Valley Center for Wellness | DO4: Columbia Gorge Health Council | DP4: CODA, Inc. | DQ4: Community Counseling Solutions | DS4: Encompass Yamhill Valley
B5: Name Manager Name | C5: BHRN Name | E5: BakerNew Directions NW | F5: Baker | G5: 01 | H5: Baker | I5: 01 | J5: 176574 | K5: New Directions NW | L5: New Directions Northwest, Inc. | M5: 084 | N5: TRUE | O5: 2023-05-15 | P5: Valid | Q5: TRUE | R5: 170823 | AA5: 176574 | AB5: 176574-0 | AC5: 2022-06-16 | AD5: 2022-06-16 | AE5: 2022-07-16 | AG5: N/A | AH5: N/A | AI5: No MOU Required | AJ5: No MOU Required | AK5: Complete | AL5: 0 | AW5: 2022-07-16 | AX5: 860829 | AY5: 860829 | AZ5: 0 | BA5: 344331.6 | BB5: 86082.9 | BC5: 6 | BD5: 860829 | BE5: 0 | BF5: Yes | BG5: No | BH5: 344331.6 | BI5: 0 | BJ5: 565207.39 | BK5: 0 | BL5: 190857.13 | BM5: 41000 | BN5: 63765.16 | BO5: 860829.68 | BP5: -0.6800000001 | BR5: 0.6565844593 | BS5: 0 | BT5: 0.221712999 | BU5: 0.04762846932 | BV5: 0.07407407235 | CA5: Corvallis Housing First | CB5: Harmony Academy Recovery | CC5: Clatsop County Public Health | CD5: Iron Tribe Network | CE5: Iron Tribe Network | CF5: Coos Health & Wellness | CG5: Rimrock Trails Treatment Services | CI5: Deschutes County Health Services | CJ5: HIV Alliance | CN5: Mid-Columbia Center for Living | CO5: ColumbiaCare Services | CQ5: Grace Roots | CR5: The Stronghold | CS5: The Stronghold | CU5: Ideal Option | CV5: HIV Alliance | CX5: Community Services Consortium | CY5: Coastal Phoenix Rising | CZ5: CHANCE | DA5: Origins Faith Community Outreach Initiative (OFCOI) | DB5: Ideal Option | DD5: CODA, Inc. | DE5: Fresh-Out Community Based Re-Entry Program | DF5: Juntos LLC | DG5: Lutheran Community Services | DJ5: Rinehart Clinic and Pharmacy | DK5: Cow Creek | DL5: Eastern Oregon Center for Independent Living | DO5: Eastern Oregon Center for Independent Living | DP5: Forest Grove Foundation | DS5: Providence Newberg Medical Center
B6: Example | C6: Example | E6: BentonBenton County Health Department | F6: Benton | G6: 03 | H6: Benton | I6: 02 | J6: 176757 | K6: Benton County Health Department | M6: 008 | AA6: 176757 | AB6: 176757-0 | AC6: 2022-07-28 | AF6: 2022-07-25 | AG6: 2022-07-20 | AH6: 2022-07-25 | AI6: Yes | AJ6: Yes | AK6: Complete | AL6: 0 | AW6: 2022-08-19 | AX6: 313445.28 | AY6: 313445.28 | AZ6: 0 | BA6: 125378.16 | BB6: 31344.52 | BC6: 6 | BD6: 313445.28 | BE6: 0 | BF6: Yes | BG6: No | BH6: 125378.16 | BI6: 0 | BJ6: 183719.25 | BK6: 4766 | BL6: 93485 | BM6: 2980 | BN6: 28495.03 | BO6: 313445.28 | BP6: 0 | BQ6: Services and Supplies total omitting $1,200 cost for Tablets | BR6: 0.5861286219 | BS6: 0.01520520583 | BT6: 0.2982498253 | BU6: 0.009507241583 | BV6: 0.09090910541 | CA6: Family Recovery, Inc. | CB6: LifeStance | CC6: Helping Hands Re-Entry and Outreach | CD6: Medicine Wheel Recovery | CE6: Medicine Wheel Recovery | CF6: HIV Alliance | CI6: Healing Reins Therapeutic Riding Center | CN6: One Community Health | CO6: Community Works | CQ6: Grants Pass Sobering Center | CR6: Klamath Basin Behavioral Health | CS6: Klamath Basin Behavioral Health | CU6: OSLC Developments, Inc. | CV6: Housing Our Veterans | CX6: Confederated Tribes of the Siletz | CY6: Lincoln County HHS Harm Reduction Program | CZ6: Community Services Consortium | DB6: Iron Tribe Network | DD6: Iron Tribe Network | DE6: Going Home II | DF6: New Avenues for Youth | DG6: New Avenues for Youth | DJ6: Tillamook County Community Health | DK6: CT Coos, Lower Umpqua, and Siuslaw | DO6: Give them WINGS | DP6: HIV Alliance | DS6: Provoking Hope
B7: Baker | C7: Baker | E7: BentonCHANCE | F7: Benton | G7: 03 | H7: Benton | I7: 02 | J7: 176761 | K7: CHANCE | L7: CHANCE LLC | M7: 022 | N7: TRUE | O7: 2022-11-15 | P7: Valid | V7: 2023-07-01 | W7: 2023-07-01 | X7: 2023-07-01 | Y7: Yes | AA7: 176761 | AB7: 176761-0 | AC7: 2022-06-29 | AF7: 2022-07-25 | AG7: 2022-07-21 | AH7: 2022-07-25 | AI7: Yes | AJ7: Yes | AK7: Complete | AL7: 0 | AW7: 2022-08-20 | AX7: 1058507.45 | AY7: 1058507.45 | AZ7: 0 | BA7: 423403.01 | BB7: 105850.74 | BC7: 6 | BD7: 1058507.45 | BE7: 0 | BF7: Yes | BG7: No | BH7: 423403.01 | BI7: 0 | BJ7: 205200 | BK7: 3839 | BL7: 718784.33 | BM7: 61000 | BN7: 66960 | BO7: 1055783.33 | BP7: 2724.12 | BR7: 0.1943580602 | BS7: 0.003636162734 | BT7: 0.680806667 | BU7: 0.0577770062 | BV7: 0.06342210385 | CA7: Family Tree Relief Nursery | CB7: MetroPlus Association | CC7: Iron Tribe Network | CD7: Youth ERA | CE7: Youth ERA | CF7: Youth ERA | CI7: Ideal Option | CN7: Providence Hood River | CO7: Compass House | CQ7: HIV Alliance | CR7: Lutheran Community Services | CS7: Lutheran Community Services | CU7: South Lane Mental Health Services, Inc. | CV7: Laurel Hill Center | CX7: Lincoln County HHS Harm Reduction Program | CZ7: Faith, Hope and Charity, Inc. (FHC) | DB7: Marion County | DD7: Morrison Child and Family Services | DE7: Just Men In Recovery | DF7: Northwest Family Services | DG7: OHSU, Addiction and Complex Pain | DJ7: Tillamook Family Counseling | DK7: Grand Ronde | DO7: Greater Oregon Behavioral Health | DP7: Ideal Option | DS7: Virginia Garcia Clinic
B8: Benton | C8: Benton | E8: BentonCorvallis Housing First | F8: Benton | G8: 03 | H8: Benton | I8: 02 | J8: 176769 | K8: Corvallis Housing First | L8: Corvallis Housing First | M8: 038 | N8: TRUE | O8: 2023-09-30 | P8: Valid | AA8: 176769 | AB8: 176769-0 | AC8: 2022-07-04 | AF8: 2022-07-25 | AG8: 2022-07-21 | AH8: 2022-07-25 | AI8: Yes | AJ8: Yes | AK8: Complete | AL8: 0 | AW8: 2022-08-20 | AX8: 265923.78 | AY8: 262923.78 | AZ8: 3000 | BA8: 43820.63 | BB8: 43820.63 | BC8: 5 | BD8: 262923.78 | BE8: 0 | BF8: Yes | BG8: No | BH8: 0 | BJ8: 61541 | BK8: 144600 | BL8: 37232.78 | BM8: 25000 | BN8: 0 | BO8: 268373.78 | BP8: -5450 | BR8: 0.2293107769 | BS8: 0.5388007726 | BT8: 0.13873479 | BU8: 0.09315366054 | BV8: 0 | CA8: Pathfinder Club of Oregon | CB8: Morrison Child and Family Services | CC8: Morrison Child and Family Services | CF8: BestCare Treatment Services, Inc. | CI8: Rimrock Trails Treatment Services | CO8: Family Nurturing Center | CQ8: Max's Mission | CR8: Transformations | CS8: Transformations | CU8: Youth ERA | CV8: Looking Glass Community Services | CX8: Samaritan Treatment & Recovery | CZ8: Family Tree Relief Nursery | DB8: Pathfinder Club of Oregon | DD8: New Avenues for Youth | DE8: Addiction Counselor Certification Board of Oregon (MHACBO) | DF8: Northwest Instituto Latino De Adicciones | DG8: OHSU, Partnership Project | DJ8: Tillamook Serenity Club | DK8: Klamath Tribes | DO8: Mid-Columbia Center for Living | DP8: LifeWorks NW | DS8: Yamhill Community Action Partnership
B9: Clackamas | C9: Clackamas | E9: BentonFamily Recovery, Inc. | F9: Benton | G9: 03 | H9: Benton | I9: 02 | J9: 176756 | K9: Family Recovery, Inc. | L9: Family Recovery, Inc. | M9: 046 | N9: TRUE | O9: 2022-10-06 | P9: Valid | AA9: 176756 | AB9: 176756-0 | AC9: 2022-06-29 | AF9: 2022-07-25 | AG9: 2022-07-22 | AH9: 2022-07-25 | AI9: Yes | AJ9: Yes | AK9: Complete | AL9: 0 | AW9: 2022-08-21 | AX9: 912642 | AY9: 912642 | AZ9: 0 | BA9: 365056.8 | BB9: 91264.2 | BC9: 6 | BD9: 912642 | BE9: 0 | BF9: Yes | BG9: No | BH9: 365056.8 | BI9: 0 | BJ9: 557472 | BK9: 10800 | BL9: 323570 | BM9: 20800 | BN9: 0 | BO9: 912642 | BP9: 0 | BR9: 0.6108331635 | BS9: 0.01183377491 | BT9: 0.3545420877 | BU9: 0.0227909739 | BV9: 0 | CB9: New Avenues for Youth | CC9: Providence Seaside Hosp. Foundation | CF9: Rimrock Trails Treatment Services | CI9: Volunteers of America - Oregon | CO9: HIV Alliance | CQ9: OnTrack, Inc. | CV9: Restored Connections Peer Center | CZ9: Samaritan Health Services | DD9: Northwest Family Services | DE9: MetroPlus Association | DF9: SE Works Inc | DG9: Portland Street Medicine | DJ9: Project Quest | DK9: NARA | DO9: Mid-Columbia Medical Center | DP9: Lutheran Community Services | DS9: Yamhill County HHS
B10: Clatsop | C10: Clatsop | E10: BentonFamily Tree Relief Nursery | F10: Benton | G10: 03 | H10: Benton | I10: 02 | J10: 176759 | K10: Family Tree Relief Nursery | L10: Family Tree Relief Nursery | M10: 047 | N10: TRUE | O10: 2023-02-27 | P10: Valid | AA10: 176759 | AB10: 176759-0 | AC10: 2022-06-28 | AF10: 2022-07-25 | AG10: 2022-07-22 | AH10: 2022-07-25 | AI10: Yes | AJ10: Yes | AK10: Complete | AL10: 0 | AW10: 2022-08-21 | AX10: 717510 | AY10: 717510 | AZ10: 0 | BA10: 119585 | BB10: 119585 | BC10: 5 | BD10: 717510 | BE10: 0 | BF10: Yes | BG10: No | BH10: 119585 | BI10: 0 | BJ10: 498926 | BK10: 31500 | BL10: 171084 | BM10: 16000 | BN10: 0 | BO10: 717510 | BP10: 0 | BR10: 0.695357556 | BS10: 0.04390182715 | BT10: 0.2384412761 | BU10: 0.02229934078 | BV10: 0 | CB10: Northwest Family Services | CO10: Jackson County Health & Human Services | CQ10: Options for Southern Oregon | CV10: Shelter Care | DD10: Pathfinders of Oregon | DE10: Oregon Change Clinic | DF10: The 4th Dimension Recovery Center | DG10: Providence Portland Medical Foundation | DK10: NPAIHB | DO10: North Central Public Health District | DP10: MetroPlus Association | DS10: Yamhill Community Action Partnership
B11: Columbia_County | C11: Columbia County | E11: BentonPathfinder Club of Oregon | F11: Benton | G11: 03 | H11: Benton | I11: 02 | J11: 176762 | K11: Pathfinder Club of Oregon | L11: Pathfinders of Oregon | N11: TRUE | O11: 2022-08-05 | P11: Expired | Q11: TRUE | R11: 170794 | V11: 2023-07-01 | W11: 2023-06-01 | X11: 2023-06-01 | Y11: Yes | AA11: 176762 | AB11: 176762-0 | AC11: 2022-06-28 | AF11: 2022-07-25 | AG11: 2022-07-22 | AH11: 2022-07-25 | AI11: Yes | AJ11: Yes | AK11: Complete | AL11: 0 | AW11: 2022-08-21 | AX11: 260458 | AY11: 260458 | AZ11: 0 | BA11: 104183.2 | BB11: 26045.8 | BC11: 6 | BD11: 260458 | BE11: 0 | BF11: Yes | BG11: No | BH11: 0 | BJ11: 160650 | BK11: 9808 | BL11: 90000 | BM11: 0 | BN11: 0 | BO11: 260458 | BP11: 0 | BR11: 0.6167981018 | BS11: 0.03765674312 | BT11: 0.3455451551 | BU11: 0 | BV11: 0 | CB11: Outside In | CO11: La Clinica | CQ11: The Family Nurturing Center | CV11: TransPonder | DD11: Phoenix Rising | DE11: Outside In | DF11: The Pathfinder Network | DG11: SE Works Inc | DK11: Siletz | DO11: One Community Health | DP11: Miracles Club | DS11: Yamhill County HHS
B12: Coos | C12: Coos | E12: ClackamasBridges to Change | F12: Clackamas | G12: 05 | H12: Clackamas | I12: 03 | J12: 177212 | K12: Bridges to Change | L12: Bridges to Change, Inc. | M12: 011 | N12: TRUE | O12: 2023-02-13 | P12: Valid | Q12: TRUE | R12: 170864 | AA12: 177212 | AB12: 177212-0 | AC12: 2022-07-19 | AF12: 2022-06-22 | AG12: 2022-06-15 | AH12: 2022-06-16 | AI12: Yes | AJ12: Yes | AK12: Complete | AL12: 0 | AW12: 2022-07-15 | AY12: 2493469.61 | AZ12: -2493469.61 | BA12: 415578.26 | BB12: 415578.27 | BC12: 5 | BD12: 2493469.61 | BE12: 0 | BF12: Yes | BG12: No | BH12: 415578.26 | BI12: 0 | BJ12: 1297501 | BK12: 5617 | BL12: 169125 | BM12: 627572 | BN12: 393655 | BO12: 2493470 | BP12: -0.3900000001 | BQ12: Manually categorized expenses as budget table does not follow standard format. | BR12: 0.5203595792 | BS12: 0.002252684011 | BT12: 0.06782716455 | BU12: 0.2516862044 | BV12: 0.1578743678 | CB12: Parrott Creek Child & Family Services | CO12: Max's Mission | CV12: Veteran's Legacy | DD12: Raphael House of Portland | DE12: Painted Horse Recovery | DG12: The 4th Dimension Recovery Center | DK12: Umatilla | DO12: Youth Empowerment Shelter | DP12: Morrison Child and Family Services
B13: Crook | C13: Crook | E13: ClackamasCascadia Behavioral Healthcare | F13: Clackamas | G13: 05 | H13: Clackamas | I13: 03 | J13: 177214 | K13: Cascadia Behavioral Healthcare | L13: Cascadia Behavioral Healthcare, Inc. | M13: 017 | N13: TRUE | O13: 2022-11-20 | P13: Valid | Q13: TRUE | R13: 172070 | AA13: 177214 | AB13: 177214-0 | AC13: 2022-07-29 | AF13: 2022-06-20 | AG13: 2022-06-24 | AH13: 2022-06-24 | AI13: Yes | AJ13: Yes | AK13: Complete | AL13: 0 | AW13: 2022-07-24 | AY13: 306607.82 | AZ13: -306607.82 | BA13: 51101.32 | BB13: 51101.3 | BC13: 5 | BD13: 306607.82 | BE13: 0 | BF13: Yes | BG13: No | BH13: 51101.32 | BI13: 0 | BJ13: 251714.87 | BK13: 1000 | BL13: 12353.14 | BM13: 0 | BN13: 42539.81 | BO13: 307607.82 | BP13: -1000 | BQ13: Training costs equal variance | BR13: 0.8182980199 | BS13: 0.003250892646 | BT13: 0.04015873199 | BU13: 0 | BV13: 0.1382923555 | CB13: Phoenix Rising | CO13: Oasis Center of Rogue Valley | CV13: White Bird Clinic | DD13: The 4th Dimension Recovery Center | DE13: Project Patchwork | DG13: The Everly Project | DK13: Warm Springs | DP13: NW Instituto Latino
B14: Curry | C14: Curry | E14: ClackamasHarmony Academy Recovery | F14: Clackamas | G14: 05 | H14: Clackamas | I14: 03 | J14: 177219 | K14: Harmony Academy Recovery | M14: 055 | AA14: 177219 | AB14: 177219-0 | AC14: 2022-07-26 | AF14: 2022-08-10 | AG14: 2022-06-15 | AH14: 2022-08-10 | AI14: Yes | AJ14: No | AK14: Complete | AL14: 0 | AW14: 2022-07-15 | AY14: 1246600.56 | AZ14: -1246600.56 | BA14: 498640.26 | BB14: 124660.05 | BC14: 6 | BD14: 1246600.56 | BE14: 0 | BF14: Yes | BG14: No | BH14: 498640.26 | BI14: 0 | BJ14: 977813.6 | BK14: 9000 | BL14: 193944.91 | BM14: 0 | BN14: 0 | BO14: 1180758.51 | BP14: 65842.05 | BR14: 0.8281232714 | BS14: 0.007622219043 | BT14: 0.1642545096 | BU14: 0 | BV14: 0 | CB14: Recovery Works NW | CO14: OnTrack, Inc. | DD14: The Insight Alliance | DE14: Project Quest (Quest Center for Integrative Health) | DG14: The Marie Equi Institute | DP14: Phoenix Rising Transitions
B15: Deschutes | C15: Deschutes | E15: ClackamasLifeStance | F15: Clackamas | G15: 05 | H15: Clackamas | I15: 03 | J15: 177241 | K15: LifeStance | L15: LifeStance Health | M15: 069 | N15: TRUE | O15: 2023-02-12 | P15: Valid | AA15: 177241 | AB15: 177241-0 | AC15: 2022-08-08 | AF15: 2022-08-10 | AG15: 2022-06-17 | AH15: 2022-08-10 | AI15: Yes | AJ15: Yes | AK15: Complete | AL15: 0 | AW15: 2022-07-17 | AY15: 327050 | AZ15: -327050 | BA15: 54508.35 | BB15: 54508.33 | BC15: 5 | BD15: 327050 | BE15: 0 | BF15: Yes | BG15: No | BH15: 0 | BJ15: 238750 | BK15: 23750 | BL15: 12800 | BM15: 51750 | BN15: 0 | BO15: 327050 | BP15: 0 | BR15: 0.7300107017 | BS15: 0.07261886562 | BT15: 0.03913774652 | BU15: 0.1582326861 | BV15: 0 | CB15: The 4th Dimension Recovery Center | CO15: Options for Homeless Residents of Ashland | DD15: The Mental Health & Addiction Association of Oregon | DE15: SE Works Inc | DG15: The Pathfinder Network | DP15: Sequoia Mental Health
B16: Douglas | C16: Douglas | E16: ClackamasMetroPlus Association | F16: Clackamas | G16: 05 | H16: Clackamas | I16: 03 | J16: 177457 | K16: MetroPlus Association | L16: MetroPlus Association of Addiction Peer Professionals | M16: 078 | N16: TRUE | O16: 2024-06-22 | P16: Valid | AA16: 177457 | AB16: 177457-0 | AC16: 2022-08-02 | AF16: 2022-06-22 | AG16: 2022-06-12 | AH16: 2022-06-16 | AI16: Yes | AJ16: Yes | AK16: Complete | AL16: 0 | AW16: 2022-07-12 | AY16: 42710 | AZ16: -42710 | BA16: 17084 | BB16: 4271 | BC16: 6 | BD16: 42710 | BE16: 0 | BF16: Yes | BG16: No | BH16: 0 | BJ16: 5000 | BK16: 29100 | BL16: 4810 | BM16: 3800 | BN16: 0 | BO16: 42710 | BP16: 0 | BQ16: Can not find in CLM | BR16: 0.1170686022 | BS16: 0.6813392648 | BT16: 0.1126199953 | BU16: 0.08897213767 | BV16: 0 | CB16: The Mental Health Association of Oregon | CO16: Options for Southern Oregon, Inc. | DD16: Volunteers of America Oregon | DE16: Sovalti LLC | DG16: Yasiin's Luv LLC | DP16: The 4th Dimension Recovery
B17: Gilliam | C17: Gilliam | E17: ClackamasMorrison Child and Family Services | F17: Clackamas | G17: 05 | H17: Clackamas | I17: 03 | J17: 177234 | K17: Morrison Child and Family Services | L17: Morrison Child and Family Services | M17: 082 | N17: TRUE | O17: 2023-03-15 | P17: Valid | Q17: TRUE | R17: 170819 | AA17: 177234 | AB17: 177234-0 | AC17: 2022-08-03 | AF17: 2022-06-22 | AG17: 2022-06-14 | AH17: 2022-06-16 | AI17: Yes | AJ17: Yes | AK17: Complete | AL17: 0 | AW17: 2022-07-14 | AY17: 192097 | AZ17: -192097 | BA17: 32016.15 | BB17: 32016.17 | BC17: 5 | BD17: 192097 | BE17: 0 | BF17: Yes | BG17: No | BH17: 32016.15 | BI17: 0 | BJ17: 143069 | BK17: 455 | BL17: 29380 | BM17: 0 | BN17: 19192 | BO17: 192096 | BP17: 1 | BR17: 0.7447786523 | BS17: 0.002368607363 | BT17: 0.1529443612 | BU17: 0 | BV17: 0.09990837914 | CB17: Transcending Hope | CO17: Pathfinder Network of Oregon | DD17: WomenFirst Transition Center | DE17: The 4th Dimension Recovery Center | DP17: The Mental Health Association of Oregon
B18: Grant | C18: Grant | E18: ClackamasNew Avenues for Youth | F18: Clackamas | G18: 05 | H18: Clackamas | I18: 03 | J18: 177237 | K18: New Avenues for Youth | L18: New Avenues for Youth, Inc. | M18: 083 | N18: TRUE | O18: 2023-02-18 | P18: Valid | AA18: 177237 | AB18: 177237-0 | AC18: 2022-07-26 | AF18: 2022-06-22 | AG18: 2022-06-14 | AH18: 2022-06-16 | AI18: Yes | AJ18: Yes | AK18: Complete | AL18: 0 | AW18: 2022-07-14 | AY18: 786131.26 | AZ18: -786131.26 | BA18: 314452.54 | BB18: 78613.12 | BC18: 6 | BD18: 786131.26 | BE18: 0 | BF18: Yes | BG18: No | BH18: 314452.54 | BI18: 0 | BJ18: 509586.33 | BK18: 27100 | BL18: 32275 | BM18: 114631.06 | BN18: 102538.86 | BO18: 786131.25 | BP18: 0.01000000001 | BR18: 0.6482204212 | BS18: 0.0344726151 | BT18: 0.04105548533 | BU18: 0.1458166941 | BV18: 0.1304347843 | CB18: Volunteers of America Oregon | CO18: Reclaiming Lives | DD18: Yasiin's Luv LLC | DE18: The Mental Health & Addiction Association of Oregon | DP18: The Recovery Gym (Alano Club)
B19: Harney | C19: Harney | E19: ClackamasNorthwest Family Services | F19: Clackamas | G19: 05 | H19: Clackamas | I19: 03 | J19: 177244 | K19: Northwest Family Services | L19: Northwest Family Services | M19: 087 | N19: TRUE | O19: 2023-07-07 | P19: Valid | Q19: TRUE | R19: 171993 | W19: 2022-12-31 | Y19: No | Z19: No professional liability coverage or worker's compensation | AA19: 177244 | AB19: 177244-0 | AC19: 2022-07-26 | AF19: 2022-06-22 | AG19: 2022-06-14 | AH19: 2022-06-16 | AI19: Yes | AJ19: Yes | AK19: Complete | AL19: 0 | AW19: 2022-07-14 | AY19: 1198802.13 | AZ19: -1198802.13 | BA19: 479520.87 | BB19: 119880.21 | BC19: 6 | BD19: 1198802.13 | BE19: 0 | BF19: Yes | BG19: No | BH19: 479520.87 | BI19: 0 | BJ19: 982452 | BK19: 14625 | BL19: 78343 | BM19: 14400 | BN19: 108982 | BO19: 1198802 | BP19: 0.1299999999 | BR19: 0.8195281623 | BS19: 0.01219967935 | BT19: 0.06535107549 | BU19: 0.01201199197 | BV19: 0.09090909091 | CB19: Youth ERA | CO19: Rogue Community Health | DE19: The Miracles Club | DP19: Virginia Garcia Memorial Health
B20: Hood_River_County | C20: Hood River County | E20: ClackamasOutside In | F20: Clackamas | G20: 05 | H20: Clackamas | I20: 03 | J20: 177245 | K20: Outside In | L20: Outside In | M20: 100 | N20: TRUE | O20: 2023-09-23 | P20: Valid | Q20: TRUE | R20: 170897 | AA20: 177245 | AB20: 177245-0 | AC20: 2022-08-02 | AF20: 2022-06-22 | AG20: 2022-06-21 | AH20: 2022-06-23 | AI20: Yes | AJ20: Yes | AK20: Complete | AL20: 0 | AW20: 2022-07-21 | AY20: 356789.43 | AZ20: -356789.43 | BA20: 59464.88 | BB20: 59464.91 | BC20: 5 | BD20: 356789.43 | BE20: 0 | BF20: Yes | BG20: No | BH20: 59464.88 | BI20: 0 | BJ20: 120203 | BK20: 3400 | BL20: 135751 | BM20: 65000 | BN20: 32435 | BO20: 356789 | BP20: 0.43 | BR20: 0.3369022027 | BS20: 0.009529441771 | BT20: 0.3804797794 | BU20: 0.1821805044 | BV20: 0.09090807172 | CO20: Youth ERA | DE20: WomenFirst Transition & Referral Center | DP20: Washington County Behavioral Health Division
B21: Jackson_County | C21: Jackson County | E21: ClackamasParrott Creek Child & Family Services | F21: Clackamas | G21: 05 | H21: Clackamas | I21: 03 | J21: 177246 | K21: Parrott Creek Child & Family Services | L21: Parrott Creek Child & Family Services, Inc. | M21: 102 | N21: TRUE | O21: 2023-07-02 | P21: Valid | AA21: 177246 | AB21: 177246-0 | AC21: 2022-07-27 | AF21: 2022-06-22 | AG21: 2022-06-14 | AH21: 2022-06-16 | AI21: Yes | AJ21: Yes | AK21: Complete | AL21: 0 | AW21: 2022-07-14 | AY21: 843594 | AZ21: -843594 | BA21: 337437.6 | BB21: 84359.4 | BC21: 6 | BD21: 843594 | BE21: 0 | BF21: Yes | BG21: No | BH21: 0 | BJ21: 681075 | BK21: 33211 | BL21: 71498 | BM21: 57810 | BN21: 0 | BO21: 843594 | BP21: 0 | BR21: 0.8073492699 | BS21: 0.03936846398 | BT21: 0.08475404045 | BU21: 0.06852822566 | BV21: 0 | DP21: Washington County Public Health
B22: Jefferson | C22: Jefferson | E22: ClackamasPhoenix Rising | F22: Clackamas | G22: 05 | H22: Clackamas | I22: 03 | J22: 177247 | K22: Phoenix Rising | L22: Phoenix Rising | M22: 103 | N22: TRUE | O22: 2023-10-15 | P22: Valid | AA22: 177247 | AB22: 177247-0 | AC22: 2022-08-02 | AF22: 2022-06-22 | AG22: 2022-06-14 | AH22: 2022-06-16 | AI22: Yes | AJ22: Yes | AK22: Complete | AL22: 0 | AW22: 2022-07-14 | AY22: 96691.48 | AZ22: -96691.48 | BA22: 38676.64 | BB22: 9669.14 | BC22: 6 | BD22: 96691.48 | BE22: 0 | BF22: Yes | BG22: No | BH22: 38676.64 | BI22: 0 | BJ22: 82608.53 | BK22: 1500 | BL22: 12582.95 | BM22: 0 | BN22: 0 | BO22: 96691.48 | BP22: 0 | BR22: 0.8543516968 | BS22: 0.01551325929 | BT22: 0.130135044 | BU22: 0 | BV22: 0
B23: Josephine | C23: Josephine | E23: ClackamasRecovery Works NW | F23: Clackamas | G23: 05 | H23: Clackamas | I23: 03 | J23: 177249 | K23: Recovery Works NW | L23: Recovery Works NW | M23: 116 | N23: TRUE | O23: 2023-04-07 | P23: Valid | W23: 2022-12-22 | X23: 2023-05-01 | Y23: No | Z23: No professional liability coverage or workers compensation amounts | AA23: 177249 | AB23: 177249-0 | AC23: 2022-08-26 | AF23: 2022-06-22 | AG23: 2022-06-22 | AH23: 2022-06-23 | AI23: Yes | AJ23: Yes | AK23: Complete | AL23: 0 | AW23: 2022-07-22 | AY23: 2181240 | AZ23: -2181240 | BA23: 872496 | BB23: 218124 | BC23: 6 | BD23: 2181240 | BE23: 0 | BF23: Yes | BG23: No | BH23: 0 | BJ23: 361872.6 | BK23: 90000 | BL23: 273218.44 | BM23: 1383639.86 | BN23: 72509.1 | BO23: 2181240 | BP23: 0 | BR23: 0.1659022391 | BS23: 0.04126093415 | BT23: 0.1252583118 | BU23: 0.6343363683 | BV23: 0.03324214667
B24: Klamath | C24: Klamath | E24: ClackamasThe 4th Dimension Recovery Center | F24: Clackamas | G24: 05 | H24: Clackamas | I24: 03 | J24: 177251 | K24: The 4th Dimension Recovery Center | L24: The 4th Dimension Recovery Center | M24: 131 | N24: TRUE | O24: 2023-01-14 | P24: Valid | Q24: TRUE | R24: 170896 | AA24: 177251 | AB24: 177251-0 | AC24: 2022-07-26 | AF24: 2022-06-22 | AG24: 2022-06-15 | AH24: 2022-06-16 | AI24: Yes | AJ24: Yes | AK24: Complete | AL24: 0 | AW24: 2022-07-15 | AY24: 1742400.4 | AZ24: -1742400.4 | BA24: 290400.05 | BB24: 290400.07 | BC24: 5 | BD24: 1742400.4 | BE24: 0 | BF24: Yes | BG24: No | BH24: 290400.05 | BI24: 0 | BJ24: 724849.79 | BK24: 3500 | BL24: 259500 | BM24: 150000 | BN24: 113784.98 | BO24: 1251634.77 | BP24: 490765.63 | BR24: 0.5791224464 | BS24: 0.002796342898 | BT24: 0.207328852 | BU24: 0.1198432671 | BV24: 0.09090909164
B25: Lake | C25: Lake | E25: ClackamasThe Mental Health Association of Oregon | F25: Clackamas | G25: 05 | H25: Clackamas | I25: 03 | J25: 177248 | K25: The Mental Health Association of Oregon | L25: The Mental Health & Addiction Association of Oregon | M25: 136 | N25: TRUE | O25: 2023-07-20 | P25: Valid | AA25: 177248 | AB25: 177248-0 | AC25: 2022-07-26 | AF25: 2022-08-09 | AG25: 2022-06-17 | AH25: 2022-08-09 | AI25: Yes | AJ25: No | AK25: Complete | AL25: 0 | AW25: 2022-07-17 | AY25: 719896.94 | AZ25: -719896.94 | BA25: 287958.8 | BB25: 71989.69 | BC25: 6 | BD25: 719896.94 | BE25: 0 | BF25: Yes | BG25: No | BH25: 287958.8 | BI25: 0 | BJ25: 477027.34 | BK25: 9990 | BL25: 174013.02 | BM25: 0 | BN25: 65445.18 | BO25: 726475.54 | BP25: -6578.6 | BQ25: Budget on CLM has different categories | BR25: 0.6566323486 | BS25: 0.01375132327 | BT25: 0.2395304596 | BU25: 0 | BV25: 0.09008586855
B26: Lane_BHRN_1 | C26: Lane BHRN 1 | E26: ClackamasTranscending Hope | F26: Clackamas | G26: 05 | H26: Clackamas | I26: 03 | J26: 177250 | K26: Transcending Hope | L26: Transcending Hope | M26: 142 | N26: TRUE | O26: 2022-08-12 | P26: Expired | AA26: 177250 | AB26: 177250-0 | AC26: 2022-07-26 | AF26: 2022-06-22 | AG26: 2022-06-15 | AH26: 2022-06-16 | AI26: Yes | AJ26: Yes | AK26: Complete | AL26: 0 | AW26: 2022-07-15 | AY26: 1079702.86 | AZ26: -1079702.86 | BA26: 431881.18 | BB26: 107970.28 | BC26: 6 | BD26: 1079702.86 | BE26: 0 | BF26: Yes | BG26: No | BH26: 431881.18 | BI26: 0 | BJ26: 526542.42 | BK26: 3000 | BL26: 544321.44 | BM26: 36775 | BN26: 0 | BO26: 1110638.86 | BP26: -30936 | BQ26: Budget spreadsheet says total is 1079702.86 but sum of their expenses is greater | BR26: 0.4740896784 | BS26: 0.002701148058 | BT26: 0.4900976002 | BU26: 0.03311157328 | BV26: 0
B27: Lane_BHRN_2 | C27: Lane BHRN 2 | E27: ClackamasVolunteers of America Oregon | F27: Clackamas | G27: 05 | H27: Clackamas | I27: 03 | J27: 177209 | K27: Volunteers of America Oregon | L27: Volunteers of America Oregon, Inc. | M27: 147 | N27: TRUE | O27: 2022-10-03 | P27: Valid | AA27: 177209 | AB27: 177209-0 | AC27: 2022-07-19 | AF27: 2022-06-22 | AG27: 2022-06-22 | AH27: 2022-06-23 | AI27: Yes | AJ27: Yes | AK27: Complete | AL27: 0 | AW27: 2022-07-22 | AY27: 376414.4 | AZ27: -376414.4 | BA27: 150565.76 | BB27: 37641.44 | BC27: 6 | BD27: 376414.4 | BE27: 0 | BF27: Yes | BG27: No | BH27: 150565.76 | BI27: 0 | BJ27: 0 | BK27: 0 | BL27: 221667 | BM27: 0 | BN27: 48773 | BO27: 270440 | BP27: 105974.4 | BQ27: Does not add up to the total, no personnel or staff training costs outlined | BR27: 0 | BS27: 0 | BT27: 0.8196531578 | BU27: 0 | BV27: 0.1803468422
B28: Lane_BHRN_3 | C28: Lane BHRN 3 | E28: ClackamasYouth ERA | F28: Clackamas | G28: 05 | H28: Clackamas | I28: 03 | J28: 177211 | K28: Youth ERA | L28: Youth ERA | M28: 157 | N28: TRUE | O28: 2022-10-06 | P28: Valid | AA28: 177211 | AB28: 177211-0 | AC28: 2022-07-26 | AF28: 2022-08-09 | AG28: 2022-06-14 | AH28: 2022-08-09 | AI28: Yes | AJ28: Yes | AK28: Complete | AL28: 0 | AW28: 2022-07-14 | AY28: 181787 | AZ28: -181787 | BA28: 72714.8 | BB28: 18178.7 | BC28: 6 | BD28: 181787 | BE28: 0 | BF28: Yes | BG28: No | BH28: 80329.8 | BI28: 7615 | BJ28: 129671 | BK28: 1000 | BL28: 27405 | BM28: 0 | BN28: 23711 | BO28: 181787 | BP28: 0 | BR28: 0.7133128332 | BS28: 0.005500943412 | BT28: 0.1507533542 | BU28: 0 | BV28: 0.1304328692
B29: Lincoln_County_BHRN_1 | C29: Lincoln County BHRN 1 | E29: ClatsopClatsop Behavioral Healthcare | F29: Clatsop | G29: 07 | H29: Clatsop | I29: 04 | J29: 177465 | K29: Clatsop Behavioral Healthcare | L29: Clatsop Behavioral Healthcare | M29: 023 | N29: TRUE | O29: 2023-05-28 | P29: Valid | Q29: TRUE | R29: 170833 | AA29: 177465 | AB29: 177465-0 | AC29: 2022-08-08 | AF29: 2022-08-08 | AG29: 2022-08-02 | AH29: 2022-08-08 | AI29: Yes | AJ29: Yes | AK29: Complete | AL29: 0 | AW29: 2022-09-01 | AY29: 1093678.36 | AZ29: -1093678.36 | BA29: 437471.38 | BB29: 109367.84 | BC29: 6 | BD29: 1093678.42 | BE29: -0.05999999982 | BF29: Yes | BG29: No | BH29: 437471.38 | BI29: 0 | BJ29: 736332.91 | BK29: 11100 | BL29: 259255.06 | BM29: 0 | BN29: 85990.4 | BO29: 1092678.37 | BP29: 999.99 | BR29: 0.673878911 | BS29: 0.01015852451 | BT29: 0.2372656649 | BU29: 0 | BV29: 0.07869689962
B30: Lincoln_County_BHRN_2 | C30: Lincoln County BHRN 2 | E30: ClatsopClatsop Community Action | F30: Clatsop | G30: 07 | H30: Clatsop | I30: 04 | J30: 177466 | K30: Clatsop Community Action | L30: Clatsop Community Action | M30: 024 | N30: TRUE | O30: 2023-02-21 | P30: Valid | AA30: 177466 | AB30: 177466-0 | AC30: 2022-08-08 | AF30: 2022-08-08 | AG30: 2022-08-02 | AH30: 2022-08-08 | AI30: Yes | AJ30: Yes | AK30: Complete | AL30: 0 | AW30: 2022-09-01 | AY30: 1581378.31 | AZ30: -1581378.31 | BA30: 632551.33 | BB30: 158137.83 | BC30: 6 | BD30: 1581378.31 | BE30: 0 | BF30: Yes | BG30: No | BH30: 632551.33 | BI30: 0 | BJ30: 357982.8 | BK30: 3800 | BL30: 599450 | BM30: 0 | BN30: 0 | BO30: 961232.8 | BP30: 620145.51 | BR30: 0.3724205 | BS30: 0.003953256693 | BT30: 0.6236262433 | BU30: 0 | BV30: 0
B31: Linn | C31: Linn | E31: ClatsopClatsop County Public Health | F31: Clatsop | G31: 07 | H31: Clatsop | I31: 04 | J31: 177471 | K31: Clatsop County Public Health | L31: Clatsop County Department of Public Health | M31: 025 | AA31: 177471 | AB31: 177471-0 | AC31: 2022-08-30 | AF31: 2022-08-08 | AG31: 2022-07-28 | AH31: 2022-08-08 | AI31: Yes | AJ31: Yes | AK31: Complete | AL31: 0 | AW31: 2022-08-27 | AY31: 267603.45 | AZ31: -267603.45 | BA31: 44600.55 | BB31: 44600.58 | BC31: 5 | BD31: 267603.45 | BE31: 0 | BF31: Yes | BG31: No | BH31: 0 | BJ31: 91508.2 | BK31: 5700 | BL31: 103887.48 | BM31: 0 | BN31: 0 | BO31: 201095.68 | BP31: 66507.77 | BR31: 0.4550480647 | BS31: 0.02834471631 | BT31: 0.516607219 | BU31: 0 | BV31: 0
B32: Malheur | C32: Malheur | E32: ClatsopHelping Hands Re-Entry and Outreach | F32: Clatsop | G32: 07 | H32: Clatsop | I32: 04 | J32: 177468 | K32: Helping Hands Re-Entry and Outreach | L32: Helping Hands Re-Entry and Outreach | M32: 057 | N32: TRUE | O32: 2022-10-21 | P32: Valid | AA32: 177468 | AB32: 177468-0 | AC32: 2022-08-08 | AF32: 2022-08-08 | AG32: 2022-08-02 | AH32: 2022-08-08 | AI32: Yes | AJ32: Yes | AK32: Complete | AL32: 0 | AW32: 2022-09-01 | AY32: 1801780 | AZ32: -1801780 | BA32: 720712 | BB32: 180178 | BC32: 6 | BD32: 1801780 | BE32: 0 | BF32: Yes | BG32: No | BH32: 720712 | BI32: 0 | BJ32: 37000 | BK32: 0 | BL32: 0 | BM32: 1163000 | BN32: 0 | BO32: 1200000 | BP32: 601780 | BR32: 0.03083333333 | BS32: 0 | BT32: 0 | BU32: 0.9691666667 | BV32: 0
B33: Marion | C33: Marion | E33: ClatsopIron Tribe Network | F33: Clatsop | G33: 07 | H33: Clatsop | I33: 04 | J33: 177467 | K33: Iron Tribe Network | L33: Iron Tribe Network | M33: 062 | N33: TRUE | O33: 2023-06-29 | P33: Valid | V33: 2023-07-01 | W33: 2023-01-02 | X33: 2023-01-02 | Y33: Yes | AA33: 177467 | AB33: 177467-0 | AC33: 2022-08-08 | AF33: 2022-08-08 | AG33: 2022-08-08 | AH33: 2022-08-08 | AI33: Yes | AJ33: Yes | AK33: Complete | AL33: 0 | AW33: 2022-09-07 | AY33: 1037496.48 | AZ33: -1037496.48 | BA33: 414998.64 | BB33: 103749.64 | BC33: 6 | BD33: 1037496.48 | BE33: 0 | BF33: Yes | BG33: No | BH33: 0 | BJ33: 102921 | BK33: 2850 | BL33: 48625 | BM33: 885000 | BN33: 0 | BO33: 1039396 | BP33: -1899.52 | BR33: 0.09902000777 | BS33: 0.002741977071 | BT33: 0.04678197723 | BU33: 0.8514560379 | BV33: 0
B34: Morrow | C34: Morrow | E34: ClatsopMorrison Child and Family Services | F34: Clatsop | G34: 07 | H34: Clatsop | I34: 04 | J34: 177470 | K34: Morrison Child and Family Services | L34: Morrison Child and Family Services | M34: 082 | N34: TRUE | O34: 2023-03-15 | P34: Valid | Q34: TRUE | R34: 170819 | AA34: 177470 | AB34: 177470-0 | AC34: 2022-08-08 | AF34: 2022-08-08 | AG34: 2022-08-08 | AH34: 2022-08-08 | AI34: Yes | AJ34: Yes | AK34: Complete | AL34: 0 | AW34: 2022-09-07 | AY34: 188695.66 | AZ34: -188695.66 | BA34: 31449.26 | BB34: 31449.28 | BC34: 5 | BD34: 188695.66 | BE34: 0 | BF34: Yes | BG34: No | BH34: 31449.26 | BI34: 0 | BJ34: 140526 | BK34: 445 | BL34: 47725 | BM34: 0 | BN34: 0 | BO34: 188696 | BP34: -0.34 | BR34: 0.7447216687 | BS34: 0.002358290584 | BT34: 0.2529200407 | BU34: 0 | BV34: 0
B35: East_Multnomah_BHRN_Providers | C35: East Multnomah BHRN Providers | E35: ClatsopProvidence Seaside Hosp. Foundation | F35: Clatsop | G35: 07 | H35: Clatsop | I35: 04 | J35: 177478 | K35: Providence Seaside Hosp. Foundation | L35: Providence Seaside Hospital Foundation | M35: 112 | N35: TRUE | O35: 2022-08-22 | P35: Expired | Q35: TRUE | V35: 2023-01-01 | W35: 2023-06-01 | X35: 2023-06-01 | Y35: Yes | AA35: 177478 | AB35: 177478-0 | AC35: 2022-08-09 | AF35: 2022-08-08 | AG35: 2022-08-07 | AH35: 2022-08-08 | AI35: Yes | AJ35: Yes | AK35: Complete | AL35: 0 | AW35: 2022-09-06 | AY35: 221313 | AZ35: -221313 | BA35: 88525.2 | BB35: 22131.3 | BC35: 6 | BD35: 221313 | BE35: 0 | BF35: Yes | BG35: No | BH35: 88525.2 | BI35: 0 | BJ35: 307742 | BK35: 1500 | BL35: 65674 | BM35: 0 | BN35: 153612 | BO35: 528528 | BP35: -307215 | BR35: 0.5822624345 | BS35: 0.00283807102 | BT35: 0.1242583174 | BU35: 0 | BV35: 0.290641177
B36: Indigeninity_BHRN_Providers | C36: Indigeninity BHRN Providers | E36: Columbia CountyBoulder Care, Inc. | F36: Columbia | G36: 09 | H36: Columbia County | I36: 05 | J36: 176763 | K36: Boulder Care, Inc. | L36: Boulder Care, Inc. | M36: 010 | N36: TRUE | O36: 2022-11-25 | P36: Valid | W36: 2023-05-07 | X36: 2023-05-07 | Y36: No | Z36: No workers compensation amount | AA36: 176763 | AB36: 176763-0 | AC36: 2022-06-25 | AF36: 2022-07-08 | AG36: 2022-07-08 | AH36: 2022-07-08 | AI36: Yes | AJ36: Yes | AK36: Complete | AL36: 0 | AW36: 2022-08-07 | AX36: 97256 | AY36: 97256 | AZ36: 0 | BA36: 38902.4 | BB36: 9725.6 | BC36: 6 | BD36: 97256 | BE36: 0 | BF36: Yes | BG36: No | BH36: 38902.4 | BI36: 0 | BO36: 0 | BQ36: The boulder care CLM folder contains the wrong budget, it contains the medicine wheel recovery budget
B37: Latino_a_x_Multnomah_County_BHRN | C37: Latino/a/x Multnomah County BHRN | E37: Columbia CountyColumbia Community Mental Health | F37: Columbia | G37: 09 | H37: Columbia County | I37: 05 | J37: 176765 | K37: Columbia Community Mental Health | L37: Columbia Community Mental Health | M37: 028 | N37: TRUE | O37: 2022-07-15 | P37: Expired | AA37: 176765 | AB37: 176765-0 | AC37: 2022-08-01 | AF37: 2022-07-08 | AG37: 2022-07-05 | AH37: 2022-07-08 | AI37: Yes | AJ37: Yes | AK37: Complete | AL37: 0 | AW37: 2022-08-04 | AX37: 1304252 | AY37: 1304252.11 | AZ37: -0.1100000001 | BA37: 217375.36 | BB37: 217375.35 | BC37: 5 | BD37: 1304252.11 | BE37: 0 | BF37: Yes | BG37: No | BH37: 0 | BJ37: 1181002.11 | BK37: 14650 | BL37: 69260 | BM37: 139340 | BN37: 0 | BO37: 1404252.11 | BP37: -100000 | BQ37: Budget table has row highlighted 1 FTE for BHRN management/communications which totals the variance of $100,000 | BR37: 0.8410185761 | BS37: 0.0104325996 | BT37: 0.04932162787 | BU37: 0.09922719646 | BV37: 0
B38: No_Wrong_Door_BHRN_Providers | C38: No Wrong Door BHRN Providers | E38: Columbia CountyIron Tribe Network | F38: Columbia | G38: 09 | H38: Columbia County | I38: 05 | J38: 176764 | K38: Iron Tribe Network | L38: Iron Tribe Network | M38: 062 | N38: TRUE | O38: 2023-06-29 | P38: Valid | V38: 2023-07-01 | W38: 2023-01-02 | X38: 2023-01-02 | Y38: Yes | AA38: 176764 | AB38: 176764-0 | AC38: 2022-06-27 | AF38: 2022-07-08 | AG38: 2022-07-05 | AH38: 2022-07-08 | AI38: Yes | AJ38: Yes | AK38: Complete | AL38: 0 | AW38: 2022-08-04 | AX38: 1151036 | AY38: 1151036 | AZ38: 0 | BA38: 460414.4 | BB38: 115103.6 | BC38: 6 | BD38: 1151036 | BE38: 0 | BF38: Yes | BG38: No | BH38: 0 | BJ38: 214209 | BK38: 2850 | BL38: 398977 | BM38: 535000 | BN38: 0 | BO38: 1151036 | BP38: 0 | BR38: 0.1861010429 | BS38: 0.002476030289 | BT38: 0.3466242585 | BU38: 0.4647986683 | BV38: 0
B39: Polk | C39: Polk | E39: Columbia CountyMedicine Wheel Recovery | F39: Columbia | G39: 09 | H39: Columbia County | I39: 05 | J39: 176770 | K39: Medicine Wheel Recovery | L39: Medicine Wheel Recovery Services | M39: 077 | N39: TRUE | O39: 2023-04-10 | P39: Valid | Q39: TRUE | R39: 170486 | AA39: 176770 | AB39: 176770-0 | AC39: 2022-06-23 | AF39: 2022-07-08 | AG39: 2022-07-01 | AH39: 2022-07-08 | AI39: Yes | AJ39: Yes | AK39: Complete | AL39: 0 | AW39: 2022-07-31 | AX39: 874955 | AY39: 874955 | AZ39: 0 | BA39: 349982 | BB39: 87495.5 | BC39: 6 | BD39: 874955 | BE39: 0 | BF39: Yes | BG39: No | BH39: 349982 | BI39: 0 | BJ39: 725600 | BK39: 58500 | BL39: 45855 | BM39: 45000 | BO39: 874955 | BP39: 0 | BQ39: Received the budget with a 179763 as the grant number. The grant number in CLM in the grant agreement is 176770 | BR39: 0.8292997926 | BS39: 0.0668605814 | BT39: 0.05240840958 | BU39: 0.05143121646 | BV39: 0
B40: Sherman | C40: Sherman | E40: Columbia CountyYouth ERA | F40: Columbia | G40: 09 | H40: Columbia County | I40: 05 | J40: 176860 | K40: Youth ERA | L40: Youth ERA | M40: 157 | N40: TRUE | O40: 2022-10-06 | P40: Valid | AA40: 176860 | AB40: 176860-0 | AC40: 2022-07-09 | AF40: 2022-07-08 | AG40: 2022-07-08 | AH40: 2022-07-08 | AI40: Yes | AJ40: Yes | AK40: Complete | AL40: 0 | AW40: 2022-08-07 | AX40: 181787 | AY40: 181787 | AZ40: 0 | BA40: 72714.8 | BB40: 18178.7 | BC40: 6 | BD40: 181787 | BE40: 0 | BF40: Yes | BG40: No | BH40: 72714.8 | BI40: 0 | BJ40: 129671 | BK40: 2700 | BL40: 25705 | BN40: 23711 | BO40: 181787 | BP40: 0 | BR40: 0.7133128332 | BS40: 0.01485254721 | BT40: 0.1414017504 | BU40: 0 | BV40: 0.1304328692
B41: Tillamook | C41: Tillamook | E41: CoosAdapt | F41: Coos | G41: 11 | H41: Coos | I41: 06 | J41: 177222 | K41: Adapt | L41: Adapt | M41: 001 | N41: TRUE | O41: 2023-06-10 | P41: Valid | Q41: TRUE | R41: 172298 | AA41: 177222 | AB41: 177222-0 | AC41: 2022-07-26 | AF41: 2022-08-04 | AH41: 2022-08-04 | AI41: Yes | AJ41: Yes | AK41: Complete | AL41: 0 | AY41: 1385000 | AZ41: -1385000 | BA41: 554000 | BB41: 138500 | BC41: 6 | BD41: 1385000 | BE41: 0 | BF41: Yes | BG41: No | BH41: 554000 | BI41: 0 | BJ41: 828000 | BK41: 67000 | BL41: 370000 | BM41: 120000 | BN41: 0 | BO41: 1385000 | BP41: 0 | BR41: 0.597833935 | BS41: 0.04837545126 | BT41: 0.2671480144 | BU41: 0.08664259928 | BV41: 0
B42: Umatilla | C42: Umatilla | E42: CoosBay Area First Step Inc. | F42: Coos | G42: 11 | H42: Coos | I42: 06 | J42: 177229 | K42: Bay Area First Step Inc. | L42: Bay Area First Step Inc. | M42: 007 | N42: TRUE | O42: 2023-03-17 | P42: Valid | Q42: TRUE | R42: 170472 | AA42: 177229 | AB42: 177229-0 | AC42: 2022-07-24 | AF42: 2022-08-04 | AG42: 2022-07-26 | AH42: 2022-08-04 | AI42: Yes | AJ42: Yes | AK42: Complete | AL42: 0 | AW42: 2022-08-25 | AY42: 2540435.36 | AZ42: -2540435.36 | BA42: 1016174.14 | BB42: 254043.54 | BC42: 6 | BD42: 2540435.38 | BE42: -0.02000000002 | BF42: Yes | BG42: No | BH42: 1016174.14 | BI42: 0 | BJ42: 430861 | BK42: 0 | BL42: 209940.66 | BM42: 1690000 | BN42: 209633.7 | BO42: 2540435.36 | BP42: 0 | BR42: 0.169601245 | BS42: 0 | BT42: 0.08263963859 | BU42: 0.6652403075 | BV42: 0.0825188089
B43: Union | C43: Union | E43: CoosCoos Health & Wellness | F43: Coos | G43: 11 | H43: Coos | I43: 06 | J43: 177242 | K43: Coos Health & Wellness | M43: 037 | AA43: 177242 | AB43: 177242-0 | AC43: 2022-09-07 | AF43: 2022-08-04 | AG43: 2022-08-03 | AH43: 2022-08-04 | AI43: Yes | AJ43: Yes | AK43: Complete | AL43: 0 | AW43: 2022-09-02 | AY43: 295080 | AZ43: -295080 | BA43: 118032 | BB43: 29508 | BC43: 6 | BD43: 295080 | BE43: 0 | BF43: Yes | BG43: No | BH43: 0 | BJ43: 250800 | BK43: 19200 | BL43: 0 | BM43: 25080 | BN43: 0 | BO43: 295080 | BP43: 0 | BR43: 0.8499389996 | BS43: 0.06506710045 | BT43: 0 | BU43: 0.08499389996 | BV43: 0
B44: Wallowa | C44: Wallowa | E44: CoosHIV Alliance | F44: Coos | G44: 11 | H44: Coos | I44: 06 | J44: 177223 | K44: HIV Alliance | L44: HIV Alliance | M44: 058 | N44: TRUE | O44: 2022-09-21 | P44: Valid | Q44: TRUE | R44: 172261 | AA44: 177223 | AB44: 177223-0 | AC44: 2022-07-24 | AF44: 2022-08-04 | AG44: 2022-07-28 | AH44: 2022-08-04 | AI44: Yes | AJ44: Yes | AK44: Complete | AL44: 0 | AW44: 2022-08-27 | AY44: 272586 | AZ44: -272586 | BA44: 109034.4 | BB44: 27258.6 | BC44: 6 | BD44: 272586 | BE44: 0 | BF44: Yes | BG44: No | BH44: 109034.4 | BI44: 0 | BJ44: 194910 | BK44: 2000 | BL44: 50896 | BM44: 0 | BN44: 24781 | BO44: 272587 | BP44: -1 | BQ44: Computers (Start-Up) is not brought over into the totals column | BR44: 0.7150377678 | BS44: 0.007337107052 | BT44: 0.1867147003 | BU44: 0 | BV44: 0.09091042493
B45: Wasco | C45: Wasco | E45: CoosYouth ERA | F45: Coos | G45: 11 | H45: Coos | I45: 06 | J45: 177230 | K45: Youth ERA | L45: Youth ERA | M45: 157 | N45: TRUE | O45: 2022-10-06 | P45: Valid | AA45: 177230 | AB45: 177230-0 | AC45: 2022-07-27 | AF45: 2022-08-04 | AH45: 2022-08-04 | AI45: Yes | AJ45: Yes | AK45: Complete | AL45: 0 | AY45: 177004 | AZ45: -177004 | BA45: 70801.6 | BB45: 17700.4 | BC45: 6 | BD45: 177004 | BE45: 0 | BF45: Yes | BG45: No | BH45: 70801.6 | BI45: 0 | BJ45: 121892 | BK45: 2700 | BL45: 29325.5 | BM45: 0 | BN45: 23086 | BO45: 177003.5 | BP45: 0.5 | BR45: 0.68864175 | BS45: 0.01525393566 | BT45: 0.1656775149 | BU45: 0 | BV45: 0.1304267995
B46: Washington | C46: Washington | E46: CrookBestCare Treatment Services, Inc. | F46: Crook | G46: 13 | H46: Crook | I46: 07 | J46: 176690 | K46: BestCare Treatment Services, Inc. | L46: BestCare Treatment Services, Inc. | M46: 009 | N46: TRUE | O46: 2023-03-12 | P46: Valid | Q46: TRUE | R46: 170901 | AA46: 176690 | AB46: 176690-0 | AC46: 2022-06-28 | AF46: 2022-07-07 | AG46: 2022-07-07 | AH46: 2022-07-07 | AI46: Yes | AK46: Complete | AL46: 0 | AW46: 2022-08-06 | AX46: 1501318 | AY46: 1501318.51 | AZ46: -0.51 | BA46: 600527.41 | BB46: 150131.85 | BC46: 6 | BD46: 1501318.51 | BE46: 0 | BF46: Yes | BG46: No | BH46: 0 | BJ46: 711552.53 | BK46: 8150 | BL46: 62165.98 | BM46: 719450 | BN46: 0 | BO46: 1501318.51 | BP46: 0 | BQ46: Number of quarters is not in the MOU | BR46: 0.4739517466 | BS46: 0.005428561592 | BT46: 0.04140758912 | BU46: 0.4792121027 | BV46: 0
B47: Wheeler | C47: Wheeler | E47: CrookRimrock Trails Treatment Services | F47: Crook | G47: 13 | H47: Crook | I47: 07 | J47: 176689 | K47: Rimrock Trails Treatment Services | L47: Rimrock Trails Treatment Services | M47: 119 | N47: TRUE | O47: 2022-11-07 | P47: Valid | AA47: 176689 | AB47: 176689-0 | AC47: 2022-06-17 | AF47: 2022-07-07 | AG47: 2022-07-07 | AH47: 2022-07-07 | AI47: Yes | AK47: Complete | AL47: 0 | AW47: 2022-08-06 | AX47: 352855 | AY47: 352855 | AZ47: 0 | BA47: 141142 | BB47: 35285.5 | BC47: 6 | BD47: 352855 | BE47: 0 | BF47: Yes | BG47: No | BH47: 141142 | BI47: 0 | BJ47: 268032.97 | BK47: 10026 | BL47: 33472 | BM47: 48790 | BN47: 36032 | BO47: 396352.97 | BP47: -43497.97 | BR47: 0.6762481684 | BS47: 0.02529563485 | BT47: 0.08444997902 | BU47: 0.1230973493 | BV47: 0.09090886843
B48: Brightside | C48: Brightside | E48: CurryAdapt | F48: Curry | G48: 15 | H48: Curry | I48: 08 | J48: 176579 | K48: Adapt | L48: Adapt | M48: 001 | N48: TRUE | O48: 2023-06-10 | P48: Valid | Q48: TRUE | R48: 172298 | AA48: 176579 | AB48: 176579-0 | AC48: 2022-06-14 | AD48: 2022-06-14 | AE48: 2022-07-14 | AG48: 2022-07-05 | AH48: 2022-07-05 | AI48: Yes | AJ48: Yes | AK48: Complete | AL48: 0 | AW48: 2022-08-04 | AX48: 1312468.46 | AY48: 1312468.46 | AZ48: 0 | BA48: 524987.42 | BB48: 131246.84 | BC48: 6 | BD48: 1312468.46 | BE48: 0 | BF48: Yes | BG48: No | BH48: 524987.42 | BI48: 0 | BJ48: 396000 | BK48: 63000 | BL48: 364930 | BM48: 488538.46 | BN48: 0 | BO48: 1312468.46 | BP48: 0 | BR48: 0.3017215362 | BS48: 0.04800115349 | BT48: 0.2780485864 | BU48: 0.3722287239 | BV48: 0
B49: Yamhill_County | C49: Yamhill County | E49: CurryBrookings Community Resource Response | F49: Curry | G49: 15 | H49: Curry | I49: 08 | J49: 176575 | K49: Brookings Community Resource Response | L49: Brookings Community Resource Response | M49: 014 | N49: TRUE | O49: 2022-07-09 | P49: Expired | AA49: 176575 | AB49: 176575-0 | AC49: 2022-06-13 | AD49: 2022-06-14 | AE49: 2022-07-14 | AG49: 2022-07-05 | AH49: 2022-07-05 | AI49: Yes | AJ49: Yes | AK49: Complete | AL49: 0 | AW49: 2022-08-04 | AX49: 250000 | AY49: 250000 | AZ49: 0 | BA49: 100000 | BB49: 25000 | BC49: 6 | BD49: 250000 | BE49: 0 | BF49: Yes | BG49: No | BH49: 100000 | BI49: 0 | BO49: 0 | BQ49: Budget in the folder appears to be a balance sheet
E50: DeschutesBestCare Treatment Services, Inc. | F50: Deschutes | G50: 17 | H50: Deschutes | I50: 09 | J50: 177287 | K50: BestCare Treatment Services, Inc. | L50: BestCare Treatment Services, Inc. | M50: 009 | N50: TRUE | O50: 2023-03-13 | P50: Valid | Q50: TRUE | R50: 170901 | AA50: 177287 | AB50: 177287-0 | AC50: 2022-07-29 | AF50: 2022-07-07 | AG50: 2022-07-06 | AH50: 2022-07-06 | AI50: Yes | AJ50: Yes | AK50: Complete | AL50: 0 | AW50: 2022-08-05 | AY50: 5493639.72 | AZ50: -5493639.72 | BA50: 2197455.9 | BB50: 549363.97 | BC50: 6 | BD50: 5493639.72 | BE50: 0 | BF50: Yes | BG50: No | BH50: 2197455.9 | BI50: 0 | BJ50: 2879106.39 | BK50: 48400 | BL50: 506733.33 | BM50: 2059400 | BN50: 0 | BO50: 5493639.72 | BP50: 0 | BR50: 0.5240799428 | BS50: 0.00881018823 | BT50: 0.09224000041 | BU50: 0.3748698686 | BV50: 0
E51: DeschutesBoulder Care, Inc. | F51: Deschutes | G51: 17 | H51: Deschutes | I51: 09 | J51: 177291 | K51: Boulder Care, Inc. | L51: Boulder Care, Inc. | M51: 010 | N51: TRUE | O51: 2022-11-25 | P51: Valid | W51: 2023-05-07 | X51: 2023-05-07 | Y51: No | Z51: No workers compensation amount | AA51: 177291 | AB51: 177291-0 | AC51: 2022-08-08 | AF51: 2022-07-07 | AG51: 2022-07-06 | AH51: 2022-07-06 | AI51: Yes | AJ51: Yes | AK51: Complete | AL51: 0 | AW51: 2022-08-05 | AY51: 409800 | AZ51: -409800 | BA51: 163920 | BB51: 40980 | BC51: 6 | BD51: 409800 | BE51: 0 | BF51: Yes | BG51: No | BH51: 163920 | BI51: 0 | BO51: 0 | BQ51: No budget information has been provided.
E52: DeschutesDeschutes County Health Services | F52: Deschutes | G52: 17 | H52: Deschutes | I52: 09 | J52: 177290 | K52: Deschutes County Health Services | L52: Deschutes County | M52: 040 | Q52: TRUE | R52: 170856 | AA52: 177290 | AB52: 177290-0 | AC52: 2022-09-07 | AF52: 2022-07-07 | AG52: 2022-07-01 | AH52: 2022-07-01 | AI52: Yes | AJ52: Yes | AK52: Complete | AL52: 0 | AW52: 2022-07-31 | AY52: 2890046 | AZ52: -2890046 | BA52: 481674.35 | BB52: 481674.33 | BC52: 5 | BD52: 2890046 | BE52: 0 | BF52: Yes | BG52: No | BH52: 0 | BJ52: 2066508 | BK52: 20000 | BL52: 470806 | BM52: 70000 | BN52: 262731 | BO52: 2890045 | BP52: 1 | BR52: 0.7150435374 | BS52: 0.006920307469 | BT52: 0.1629061139 | BU52: 0.02422107614 | BV52: 0.09090896509
E53: DeschutesHealing Reins Therapeutic Riding Center | F53: Deschutes | G53: 17 | H53: Deschutes | I53: 09 | J53: 177292 | K53: Healing Reins Therapeutic Riding Center | L53: Healing Reins Therapeutic Riding Center, Inc. | M53: 056 | N53: TRUE | O53: 2023-01-04 | P53: Valid | V53: 2023-04-01 | W53: -1 | X53: 2023-07-21 | Y53: Yes | AA53: 177292 | AB53: 177292-0 | AC53: 2022-08-02 | AF53: 2022-07-07 | AG53: 2022-07-01 | AH53: 2022-07-01 | AI53: Yes | AJ53: Yes | AK53: Complete | AL53: 0 | AW53: 2022-07-31 | AY53: 367135 | AZ53: -367135 | BA53: 146854 | BB53: 36713.5 | BC53: 6 | BD53: 367135 | BE53: 0 | BF53: Yes | BG53: No | BH53: 146854 | BI53: 0 | BJ53: 247911 | BK53: 12346 | BL53: 28201 | BM53: 78677 | BN53: 0 | BO53: 367135 | BP53: 0 | BR53: 0.6752584199 | BS53: 0.03362795702 | BT53: 0.07681370613 | BU53: 0.2142999169 | BV53: 0
E54: DeschutesIdeal Option | F54: Deschutes | G54: 17 | H54: Deschutes | I54: 09 | J54: 177301 | K54: Ideal Option | L54: Ideal Option PLLC | M54: 061 | N54: TRUE | O54: 2023-06-13 | P54: Valid | V54: 2023-05-01 | W54: 2023-05-01 | X54: 2023-05-01 | Y54: Yes | AA54: 177301 | AB54: 177301-0 | AC54: 2022-08-19 | AF54: 2022-07-07 | AG54: 2022-07-06 | AH54: 2022-07-06 | AI54: Yes | AJ54: Yes | AK54: Complete | AL54: 0 | AW54: 2022-08-05 | AY54: 1170164 | AZ54: -1170164 | BA54: 468065.6 | BB54: 117016.4 | BC54: 6 | BD54: 1170164 | BE54: 0 | BF54: Yes | BG54: No | BH54: 0 | BJ54: 318500 | BK54: 0 | BL54: 810414 | BM54: 41250 | BN54: 0 | BO54: 1170164 | BP54: 0 | BR54: 0.2721840699 | BS54: 0 | BT54: 0.692564461 | BU54: 0.03525146902 | BV54: 0
E55: DeschutesRimrock Trails Treatment Services | F55: Deschutes | G55: 17 | H55: Deschutes | I55: 09 | J55: 177288 | K55: Rimrock Trails Treatment Services | L55: Rimrock Trails Treatment Services | M55: 119 | N55: TRUE | O55: 2022-11-07 | P55: Valid | AA55: 177288 | AB55: 177288-0 | AC55: 2022-08-08 | AF55: 2022-07-07 | AG55: 2022-07-06 | AH55: 2022-07-06 | AI55: Yes | AJ55: Yes | AK55: Complete | AL55: 0 | AW55: 2022-08-05 | AY55: 1190079.69 | AZ55: -1190079.69 | BA55: 476031.93 | BB55: 119007.96 | BC55: 6 | BD55: 1190079.69 | BE55: 0 | BF55: Yes | BG55: No | BH55: 476031.93 | BI55: 0 | BJ55: 908774.08 | BK55: 55242 | BL55: 40947 | BM55: 76927.55 | BN55: 108189.06 | BO55: 1190079.69 | BP55: 0 | BR55: 0.7636245603 | BS55: 0.04641874024 | BT55: 0.03440693959 | BU55: 0.06464067125 | BV55: 0.09090908862
E56: DouglasAdapt | F56: Douglas | G56: 19 | H56: Douglas | I56: 10 | J56: 177084 | K56: Adapt | L56: Adapt | M56: 001 | N56: TRUE | O56: 2023-06-10 | P56: Valid | Q56: TRUE | R56: 172298 | AA56: 177084 | AB56: 177084-0 | AC56: 2022-07-12 | AD56: 2022-07-18 | AE56: 2022-08-17 | AF56: 2022-08-18 | AG56: 2022-08-16 | AH56: 2022-08-18 | AI56: Yes | AJ56: Yes | AK56: Complete | AL56: 0 | AW56: 2022-09-15 | AX56: 7747527 | AY56: 7747527 | AZ56: 0 | BA56: 3099010.8 | BB56: 774752.7 | BC56: 6 | BD56: 7747527 | BE56: 0 | BF56: Yes | BG56: No | BH56: 0 | BJ56: 1818000 | BK56: 209000 | BL56: 1100527 | BM56: 4620000 | BN56: 0 | BO56: 7747527 | BP56: 0 | BR56: 0.234655523 | BS56: 0.02697635 | BT56: 0.1420488112 | BU56: 0.5963193158 | BV56: 0
E57: DouglasBoulder Care, Inc. | F57: Douglas | G57: 19 | H57: Douglas | I57: 10 | J57: 177087 | K57: Boulder Care, Inc. | L57: Boulder Care, Inc. | M57: 010 | N57: TRUE | O57: 2022-11-25 | P57: Valid | W57: 2023-05-07 | X57: 2023-05-07 | Y57: No | Z57: No workers compensation amount | AA57: 177087 | AB57: 177087-0 | AC57: 2022-07-18 | AD57: 2022-07-18 | AE57: 2022-08-17 | AF57: 2022-08-18 | AG57: 2022-08-16 | AH57: 2022-08-18 | AI57: Yes | AJ57: Yes | AK57: Complete | AL57: 0 | AW57: 2022-09-15 | AX57: 210251 | AY57: 210251 | AZ57: 0 | BA57: 35041.85 | BB57: 35041.83 | BC57: 5 | BD57: 210251 | BE57: 0 | BF57: Yes | BG57: No | BH57: 35041.85 | BI57: 0 | BO57: 0 | BQ57: No budget has been uploaded. Only narratives.
E58: DouglasHIV Alliance | F58: Douglas | G58: 19 | H58: Douglas | I58: 10 | J58: 177089 | K58: HIV Alliance | L58: HIV Alliance | M58: 058 | N58: TRUE | O58: 2022-09-21 | P58: Valid | Q58: TRUE | R58: 172261 | AA58: 177089 | AB58: 177089-0 | AC58: 2022-07-11 | AD58: 2022-07-18 | AE58: 2022-08-17 | AF58: 2022-08-18 | AG58: 2022-08-18 | AH58: 2022-08-18 | AI58: Yes | AJ58: Yes | AK58: Complete | AL58: 0 | AW58: 2022-09-17 | AX58: 575371 | AY58: 575371 | AZ58: 0 | BA58: 230148.4 | BB58: 57537.1 | BC58: 6 | BD58: 575371 | BE58: 0 | BF58: Yes | BG58: No | BH58: 0 | BJ58: 331968 | BK58: 2500 | BL58: 84250 | BM58: 0 | BN58: 52306 | BO58: 471024 | BP58: 104347 | BQ58: Does not add up to total | BR58: 0.7047793743 | BS58: 0.005307585176 | BT58: 0.1788656204 | BU58: 0 | BV58: 0.1110474201
E59: GilliamBoulder Care, Inc. | F59: Gilliam | G59: 21 | H59: Gilliam | I59: 11 | J59: 176484 | K59: Boulder Care, Inc. | L59: Boulder Care, Inc. | M59: 010 | N59: TRUE | O59: 2022-11-25 | P59: Valid | W59: 2023-05-07 | X59: 2023-05-07 | Y59: No | Z59: No workers compensation amount | AA59: 176484 | AB59: 176484-0 | AC59: 2022-06-13 | AD59: 2022-06-13 | AE59: 2022-07-13 | AF59: 2022-06-22 | AG59: 2022-06-21 | AH59: 2022-06-22 | AI59: Yes | AJ59: Yes | AK59: Complete | AL59: 0 | AW59: 2022-07-21 | AX59: 40000 | AY59: 40000 | AZ59: 0 | BA59: 16000 | BB59: 4000 | BC59: 6 | BD59: 40000 | BE59: 0 | BF59: Yes | BG59: No | BH59: 16000 | BI59: 0 | BN59: 0 | BO59: 0 | BQ59: No budget has been uploaded. Only narratives.
E60: GilliamCommunity Counseling Solutions | F60: Gilliam | G60: 21 | H60: Gilliam | I60: 11 | J60: 176480 | K60: Community Counseling Solutions | L60: Community Counseling Solutions | M60: 031 | N60: TRUE | O60: 2022-11-02 | P60: Valid | AA60: 176480 | AB60: 176480-0 | AC60: 2022-06-13 | AD60: 2022-06-13 | AE60: 2022-07-13 | AF60: 2022-06-22 | AG60: 2022-06-22 | AH60: 2022-06-22 | AI60: Yes | AJ60: Yes | AK60: Complete | AL60: 0 | AW60: 2022-07-22 | AX60: 710000 | AY60: 710000 | AZ60: 0 | BA60: 284000 | BB60: 71000 | BC60: 6 | BD60: 710000 | BE60: 0 | BF60: Yes | BG60: No | BH60: 284000 | BI60: 0 | BJ60: 377926 | BK60: 0 | BL60: 292875 | BM60: 39199 | BN60: 0 | BO60: 710000 | BP60: 0 | BR60: 0.5322901408 | BS60: 0 | BT60: 0.4125 | BU60: 0.05520985915 | BV60: 0
E61: GrantBoulder Care, Inc. | F61: Grant | G61: 23 | H61: Grant | I61: 12 | J61: 176486 | K61: Boulder Care, Inc. | L61: Boulder Care, Inc. | M61: 010 | N61: TRUE | O61: 2022-11-25 | P61: Valid | W61: 2023-05-07 | X61: 2023-05-07 | Y61: No | Z61: No workers compensation amount | AA61: 176486 | AB61: 176486-0 | AC61: 2022-06-13 | AD61: 2022-06-13 | AE61: 2022-07-13 | AF61: 2022-06-22 | AG61: 2022-06-21 | AH61: 2022-06-22 | AI61: Yes | AJ61: Yes | AK61: Complete | AL61: 0 | AW61: 2022-07-21 | AX61: 40000 | AY61: 40000 | AZ61: 0 | BA61: 16000 | BB61: 4000 | BC61: 6 | BD61: 40000 | BE61: 0 | BF61: Yes | BG61: No | BH61: 16000 | BI61: 0 | BO61: 0 | BQ61: No budget has been uploaded. Only narratives.
E62: GrantCommunity Counseling Solutions | F62: Grant | G62: 23 | H62: Grant | I62: 12 | J62: 176488 | K62: Community Counseling Solutions | L62: Community Counseling Solutions | M62: 031 | N62: TRUE | O62: 2022-11-02 | P62: Valid | AA62: 176488 | AB62: 176488-0 | AC62: 2022-06-08 | AD62: 2022-06-13 | AE62: 2022-07-13 | AF62: 2022-06-22 | AG62: 2022-06-22 | AH62: 2022-06-22 | AI62: Yes | AJ62: Yes | AK62: Complete | AL62: 0 | AW62: 2022-07-22 | AX62: 710000 | AY62: 710000 | AZ62: 0 | BA62: 284000 | BB62: 71000 | BC62: 6 | BD62: 710000 | BE62: 0 | BF62: Yes | BG62: No | BH62: 568000 | BI62: 284000 | BJ62: 337384 | BK62: 0 | BL62: 304994 | BM62: 67622 | BN62: 0 | BO62: 710000 | BP62: 0 | BR62: 0.4751887324 | BS62: 0 | BT62: 0.4295690141 | BU62: 0.09524225352 | BV62: 0
E63: HarneySymmetry Care, Inc. | F63: Harney | G63: 25 | H63: Harney | I63: 13 | J63: 176143 | K63: Symmetry Care, Inc. | L63: Symmetry Care, Inc. | M63: 130 | N63: TRUE | O63: 2023-04-12 | P63: Valid | AA63: 176143 | AB63: 176143-0 | AC63: 2022-05-24 | AD63: 2022-05-24 | AE63: 2022-06-23 | AG63: N/A | AH63: N/A | AI63: No MOU Required | AJ63: No MOU Required | AK63: Complete | AL63: 0 | AW63: 2022-06-23 | AX63: 857711.54 | AY63: 857711.54 | AZ63: 0 | BA63: 343084.64 | BB63: 85771.15 | BC63: 6 | BD63: 857711.54 | BE63: 0 | BF63: Yes | BG63: No | BH63: 343084.64 | BI63: 0 | BJ63: 70000 | BL63: 280711 | BM63: 1257000 | BO63: 1607711 | BP63: -749999.46 | BQ63: Need to provide a revised budget | BR63: 0.04354016362 | BS63: 0 | BT63: 0.1746028982 | BU63: 0.7818569382 | BV63: 0
E64: Hood River CountyColumbia Gorge Health Council | F64: Hood River | G64: 27 | H64: Hood River County | I64: 14 | J64: 2714029 | K64: Columbia Gorge Health Council | L64: Columbia Gorge Health Council | M64: 029 | N64: TRUE | O64: 2022-08-20 | P64: Expired | AB64: -0 | AK64: Pending Grant Agreement Execution | AL64: 0 | AY64: 0 | AZ64: 0 | BA64: 0 | BB64: 0 | BD64: 0 | BE64: 0 | BF64: No | BG64: No | BH64: 0 | BJ64: 0 | BK64: 0 | BL64: 0 | BM64: 0 | BN64: 0 | BO64: 0 | BQ64: They have withdrawn from M110
E65: Hood River CountyHood River County Health Dept. | F65: Hood River | G65: 27 | H65: Hood River County | I65: 14 | J65: 176749 | K65: Hood River County Health Dept. | L65: Hood River County Health Department | M65: 059 | AA65: 176749 | AB65: 176749-0 | AC65: 2022-08-14 | AF65: 2022-09-09 | AK65: Within 30 Days | AL65: 0 | AX65: 81435 | AY65: 81435 | AZ65: 0 | BA65: 32574 | BB65: 8143.5 | BC65: 6 | BD65: 81435 | BE65: 0 | BF65: No | BG65: Paid without MOU | BH65: 32574 | BI65: 0 | BJ65: 77864.04 | BK65: 0 | BL65: 3571.02 | BM65: 0 | BN65: 0 | BO65: 81435.06 | BP65: -0.06 | BR65: 0.9561488627 | BS65: 0 | BT65: 0.04385113734 | BU65: 0 | BV65: 0
E66: Hood River CountyMid-Columbia Center for Living | F66: Hood River | G66: 27 | H66: Hood River County | I66: 14 | J66: 176750 | K66: Mid-Columbia Center for Living | M66: 079 | AA66: 176750 | AB66: 176750-0 | AC66: 2022-06-22 | AF66: 2022-09-09 | AK66: Within 30 Days | AL66: 0 | AX66: 950914 | AY66: 950914 | AZ66: 0 | BA66: 158485.7 | BB66: 158485.66 | BC66: 5 | BD66: 950914 | BE66: 0 | BF66: No | BG66: Paid without MOU | BH66: 158485.7 | BI66: 0 | BJ66: 430110 | BK66: 0 | BL66: 94359 | BM66: 300000 | BN66: 0 | BO66: 824469 | BP66: 126445 | BQ66: They need to modify their budget by adding the 126445 amount | BR66: 0.5216812276 | BS66: 0 | BT66: 0.1144482085 | BU66: 0.363870564 | BV66: 0
E67: =_xlfn.CONCAT(H67,K67) -> Hood River CountyOne Community Health | F67: Hood River | G67: 27 | H67: Hood River County | I67: 14 | J67: 176752 | K67: One Community Health | L67: One Community Health | M67: 093 | N67: TRUE | O67: 2023-03-12 | P67: Valid | AA67: 176752 | AB67: 176752-0 | AC67: Pending | AF67: 2022-09-09 | AK67: Within 30 Days | AL67: 0 | AX67: 121637 | AY67: 121637 | AZ67: 0 | BA67: 48654.8 | BB67: 12163.7 | BC67: 6 | BD67: 121637 | BE67: 0 | BF67: No | BG67: No | BH67: 0 | BJ67: 225987.94 | BK67: 11770 | BL67: 10324 | BM67: 0 | BN67: 0 | BO67: 248081.94 | BP67: -126444.94 | BQ67: They need to provide a revised budget. | BR67: 0.9109407158 | BS67: 0.04744400177 | BT67: 0.04161528243 | BU67: 0 | BV67: 0
E68: Hood River CountyProvidence Hood River | F68: Hood River | G68: 27 | H68: Hood River County | I68: 14 | J68: 176755 | K68: Providence Hood River | L68: Providence Hood River Memorial Hospital | M68: 109 | N68: TRUE | O68: 2023-04-29 | P68: Valid | V68: 2023-01-01 | W68: 2023-06-01 | X68: 2023-06-01 | Y68: Yes | AA68: 176755 | AB68: 176755-0 | AC68: 2022-07-09 | AF68: 2022-09-09 | AK68: Within 30 Days | AL68: 0 | AX68: 147181 | AY68: 147181 | AZ68: 0 | BA68: 58872.4 | BB68: 14718.1 | BC68: 6 | BD68: 147181 | BE68: 0 | BF68: No | BG68: Paid without MOU | BH68: 58872.4 | BI68: 0 | BJ68: 103297 | BK68: 16904 | BL68: 26980 | BM68: 0 | BN68: 0 | BO68: 147181 | BP68: 0 | BR68: =IFERROR(BJ68/$BO68,"") -> 0.7018365142 | BS68: 0.1148517811 | BT68: =IFERROR(BL68/$BO68,"") -> 0.1833117046 | BU68: =IFERROR(BM68/$BO68,"") -> 0 | BV68: =IFERROR(BN68/$BO68,"") -> 0
E69: Jackson CountyStabbin' Wagon | F69: Jackson | G69: 29 | H69: Jackson County | I69: 16 | J69: 2916129 | K69: Stabbin' Wagon | L69: Stabbin Wagon | M69: 129 | N69: TRUE | O69: 2023-07-20 | P69: Valid | AB69: -0 | AK69: Pending Grant Agreement Execution | AL69: 0 | AX69: 582396 | AY69: 582396 | AZ69: 0 | BF69: No | BG69: No | BH69: 0 | BJ69: 208034.44 | BK69: 7200 | BL69: 325561 | BM69: 42600 | BN69: 0 | BO69: 583395.44 | BP69: -999.44 | BQ69: Cannot find any Jackson County orgs in CLM | BR69: 0.3565925027 | BS69: 0.01234154316 | BT69: 0.5580451572 | BU69: 0.07302079701 | BV69: 0
E70: Jackson CountyAddiction Recovery Center | F70: Jackson | G70: 29 | H70: Jackson County | I70: 16 | J70: 2916003 | K70: Addiction Recovery Center | L70: Addiction Recovery Center, Inc. | M70: 003 | N70: TRUE | O70: 2023-04-08 | P70: Valid | Q70: TRUE | R70: 170480 | AB70: -0 | AK70: Pending Grant Agreement Execution | AL70: 0 | AX70: 1109347 | AY70: 1109347 | AZ70: 0 | BA70: 443738.8 | BB70: 133121.64 | BC70: 5 | BD70: 1109347 | BE70: 0 | BF70: No | BG70: No | BH70: 0 | BJ70: 1109347.49 | BK70: 0 | BL70: 0 | BM70: 0 | BN70: 0 | BO70: 1109347.49 | BP70: -0.49 | BQ70: Cannot find any Jackson County orgs in CLM | BR70: 1 | BS70: 0 | BT70: 0 | BU70: 0 | BV70: 0
E71: Jackson CountyColumbiaCare Services | F71: Jackson | G71: 29 | H71: Jackson County | I71: 16 | J71: 2916030 | K71: ColumbiaCare Services | L71: ColumbiaCare Services, Inc. | M71: 030 | N71: TRUE | O71: 2023-04-17 | P71: Valid | AB71: -0 | AK71: Pending Grant Agreement Execution | AL71: 0 | AX71: 390319 | AY71: 390319 | AZ71: 0 | BF71: No | BG71: No | BH71: 0 | BJ71: 364620 | BK71: 0 | BL71: 16448 | BM71: 9251 | BN71: 0 | BO71: 390319 | BP71: 0 | BQ71: Cannot find any Jackson County orgs in CLM | BR71: 0.9341589828 | BS71: 0 | BT71: 0.0421398907 | BU71: 0.02370112651 | BV71: 0
E72: Jackson CountyCommunity Works | F72: Jackson | G72: 29 | H72: Jackson County | I72: 16 | J72: 2916034 | K72: Community Works | L72: Community Works, Inc. | M72: 034 | N72: TRUE | O72: 2023-05-03 | P72: Valid | AB72: -0 | AK72: Pending Grant Agreement Execution | AL72: 0 | AX72: 119617 | AY72: 119617 | AZ72: 0 | BA72: 19936.2 | BB72: 19936.16 | BC72: 5 | BD72: 119617 | BE72: 0 | BF72: No | BG72: No | BH72: 0 | BJ72: 103564.44 | BK72: 0 | BL72: 0 | BM72: 0 | BN72: 16052.49 | BO72: 119616.93 | BP72: 0.07000000001 | BQ72: Cannot find any Jackson County orgs in CLM | BR72: 0.8658008528 | BS72: 0 | BT72: 0 | BU72: 0 | BV72: 0.1341991472
E73: Jackson CountyCompass House | F73: Jackson | G73: 29 | H73: Jackson County | I73: 16 | J73: 2916035 | K73: Compass House | L73: Compass House, Inc. | M73: 035 | N73: TRUE | O73: 2023-03-14 | P73: Valid | AB73: -0 | AK73: Pending Grant Agreement Execution | AL73: 0 | AX73: 76480 | AY73: 76480 | AZ73: 0 | BF73: No | BG73: No | BH73: 0 | BJ73: 72666 | BK73: 0 | BL73: 1564.05 | BM73: 2250 | BN73: 0 | BO73: 76480.05 | BP73: -0.05 | BQ73: Cannot find any Jackson County orgs in CLM | BR73: 0.950130132 | BS73: 0 | BT73: 0.02045043119 | BU73: 0.02941943683 | BV73: 0
E74: Jackson CountyFamily Nurturing Center | F74: Jackson | G74: 29 | H74: Jackson County | I74: 16 | J74: 2916045 | K74: Family Nurturing Center | L74: The Family Nurturing Center | M74: 045 | N74: TRUE | O74: 2022-10-29 | P74: Valid | AB74: -0 | AK74: Pending Grant Agreement Execution | AL74: 0 | AX74: 1367463 | AY74: 1367463 | AZ74: 0 | BF74: No | BG74: No | BH74: 0 | BJ74: 1023423.06 | BK74: 12000 | BL74: 287040 | BM74: 45000 | BN74: 0 | BO74: 1367463.06 | BP74: -0.06000000006 | BQ74: Cannot find any Jackson County orgs in CLM | BR74: 0.7484100229 | BS74: 0.008775374159 | BT74: 0.2099069499 | BU74: 0.0329076531 | BV74: 0
E75: Jackson CountyHIV Alliance | F75: Jackson | G75: 29 | H75: Jackson County | I75: 16 | J75: 2916058 | K75: HIV Alliance | L75: HIV Alliance | M75: 058 | N75: TRUE | O75: 2022-09-21 | P75: Valid | Q75: TRUE | R75: 172261 | AB75: -0 | AK75: Pending Grant Agreement Execution | AL75: 0 | AX75: 104358 | AY75: 75240 | AZ75: 29118 | BF75: No | BG75: No | BH75: 0 | BJ75: 0 | BK75: 0 | BL75: 69871 | BM75: 25000 | BN75: 9487 | BO75: 104358 | BP75: -29118 | BQ75: Cannot find any Jackson County orgs in CLM | BR75: 0 | BS75: 0 | BT75: 0.669531804 | BU75: 0.2395599762 | BV75: 0.09090821978
E76: Jackson CountyJackson County Health & Human Services | F76: Jackson | G76: 29 | H76: Jackson County | I76: 16 | J76: 2916063 | K76: Jackson County Health & Human Services | L76: Jackson County Health & Human Services | M76: 063 | AB76: -0 | AK76: Pending Grant Agreement Execution | AL76: 0 | AX76: 610527 | AY76: 610527 | AZ76: 0 | BF76: No | BG76: No | BH76: 0 | BJ76: 404264.05 | BK76: 0 | BL76: 157000 | BM76: 0 | BN76: 49263 | BO76: 610527.05 | BP76: -0.05000000005 | BQ76: Cannot find any Jackson County orgs in CLM | BR76: 0.6621558373 | BS76: 0 | BT76: 0.2571548632 | BU76: 0 | BV76: 0.08068929952
E77: Jackson CountyLa Clinica | F77: Jackson | G77: 29 | H77: Jackson County | I77: 16 | J77: 2916067 | K77: La Clinica | L77: La Clinica del Valle Family Health Center, Inc | M77: 067 | N77: TRUE | O77: 2022-10-26 | P77: Valid | Q77: TRUE | R77: 170798 | AB77: -0 | AK77: Pending Grant Agreement Execution | AL77: 0 | AX77: 1502327 | AY77: 1502327 | AZ77: 0 | BF77: No | BG77: No | BH77: 0 | BJ77: 1188090 | BK77: 4087.44 | BL77: 116343.9 | BM77: 0 | BN77: 193806 | BO77: 1502327.34 | BP77: -0.3400000001 | BQ77: Cannot find any Jackson County orgs in CLM | BR77: 0.7908329752 | BS77: 0.002720738611 | BT77: 0.0774424434 | BU77: 0 | BV77: 0.1290038428
E78: Jackson CountyMax's Mission | F78: Jackson | G78: 29 | H78: Jackson County | I78: 16 | J78: 2916076 | K78: Max's Mission | L78: Max's Mission | M78: 076 | N78: TRUE | O78: 2022-11-28 | P78: Valid | Q78: TRUE | R78: 170817 | AB78: -0 | AK78: Pending Grant Agreement Execution | AL78: 0 | AX78: 719798 | AY78: 719798 | AZ78: 0 | BF78: No | BG78: No | BH78: 0 | BJ78: 332370 | BK78: 1800 | BL78: 301229 | BM78: 69530 | BN78: 0 | BO78: 704929 | BP78: 14869 | BQ78: Spreadsheet does not add correctly | BR78: 0.4714942923 | BS78: 0.002553448645 | BT78: 0.4273182122 | BU78: 0.09863404683 | BV78: 0
E79: Jackson CountyOasis Center of Rogue Valley | F79: Jackson | G79: 29 | H79: Jackson County | I79: 16 | J79: 2916090 | K79: Oasis Center of Rogue Valley | L79: Oasis Center of Rogue Valley | M79: 090 | N79: TRUE | O79: 2022-11-14 | P79: Valid | Q79: TRUE | R79: 170797 | AB79: -0 | AK79: Pending Grant Agreement Execution | AL79: 0 | AX79: 1425981 | AY79: 1425981 | AZ79: 0 | BF79: No | BG79: No | BH79: 0 | BJ79: 483931.2 | BK79: 5750 | BL79: 152900 | BM79: 783400 | BN79: 0 | BO79: 1425981.2 | BP79: -0.2 | BQ79: Cannot find any Jackson County orgs in CLM | BR79: 0.339367167 | BS79: 0.004032311225 | BT79: 0.107224415 | BU79: 0.5493761068 | BV79: 0
E80: Jackson CountyOnTrack, Inc. | F80: Jackson | G80: 29 | H80: Jackson County | I80: 16 | J80: 2916094 | K80: OnTrack, Inc. | L80: OnTrack, Inc. | M80: 094 | N80: TRUE | O80: 2023-05-12 | P80: Valid | AB80: -0 | AK80: Pending Grant Agreement Execution | AL80: 0 | AX80: 1541627.3 | AY80: 1428204 | AZ80: 113423.3 | BF80: No | BG80: No | BH80: 0 | BJ80: 733137.63 | BK80: 42666.67 | BL80: 70823 | BM80: 725000 | BN80: 0 | BO80: 1571627.3 | BP80: -143423.3 | BQ80: Supplies are not accounted for in the total it appears | BR80: 0.466483135 | BS80: 0.02714808403 | BT80: 0.04506348293 | BU80: 0.461305298 | BV80: 0
E81: Jackson CountyOptions for Homeless Residents of Ashland | F81: Jackson | G81: 29 | H81: Jackson County | I81: 16 | J81: 2916095 | K81: Options for Homeless Residents of Ashland | L81: Options for Homeless Residents of Ashland | M81: 095 | O81: 2022-06-18 | P81: Expired | AB81: -0 | AK81: Pending Grant Agreement Execution | AL81: 0 | AX81: 563413 | AY81: 327531 | AZ81: 235882 | BF81: No | BG81: No | BH81: 0 | BJ81: 374453 | BO81: 374453 | BP81: -46922 | BQ81: Submitted budget is unclear | BR81: 1 | BS81: 0 | BT81: 0 | BU81: 0 | BV81: 0
E82: Jackson CountyOptions for Southern Oregon, Inc. | F82: Jackson | G82: 29 | H82: Jackson County | I82: 16 | J82: 2916096 | K82: Options for Southern Oregon, Inc. | L82: Options for Southern Oregon, Inc. | M82: 096 | N82: TRUE | O82: 2022-12-07 | P82: Valid | AB82: -0 | AK82: Pending Grant Agreement Execution | AL82: 0 | AX82: 303873 | AY82: 303873 | AZ82: 0 | BF82: No | BG82: No | BH82: 0 | BJ82: 269848 | BK82: 0 | BL82: 6400 | BM82: 0 | BN82: 27624.8 | BO82: 303872.8 | BP82: 0.2 | BQ82: Cannot find any Jackson County orgs in CLM | BR82: 0.888029465 | BS82: 0 | BT82: 0.02106144413 | BU82: 0 | BV82: 0.09090909091
E83: Jackson CountyPathfinder Network of Oregon | F83: Jackson | G83: 29 | H83: Jackson County | I83: 16 | J83: 2916 | K83: Pathfinder Network of Oregon | AB83: -0 | AF83: #NO MATCH | AK83: Pending Grant Agreement Execution | AL83: 0 | AX83: #NO MATCH | AY83: 1349947 | AZ83: #INVALID OPERATION | BF83: No | BG83: No | BH83: 0 | BJ83: 743843 | BK83: 12850 | BL83: 400531 | BM83: 70000 | BN83: 122723 | BO83: 1349947 | BP83: 0 | BQ83: Cannot find any Jackson County orgs in CLM | BR83: 0.5510164473 | BS83: 0.009518892223 | BT83: 0.2967012779 | BU83: 0.0518538876 | BV83: 0.09090949497
E84: Jackson CountyReclaiming Lives | F84: Jackson | G84: 29 | H84: Jackson County | I84: 16 | J84: 2916115 | K84: Reclaiming Lives | L84: Reclaiming Lives | M84: 115 | N84: TRUE | O84: 2023-01-18 | P84: Valid | AB84: -0 | AK84: Pending Grant Agreement Execution | AL84: 0 | AX84: 352211 | AY84: 352211 | AZ84: 0 | BA84: 140844.4 | BB84: 42265.32 | BC84: 5 | BD84: 352171 | BE84: 40 | BF84: No | BG84: No | BH84: 0 | BJ84: 374453 | BK84: 0 | BL84: 229066 | BM84: 0 | BN84: 0 | BO84: 603519 | BP84: -251308 | BQ84: Cannot find any Jackson County orgs in CLM | BR84: 0.6204493976 | BS84: 0 | BT84: 0.3795506024 | BU84: 0 | BV84: 0
E85: Jackson CountyRogue Community Health | F85: Jackson | G85: 29 | H85: Jackson County | I85: 16 | J85: 2916121 | K85: Rogue Community Health | L85: Rogue Community Health | M85: 121 | N85: TRUE | O85: 2023-01-31 | P85: Valid | AB85: -0 | AK85: Pending Grant Agreement Execution | AL85: 0 | AX85: 5010125 | AY85: 5010125 | AZ85: 0 | BF85: No | BG85: No | BH85: 0 | BJ85: 2480100 | BK85: 0 | BL85: 2530025 | BM85: 0 | BN85: 0 | BO85: 5010125 | BP85: 0 | BQ85: Cannot find any Jackson County orgs in CLM | BR85: 0.4950175894 | BS85: 0 | BT85: 0.5049824106 | BU85: 0 | BV85: 0
E86: Jackson CountyYouth ERA | F86: Jackson | G86: 29 | H86: Jackson County | I86: 16 | J86: 2916157 | K86: Youth ERA | L86: Youth ERA | M86: 157 | N86: TRUE | O86: 2022-10-06 | P86: Valid | AB86: -0 | AK86: Pending Grant Agreement Execution | AL86: 0 | AX86: 349553 | AY86: 349553 | AZ86: 0 | BA86: 139821.2 | BB86: 41946.36 | BC86: 5 | BD86: 349553 | BE86: 0 | BF86: No | BG86: No | BH86: 0 | BJ86: 252649 | BK86: 5150 | BL86: 46162 | BM86: 0 | BN86: 45592 | BO86: 349553 | BP86: 0 | BQ86: Cannot find any Jackson County orgs in CLM | BR86: 0.7227773757 | BS86: 0.01473310199 | BT86: 0.1320600882 | BU86: 0 | BV86: 0.1304294342
E87: JeffersonBestCare Treatment Services, Inc. | F87: Jefferson | G87: 31 | H87: Jefferson | I87: 17 | J87: 176375 | K87: BestCare Treatment Services, Inc. | L87: BestCare Treatment Services, Inc. | M87: 009 | N87: TRUE | O87: 2023-03-13 | P87: Valid | Q87: TRUE | R87: 170901 | AA87: 176375 | AB87: 176375-0 | AC87: 2022-05-31 | AD87: 2022-05-31 | AE87: 2022-06-30 | AG87: N/A | AH87: N/A | AI87: No MOU Required | AJ87: No MOU Required | AK87: Complete | AL87: 0 | AW87: 2022-06-30 | AX87: 2007563.08 | AY87: 2007563.08 | AZ87: 0 | BA87: 803025.232 | BB87: 200756.308 | BC87: 6 | BD87: 2007563.08 | BE87: 0 | BF87: Yes | BG87: No | BH87: 803025.23 | BI87: -0.001999999979 | BJ87: 1340033.22 | BK87: 0 | BL87: 149400 | BM87: 518129.98 | BN87: 0 | BO87: 2007563.2 | BP87: -0.1199999999 | BR87: 0.6674924207 | BS87: 0 | BT87: 0.0744185787 | BU87: 0.2580890006 | BV87: 0
E88: JosephineAdapt | F88: Josephine | G88: 33 | H88: Josephine | I88: 18 | J88: 177215 | K88: Adapt | L88: Adapt | M88: 001 | N88: TRUE | O88: 2023-06-10 | P88: Valid | Q88: TRUE | R88: 172298 | AA88: 177215 | AB88: 177215-0 | AC88: 2022-07-24 | AF88: 2022-07-28 | AG88: 2022-07-27 | AH88: 2022-07-28 | AI88: Yes | AJ88: Yes | AK88: Complete | AL88: 0 | AW88: 2022-08-26 | AY88: 4083750 | AZ88: -4083750 | BA88: 1633500 | BB88: 408375 | BC88: 6 | BD88: 4083750 | BE88: 0 | BF88: Yes | BG88: No | BH88: 1633500 | BI88: 0 | BJ88: 744000 | BK88: 23000 | BL88: 350000 | BM88: 2966750 | BN88: 0 | BO88: 4083750 | BP88: 0 | BR88: 0.1821854913 | BS88: 0.005632078359 | BT88: 0.08570554025 | BU88: 0.7264768901 | BV88: 0
E89: JosephineGrace Roots | F89: Josephine | G89: 33 | H89: Josephine | I89: 18 | J89: 177216 | K89: Grace Roots | L89: Grace Roots | M89: 052 | N89: TRUE | O89: 2023-03-04 | P89: Valid | W89: 2023-08-24 | X89: 2023-08-24 | Y89: No | Z89: No workers compensation | AA89: 177216 | AB89: 177216-0 | AC89: 2022-08-08 | AF89: 2022-07-28 | AG89: 2022-07-26 | AH89: 2022-07-28 | AI89: Yes | AJ89: Yes | AK89: Complete | AL89: 0 | AW89: 2022-08-25 | AY89: 1146250 | AZ89: -1146250 | BA89: 458500 | BB89: 114625 | BC89: 6 | BD89: 1146250 | BE89: 0 | BF89: Yes | BG89: No | BH89: 458500 | BI89: 0 | BJ89: 327250 | BK89: 5000 | BL89: 69000 | BM89: 745000 | BN89: 0 | BO89: 1146250 | BP89: 0 | BR89: 0.2854961832 | BS89: 0.004362050164 | BT89: 0.06019629226 | BU89: 0.6499454744 | BV89: 0
E90: JosephineGrants Pass Sobering Center | F90: Josephine | G90: 33 | H90: Josephine | I90: 18 | J90: 177217 | K90: Grants Pass Sobering Center | L90: Grants Pass Sobering Center, Inc. | M90: 053 | N90: TRUE | O90: 2022-11-07 | P90: Valid | Q90: TRUE | R90: 172258 | AA90: 177217 | AB90: 177217-0 | AC90: 2022-07-24 | AF90: 2022-07-28 | AG90: 2022-07-28 | AH90: 2022-07-28 | AI90: Yes | AJ90: Yes | AK90: Complete | AL90: 0 | AW90: 2022-08-27 | AY90: 229453.72 | AZ90: -229453.72 | BA90: 91781.5 | BB90: 22945.37 | BC90: 6 | BD90: 229453.72 | BE90: 0 | BF90: Yes | BG90: No | BH90: 91781.5 | BI90: 0 | BJ90: 206312.76 | BK90: 2025 | BL90: 21115.98 | BM90: 0 | BN90: 0 | BO90: 229453.74 | BP90: -0.01999999999 | BQ90: Budget table is off by 2 cents | BR90: 0.8991475144 | BS90: 0.008825308317 | BT90: 0.09202717724 | BU90: 0 | BV90: 0
E91: JosephineHIV Alliance | F91: Josephine | G91: 33 | H91: Josephine | I91: 18 | J91: 177226 | K91: HIV Alliance | L91: HIV Alliance | M91: 058 | N91: TRUE | O91: 2022-09-21 | P91: Valid | Q91: TRUE | R91: 172261 | AA91: 177226 | AB91: 177226-0 | AC91: 2022-07-24 | AF91: 2022-07-28 | AG91: 2022-07-27 | AH91: 2022-07-28 | AI91: Yes | AJ91: Yes | AK91: Complete | AL91: 0 | AW91: 2022-08-26 | AY91: 323280 | AZ91: -323280 | BA91: 129312 | BB91: 32328 | BC91: 6 | BD91: 323280 | BE91: 0 | BF91: Yes | BG91: No | BH91: 129312 | BI91: 0 | BJ91: 170580 | BK91: 2000 | BL91: 61303 | BM91: 60000 | BN91: 29388 | BO91: 323271 | BP91: 9 | BQ91: Budget table needs a revision. $9 needs to be added in | BR91: 0.5276687361 | BS91: 0.006186759716 | BT91: 0.1896334654 | BU91: 0.1856027915 | BV91: 0.09090824726
E92: JosephineMax's Mission | F92: Josephine | G92: 33 | H92: Josephine | I92: 18 | J92: 177228 | K92: Max's Mission | L92: Max's Mission | M92: 076 | N92: TRUE | O92: 2022-11-28 | P92: Valid | Q92: TRUE | R92: 170817 | AA92: 177228 | AB92: 177228-0 | AC92: 2022-07-24 | AF92: 2022-07-28 | AG92: 2022-07-26 | AH92: 2022-07-28 | AI92: Yes | AJ92: Yes | AK92: Complete | AL92: 0 | AW92: 2022-08-25 | AY92: 505160 | AZ92: -505160 | BA92: 202064 | BB92: 50516 | BC92: 6 | BD92: 505160 | BE92: 0 | BF92: Yes | BG92: No | BH92: 202064 | BI92: 0 | BJ92: 158061 | BK92: 1900 | BL92: 191102 | BM92: 572615 | BN92: 0 | BO92: 923678 | BP92: -418518 | BR92: 0.1711213215 | BS92: 0.002056993887 | BT92: 0.2068924452 | BU92: 0.6199292394 | BV92: 0
E93: JosephineOnTrack, Inc. | F93: Josephine | G93: 33 | H93: Josephine | I93: 18 | J93: 177231 | K93: OnTrack, Inc. | L93: OnTrack, Inc. | M93: 094 | N93: TRUE | O93: 2023-05-12 | P93: Valid | AA93: 177231 | AB93: 177231-0 | AC93: 2022-08-16 | AF93: 2022-07-28 | AG93: 2022-07-26 | AH93: 2022-07-28 | AI93: Yes | AJ93: Yes | AK93: Complete | AL93: 0 | AW93: 2022-08-25 | AY93: 2259707.06 | AZ93: -2259707.06 | BA93: 903882.8 | BB93: 225970.71 | BC93: 6 | BD93: 2259707.06 | BE93: 0 | BF93: Yes | BG93: No | BH93: 903882.8 | BI93: 0 | BJ93: 534490.39 | BK93: 22666.67 | BL93: 106193.18 | BM93: 1625000 | BO93: 2288350.24 | BP93: -28643.18 | BQ93: If you remove the Transitional Housing Operating Costs the budget becomes correct | BR93: 0.2335701855 | BS93: 0.009905245099 | BT93: 0.04640599946 | BU93: 0.71011857 | BV93: 0
E94: JosephineOptions for Southern Oregon | F94: Josephine | G94: 33 | H94: Josephine | I94: 18 | J94: 177235 | K94: Options for Southern Oregon | L94: Options for Southern Oregon, Inc. | M94: 096 | N94: TRUE | O94: 2022-12-07 | P94: Valid | AA94: 177235 | AB94: 177235-0 | AC94: 2022-08-03 | AF94: 2022-07-28 | AG94: 2022-07-26 | AH94: 2022-07-28 | AI94: Yes | AJ94: Yes | AK94: Complete | AL94: 0 | AW94: 2022-08-25 | AY94: 1463795.2 | AZ94: -1463795.2 | BA94: 585518.08 | BB94: 146379.52 | BC94: 6 | BD94: 1463795.2 | BE94: 0 | BF94: Yes | BG94: No | BH94: 585518.08 | BI94: 0 | BJ94: 1329886 | BK94: 15555 | BL94: 111606 | BM94: 0 | BN94: 142598.2 | BO94: 1599645.2 | BP94: -135850 | BQ94: They added Nurse Practitioner training which is the exact amount of 135,850 | BR94: 0.8313631048 | BS94: 0.009724031304 | BT94: 0.06976922132 | BU94: 0 | BV94: 0.0891436426
E95: JosephineThe Family Nurturing Center | F95: Josephine | G95: 33 | H95: Josephine | I95: 18 | J95: 177236 | K95: The Family Nurturing Center | L95: The Family Nurturing Center | M95: 133 | N95: TRUE | O95: 2022-10-29 | P95: Valid | AA95: 177236 | AB95: 177236-0 | AC95: Pending | AF95: 2022-07-28 | AG95: 2022-07-27 | AH95: 2022-07-28 | AI95: Yes | AJ95: Yes | AK95: Complete | AL95: 0 | AW95: 2022-08-26 | AY95: 713619.14 | AZ95: -713619.14 | BA95: 118936.54 | BB95: 118936.52 | BC95: 5 | BD95: 713619.14 | BE95: 0 | BF95: Yes | BG95: No | BH95: 0 | BJ95: 494409.14 | BK95: 22470 | BL95: 196740 | BM95: 0.01 | BO95: 713619.15 | BP95: -0.01000000001 | BQ95: They added .01 to Capital Outlay Costs | BR95: 0.6928193281 | BS95: 0.03148738371 | BT95: 0.2756932742 | BU95: 1.401307686e-08 | BV95: 0
E96: KlamathMax's Mission | F96: Klamath | G96: 35 | H96: Klamath | I96: 19 | J96: 177228 | K96: Max's Mission | L96: Max's Mission | M96: 076 | N96: TRUE | O96: 2022-11-28 | P96: Valid | Q96: TRUE | R96: 170817 | AA96: 177228 | AB96: 177228-0 | AC96: 2022-07-24 | AF96: 2022-09-08 | AH96: 2022-09-08 | AI96: Yes | AJ96: Yes | AK96: Complete | AL96: 0 | AY96: 505160 | AZ96: -505160 | BA96: 202064 | BB96: 50516 | BC96: 6 | BD96: 505160 | BE96: 0 | BF96: Yes | BG96: No | BH96: 202064 | BI96: 0 | BJ96: 158061 | BK96: 1900 | BL96: 191102 | BM96: 572615 | BN96: 0 | BO96: 923678 | BP96: -418518 | BR96: 0.1711213215 | BS96: 0.002056993887 | BT96: 0.2068924452 | BU96: 0.6199292394 | BV96: 0
E97: KlamathRed is the Road to Wellness | F97: Klamath | G97: 35 | H97: Klamath | I97: 19 | J97: 177593 | K97: Red is the Road to Wellness | L97: Red is the Road to Wellness | M97: 117 | N97: TRUE | O97: 2023-01-06 | P97: Valid | Q97: TRUE | R97: 172262 | AA97: 177593 | AB97: 177593-0 | AC97: Pending | AF97: 2022-09-08 | AH97: 2022-09-08 | AI97: Yes | AJ97: Yes | AK97: Complete | AL97: 0 | AY97: 1552833 | AZ97: -1552833 | BA97: 621133.2 | BB97: 155283.3 | BC97: 6 | BD97: 1552833 | BE97: 0 | BF97: Yes | BG97: No | BH97: 0 | BJ97: 480000 | BK97: 34296 | BL97: 477537 | BM97: 561000 | BN97: 0 | BO97: 1552833 | BP97: 0 | BQ97: No budget in CLM | BR97: 0.3091124416 | BS97: 0.02208608395 | BT97: 0.3075263084 | BU97: 0.3612751661 | BV97: 0
E98: KlamathThe Stronghold | F98: Klamath | G98: 35 | H98: Klamath | I98: 19 | J98: 177608 | K98: The Stronghold | M98: 138 | AA98: 177608 | AB98: 177608-0 | AC98: 2022-08-23 | AF98: 2022-09-08 | AH98: 2022-09-08 | AI98: Yes | AJ98: Yes | AK98: Complete | AL98: 0 | AY98: 816371.27 | AZ98: -816371.27 | BA98: 326548.49 | BB98: 81637.13 | BC98: 6 | BD98: 816371.27 | BE98: 0 | BF98: Yes | BG98: No | BH98: 0 | BJ98: 683770.66 | BK98: 5550 | BL98: 81116.61 | BM98: 45934 | BO98: 816371.27 | BP98: 0 | BR98: 0.8375731547 | BS98: 0.00679837741 | BT98: 0.09936240162 | BU98: 0.0562660663 | BV98: 0
E99: KlamathKlamath Basin Behavioral Health | F99: Klamath | G99: 35 | H99: Klamath | I99: 19 | J99: 177588 | K99: Klamath Basin Behavioral Health | L99: Klamath Basin Behavioral Health | M99: 066 | N99: TRUE | O99: 2023-07-11 | P99: Valid | AA99: 177588 | AB99: 177588-0 | AC99: 2022-08-30 | AF99: 2022-09-08 | AH99: 2022-09-08 | AI99: Yes | AJ99: Yes | AK99: Complete | AL99: 0 | AY99: 425630 | AZ99: -425630 | BA99: 170252 | BB99: 51075.6 | BC99: 5 | BD99: 425630 | BE99: 0 | BF99: Yes | BG99: No | BH99: 0 | BJ99: 473305 | BK99: 0 | BL99: 33250 | BM99: 0 | BN99: 0 | BO99: 506555 | BP99: -80925 | BQ99: Can not find grant in CLM | BR99: 0.9343605334 | BS99: 0 | BT99: 0.06563946659 | BU99: 0 | BV99: 0
E100: KlamathLutheran Community Services | F100: Klamath | G100: 35 | H100: Klamath | I100: 19 | J100: 177595 | K100: Lutheran Community Services | L100: Lutheran Community Services Northwest | M100: 074 | N100: TRUE | O100: 2023-01-04 | P100: Valid | Q100: TRUE | R100: 170487 | V100: 2023-01-01 | W100: 2022-07-31 | X100: 2023-07-31 | Y100: Yes | AA100: 177595 | AB100: 177595-0 | AC100: 2022-08-31 | AF100: 2022-09-08 | AH100: 2022-09-08 | AI100: Yes | AJ100: Yes | AK100: Complete | AL100: 0 | AY100: 771433 | AZ100: -771433 | BA100: 128572.15 | BB100: 128572.17 | BC100: 5 | BD100: 771433 | BE100: 0 | BF100: Yes | BG100: No | BH100: 0 | BJ100: 380324 | BN100: 784613 | BO100: 1164937 | BP100: -393504 | BR100: 0.326476024 | BS100: 0 | BT100: 0 | BU100: 0 | BV100: 0.673523976
E101: KlamathTransformations | F101: Klamath | G101: 35 | H101: Klamath | I101: 19 | J101: 177603 | K101: Transformations | L101: Transformation Wellness Center | M101: 143 | N101: TRUE | O101: 2023-03-08 | P101: Valid | Q101: TRUE | R101: 170489 | AA101: 177603 | AB101: 177603-0 | AC101: Pending | AF101: 2022-09-08 | AH101: 2022-09-08 | AI101: Yes | AJ101: Yes | AK101: Complete | AL101: 0 | AY101: 1491158.84 | AZ101: -1491158.84 | BA101: 596463.56 | BB101: 149115.88 | BC101: 6 | BD101: 1491158.84 | BE101: 0 | BF101: Yes | BG101: No | BH101: 0 | BJ101: 1484587.82 | BK101: 50000 | BL101: 202800 | BO101: 1737387.82 | BP101: -246228.98 | BQ101: Budget does not match NTE amount | BR101: 0.8544942027 | BS101: 0.02877883649 | BT101: 0.1167269608 | BU101: 0 | BV101: 0
E102: LakeNorth Lake Health Center, Inc. | F102: Lake | G102: 37 | H102: Lake | I102: 20 | J102: 176492 | K102: North Lake Health Center, Inc. | L102: North Lake Health Center, Inc. | M102: 086 | N102: TRUE | O102: 2023-03-10 | P102: Valid | AA102: 176492 | AB102: 176492-0 | AC102: 2022-06-07 | AD102: 2022-06-07 | AE102: 2022-07-07 | AG102: N/A | AH102: N/A | AI102: No MOU Required | AJ102: No MOU Required | AK102: Complete | AL102: 0 | AW102: 2022-07-07 | AX102: 1233986 | AY102: 1233986.67 | AZ102: -0.6699999999 | BA102: 493594.65 | BB102: 123398.67 | BC102: 6 | BD102: 1233986.67 | BE102: 0 | BF102: Yes | BG102: No | BH102: 493594.65 | BI102: 0 | BJ102: 457297 | BK102: 17500 | BL102: 644189 | BM102: 115000 | BN102: 0 | BO102: 1233986 | BP102: 0.6699999999 | BR102: 0.3705852416 | BS102: 0.0141816844 | BT102: 0.5220391479 | BU102: 0.09319392603 | BV102: 0
E103: Lane BHRN 1Community Outreach Through Radical Empowerment (CORE) | F103: Lane | G103: 39 | H103: Lane BHRN 1 | I103: #NO MATCH | J103: 177577 | K103: Community Outreach Through Radical Empowerment (CORE) | L103: Community Outreach Through Radical Empowerment | M103: 032 | N103: TRUE | O103: 2023-03-29 | P103: Valid | W103: 2023-06-22 | X103: 2023-06-22 | Y103: No | Z103: No workers compensation amount | AA103: 177577 | AB103: 177577-0 | AC103: 2022-08-29 | AD103: #NO MATCH | AE103: #NO MATCH | AF103: 2022-08-15 | AG103: 2022-08-12 | AH103: 2022-08-15 | AI103: Yes | AJ103: Yes | AK103: Complete | AL103: 0 | AW103: 2022-09-11 | AY103: 1086254 | AZ103: -1086254 | BA103: 434501.6 | BB103: 108625.4 | BC103: 6 | BD103: 1086254 | BE103: 0 | BF103: Yes | BG103: No | BH103: 0 | BJ103: 576004 | BK103: 500 | BL103: 351050 | BM103: 130200 | BN103: 28500 | BO103: 1086254 | BP103: 0 | BR103: 0.5302664018 | BS103: 0.0004602974995 | BT103: 0.3231748744 | BU103: 0.1198614689 | BV103: 0.02623695747
E104: Lane BHRN 1Daisy C.H.A.I.N. | F104: Lane | G104: 39 | H104: Lane BHRN 1 | I104: #NO MATCH | J104: 177587 | K104: Daisy C.H.A.I.N. | L104: Daisy C.H.A.I.N. Creating Healthy Alliances in New-Mothering | M104: 039 | N104: TRUE | O104: 2022-09-20 | P104: Valid | Q104: TRUE | R104: 171712 | AA104: 177587 | AB104: 177587-0 | AC104: 2022-08-28 | AD104: #NO MATCH | AE104: #NO MATCH | AF104: 2022-08-15 | AG104: 2022-08-14 | AH104: 2022-08-15 | AI104: Yes | AJ104: Yes | AK104: Complete | AL104: 0 | AW104: 2022-09-13 | AY104: 1102215 | AZ104: -1102215 | BA104: 440886 | BB104: 110221.5 | BC104: 6 | BD104: 1102215 | BE104: 0 | BF104: Yes | BG104: No | BH104: 0 | BJ104: 749128 | BK104: 60475 | BL104: 258112 | BN104: 34500 | BO104: 1102215 | BP104: 0 | BR104: 0.6796568728 | BS104: 0.05486679096 | BT104: 0.234175728 | BU104: 0 | BV104: 0.03130060832
E105: Lane BHRN 1Ideal Option | F105: Lane | G105: 39 | H105: Lane BHRN 1 | I105: #NO MATCH | J105: 177583 | K105: Ideal Option | L105: Ideal Option PLLC | M105: 061 | N105: TRUE | O105: 2023-06-13 | P105: Valid | V105: 2023-05-01 | W105: 2023-05-01 | X105: 2023-05-01 | Y105: Yes | AA105: 177583 | AB105: 177583-0 | AC105: 2022-08-19 | AD105: #NO MATCH | AE105: #NO MATCH | AF105: 2022-08-15 | AG105: 2022-08-15 | AH105: 2022-08-15 | AI105: Yes | AJ105: Yes | AK105: Complete | AL105: 0 | AW105: 2022-09-14 | AY105: 312970 | AZ105: -312970 | BA105: 125188 | BB105: 31297 | BC105: 6 | BD105: 312970 | BE105: 0 | BF105: Yes | BG105: No | BH105: 0 | BJ105: 269170 | BL105: 15900 | BM105: 27900 | BO105: 312970 | BP105: 0 | BR105: 0.8600504841 | BS105: 0 | BT105: 0.0508035914 | BU105: 0.08914592453 | BV105: 0
E106: Lane BHRN 1OSLC Developments, Inc. | F106: Lane | G106: 39 | H106: Lane BHRN 1 | I106: #NO MATCH | J106: 177563 | K106: OSLC Developments, Inc. | L106: OSLC Developments, Inc. | M106: 099 | N106: TRUE | O106: 2023-03-13 | P106: Valid | V106: 2023-04-01 | W106: 2023-06-22 | X106: 2023-06-22 | Y106: Yes | AA106: 177563 | AB106: 177563-0 | AC106: 2022-08-28 | AD106: #NO MATCH | AE106: #NO MATCH | AF106: 2022-08-15 | AG106: 2022-08-14 | AH106: 2022-08-15 | AI106: Yes | AJ106: Yes | AK106: Complete | AL106: 0 | AW106: 2022-09-13 | AY106: 2402469 | AZ106: -2402469 | BA106: 960987.6 | BB106: 240246.9 | BC106: 6 | BD106: 2402469 | BE106: 0 | BF106: Yes | BG106: No | BH106: 0 | BJ106: 1435890 | BK106: 125025 | BL106: 241580 | BM106: 199560 | BN106: 400414 | BO106: 2402469 | BP106: 0 | BR106: 0.5976726443 | BS106: 0.05204021363 | BT106: 0.1005548875 | BU106: 0.08306454735 | BV106: 0.1666677073
E107: Lane BHRN 1South Lane Mental Health Services, Inc. | F107: Lane | G107: 39 | H107: Lane BHRN 1 | I107: #NO MATCH | J107: 177570 | K107: South Lane Mental Health Services, Inc. | L107: South Lane Mental Health Services, Inc. | M107: 127 | N107: TRUE | O107: 2023-01-26 | P107: Valid | Q107: TRUE | R107: 172331 | AA107: 177570 | AB107: 177570-0 | AC107: 2022-08-23 | AD107: #NO MATCH | AE107: #NO MATCH | AF107: 2022-08-15 | AG107: 2022-08-14 | AH107: 2022-08-15 | AI107: Yes | AJ107: Yes | AK107: Complete | AL107: 0 | AW107: 2022-09-13 | AY107: 509166 | AZ107: -509166 | BA107: 203666.4 | BB107: 50916.6 | BC107: 6 | BD107: 509166 | BE107: 0 | BF107: Yes | BG107: No | BH107: 0 | BJ107: 506956 | BK107: 2210 | BL107: 0 | BM107: 0 | BN107: 0 | BO107: 509166 | BP107: 0 | BR107: 0.9956595688 | BS107: 0.004340431215 | BT107: 0 | BU107: 0 | BV107: 0
E108: Lane BHRN 1Youth ERA | F108: Lane | G108: 39 | H108: Lane BHRN 1 | I108: #NO MATCH | J108: 177574 | K108: Youth ERA | L108: Youth ERA | M108: 157 | N108: TRUE | O108: 2022-10-06 | P108: Valid | AA108: 177574 | AB108: 177574-0 | AC108: 2022-09-02 | AD108: #NO MATCH | AE108: #NO MATCH | AF108: 2022-08-15 | AG108: 2022-08-15 | AH108: 2022-08-15 | AI108: Yes | AJ108: Yes | AK108: Complete | AL108: 0 | AW108: 2022-09-14 | AY108: 356044 | AZ108: -356044 | BA108: 142417.6 | BB108: 35604.4 | BC108: 6 | BD108: 356044 | BE108: 0 | BF108: Yes | BG108: No | BH108: 0 | BJ108: 252649 | BK108: 5150 | BL108: 93845 | BM108: 4400 | BO108: 356044 | BP108: 0 | BR108: 0.7096004988 | BS108: 0.01446450439 | BT108: 0.2635769736 | BU108: 0.01235802317 | BV108: 0
E109: Lane BHRN 2Addiction Counseling and Education Services (Emergence) | F109: Lane | G109: 39 | H109: Lane BHRN 2 | I109: #NO MATCH | J109: 177585 | K109: Addiction Counseling and Education Services (Emergence) | M109: 002 | AA109: 177585 | AB109: 177585-0 | AC109: 2022-08-23 | AD109: #NO MATCH | AE109: #NO MATCH | AF109: 2022-08-24 | AG109: 2022-08-18 | AH109: 2022-08-24 | AI109: Yes | AJ109: Yes | AK109: Complete | AL109: 0 | AW109: 2022-09-17 | AY109: 1486715 | AZ109: -1486715 | BA109: 247785.85 | BB109: 247785.83 | BC109: 5 | BD109: 1486715 | BE109: 0 | BF109: Yes | BG109: No | BH109: #INVALID OPERATION | BI109: #INVALID OPERATION | BJ109: 1216400 | BK109: 50850 | BL109: 219425.4 | BM109: 0 | BN109: 0 | BO109: 1486675.4 | BP109: 39.6 | BR109: 0.8182014716 | BS109: 0.03420383495 | BT109: 0.1475946935 | BU109: 0 | BV109: 0
E110: Lane BHRN 2Center for Family Development | F110: Lane | G110: 39 | H110: Lane BHRN 2 | I110: #NO MATCH | J110: 177586 | K110: Center for Family Development | L110: Center for Family Development, Inc. | M110: 018 | N110: TRUE | O110: 2022-10-15 | P110: Valid | Q110: TRUE | R110: 172072 | AA110: 177586 | AB110: 177586-0 | AC110: 2022-08-23 | AD110: #NO MATCH | AE110: #NO MATCH | AF110: 2022-08-24 | AG110: 2022-08-17 | AH110: 2022-08-24 | AI110: Yes | AJ110: Yes | AK110: Complete | AL110: 0 | AW110: 2022-09-16 | AY110: 1001989 | AZ110: -1001989 | BA110: 400795.6 | BB110: 100198.9 | BC110: 6 | BD110: 1001989 | BE110: 0 | BF110: Yes | BG110: No | BH110: 0 | BJ110: 600086.25 | BK110: 12000 | BL110: 389902.86 | BM110: 0 | BN110: 0 | BO110: 1001989.11 | BP110: -0.11 | BR110: 0.598894982 | BS110: 0.01197617806 | BT110: 0.3891288399 | BU110: 0 | BV110: 0
E111: Lane BHRN 2HIV Alliance | F111: Lane | G111: 39 | H111: Lane BHRN 2 | I111: #NO MATCH | J111: 177580 | K111: HIV Alliance | L111: HIV Alliance | M111: 058 | N111: TRUE | O111: 2022-09-21 | P111: Valid | Q111: TRUE | R111: 172261 | AA111: 177580 | AB111: 177580-0 | AC111: 2022-08-23 | AD111: #NO MATCH | AE111: #NO MATCH | AF111: 2022-08-15 | AG111: 2022-08-23 | AH111: 2022-08-24 | AI111: Yes | AJ111: Yes | AK111: Complete | AL111: 0 | AW111: 2022-09-22 | AY111: 1302583 | AZ111: -1302583 | BA111: 521033.2 | BB111: 130258.3 | BC111: 6 | BD111: 1302583 | BE111: 0 | BF111: Yes | BG111: No | BH111: 0 | BJ111: 917256 | BK111: 2500 | BL111: 199410 | BM111: 65000 | BN111: 0 | BO111: 1184166 | BP111: 118417 | BR111: 0.7746008583 | BS111: 0.002111190492 | BT111: 0.1683969984 | BU111: 0.05489095279 | BV111: 0
E112: Lane BHRN 2Housing Our Veterans | F112: Lane | G112: 39 | H112: Lane BHRN 2 | I112: #NO MATCH | J112: 177578 | K112: Housing Our Veterans | L112: Housing Our Veterans, Inc. | M112: 060 | N112: TRUE | O112: 2023-05-09 | P112: Valid | AA112: 177578 | AB112: 177578-0 | AC112: 2022-08-23 | AD112: #NO MATCH | AE112: #NO MATCH | AF112: 2022-08-24 | AG112: 2022-08-18 | AH112: 2022-08-24 | AI112: Yes | AJ112: Yes | AK112: Complete | AL112: 0 | AW112: 2022-09-17 | AY112: 978735 | AZ112: -978735 | BA112: 391494 | BB112: 97873.5 | BC112: 6 | BD112: 978735 | BE112: 0 | BF112: Yes | BG112: No | BH112: 0 | BJ112: 79560 | BK112: 1500 | BL112: 837675 | BM112: 60000 | BN112: 0 | BO112: 978735 | BP112: 0 | BR112: 0.08128860212 | BS112: 0.001532590538 | BT112: 0.8558751858 | BU112: 0.06130362151 | BV112: 0
E113: Lane BHRN 2Laurel Hill Center | F113: Lane | G113: 39 | H113: Lane BHRN 2 | I113: #NO MATCH | J113: 177572 | K113: Laurel Hill Center | L113: Laurel Hill Center | M113: 068 | N113: TRUE | O113: 2023-01-09 | P113: Valid | AA113: 177572 | AB113: 177572-0 | AC113: 2022-08-23 | AD113: #NO MATCH | AE113: #NO MATCH | AF113: 2022-08-24 | AG113: 2022-08-18 | AH113: 2022-08-24 | AI113: Yes | AJ113: Yes | AK113: Complete | AL113: 0 | AW113: 2022-09-17 | AY113: 938075 | AZ113: -938075 | BA113: 156345.85 | BB113: 156345.83 | BC113: 5 | BD113: 938075 | BE113: 0 | BF113: Yes | BG113: No | BH113: 0 | BJ113: 287955 | BK113: 0 | BL113: 621120 | BM113: 29000 | BN113: 0 | BO113: 938075 | BP113: 0 | BR113: 0.3069637289 | BS113: 0 | BT113: 0.6621218986 | BU113: 0.03091437252 | BV113: 0
E114: Lane BHRN 2Looking Glass Community Services | F114: Lane | G114: 39 | H114: Lane BHRN 2 | I114: #NO MATCH | J114: 177573 | K114: Looking Glass Community Services | L114: Looking Glass Community Services | M114: 073 | N114: TRUE | O114: 2023-02-24 | P114: Valid | AA114: 177573 | AB114: 177573-0 | AC114: 2022-08-19 | AD114: #NO MATCH | AE114: #NO MATCH | AF114: 2022-08-24 | AG114: 2022-08-17 | AH114: 2022-08-24 | AI114: Yes | AJ114: Yes | AK114: Complete | AL114: 0 | AW114: 2022-09-16 | AY114: 5190485 | AZ114: -5190485 | BA114: 2076194 | BB114: 519048.5 | BC114: 6 | BD114: 5190485 | BE114: 0 | BF114: Yes | BG114: No | BH114: 0 | BJ114: 3567699 | BK114: 195200 | BL114: 348781 | BM114: 667638 | BN114: 411168 | BO114: 5190486 | BP114: -1 | BR114: 0.6873535542 | BS114: 0.03760726838 | BT114: 0.06719621245 | BU114: 0.1286272615 | BV114: 0.0792157035
E115: Lane BHRN 2Restored Connections Peer Center | F115: Lane | G115: 39 | H115: Lane BHRN 2 | I115: #NO MATCH | J115: 177575 | K115: Restored Connections Peer Center | L115: Restored Connections Peer Center | M115: 118 | N115: TRUE | O115: 2022-12-06 | P115: Valid | W115: 2023-07-22 | Y115: No | Z115: No professional liability coverage or worker's compensation amounts | AA115: 177575 | AB115: 177575-0 | AC115: 2022-08-19 | AD115: #NO MATCH | AE115: #NO MATCH | AF115: #NO MATCH | AG115: 2022-08-17 | AH115: 2022-08-24 | AI115: Yes | AJ115: Yes | AK115: Complete | AL115: 0 | AW115: 2022-09-16 | AX115: #NO MATCH | AY115: 1082051 | AZ115: #INVALID OPERATION | BA115: 432820.4 | BB115: 108205.1 | BC115: 6 | BD115: 1082051 | BE115: 0 | BF115: Yes | BG115: No | BH115: #INVALID OPERATION | BI115: #INVALID OPERATION | BJ115: 732583.32 | BK115: 16000 | BL115: 181100 | BM115: 54000 | BN115: 98368.33 | BO115: 1082051.65 | BP115: -0.6499999999 | BR115: 0.677031748 | BS115: 0.01478672483 | BT115: 0.1673672417 | BU115: 0.0499051963 | BV115: 0.09090908923
E116: Lane BHRN 2Shelter Care | F116: Lane | G116: 39 | H116: Lane BHRN 2 | I116: #NO MATCH | J116: 177581 | K116: Shelter Care | L116: ShelterCare | M116: 126 | N116: TRUE | O116: 2022-12-02 | P116: Valid | AA116: 177581 | AB116: 177581-0 | AC116: 2022-09-01 | AD116: #NO MATCH | AE116: #NO MATCH | AF116: 2022-08-24 | AG116: 2022-08-17 | AH116: 2022-08-24 | AI116: Yes | AJ116: Yes | AK116: Complete | AL116: 0 | AW116: 2022-09-16 | AY116: 308618 | AZ116: -308618 | BA116: 51436.35 | BB116: 51436.33 | BC116: 5 | BD116: 308618 | BE116: 0 | BF116: Yes | BG116: No | BH116: 0 | BJ116: 134156.75 | BL116: 174461.08 | BO116: 308617.83 | BP116: 0.17 | BR116: 0.4347018771 | BS116: 0 | BT116: 0.5652981229 | BU116: 0 | BV116: 0
E117: Lane BHRN 2TransPonder | F117: Lane | G117: 39 | H117: Lane BHRN 2 | I117: #NO MATCH | J117: 177571 | K117: TransPonder | L117: TransPonder | M117: 144 | N117: TRUE | O117: 2023-05-25 | P117: Valid | AA117: 177571 | AB117: 177571-0 | AC117: 2022-08-18 | AD117: #NO MATCH | AE117: #NO MATCH | AF117: 2022-08-24 | AG117: 2022-08-19 | AH117: 2022-08-24 | AI117: Yes | AJ117: Yes | AK117: Complete | AL117: 0 | AW117: 2022-09-18 | AY117: 670626 | AZ117: -670626 | BA117: 268250.4 | BB117: 67062.6 | BC117: 6 | BD117: 670626 | BE117: 0 | BF117: Yes | BG117: No | BH117: 0 | BJ117: 562626 | BK117: 9000 | BL117: 99000 | BM117: 0 | BN117: 0 | BO117: 670626 | BP117: 0 | BR117: 0.8389564377 | BS117: 0.01342029686 | BT117: 0.1476232654 | BU117: 0 | BV117: 0
E118: Lane BHRN 2Veteran's Legacy | F118: Lane | G118: 39 | H118: Lane BHRN 2 | I118: #NO MATCH | J118: 177565 | K118: Veteran's Legacy | L118: Veteran's Legacy | M118: 145 | N118: TRUE | O118: 2023-03-18 | P118: Valid | AA118: 177565 | AB118: 177565-0 | AC118: 2022-08-31 | AD118: #NO MATCH | AE118: #NO MATCH | AF118: 2022-08-24 | AG118: 2022-08-18 | AH118: 2022-08-24 | AI118: Yes | AJ118: Yes | AK118: Complete | AL118: 0 | AW118: 2022-09-17 | AY118: 940575 | AZ118: -940575 | BA118: 156762.5 | BB118: 156762.5 | BC118: 5 | BD118: 940575 | BE118: 0 | BF118: Yes | BG118: No | BH118: 0 | BJ118: 79560 | BK118: 1500 | BL118: 837675 | BM118: 60000 | BO118: 978735 | BP118: -38160 | BR118: 0.08128860212 | BS118: 0.001532590538 | BT118: 0.8558751858 | BU118: 0.06130362151 | BV118: 0
E119: Lane BHRN 2White Bird Clinic | F119: Lane | G119: 39 | H119: Lane BHRN 2 | I119: #NO MATCH | J119: 177557 | K119: White Bird Clinic | L119: White Bird Clinic | M119: 151 | N119: TRUE | O119: 2023-02-13 | P119: Valid | AA119: 177557 | AB119: 177557-0 | AC119: Pending | AD119: #NO MATCH | AE119: #NO MATCH | AF119: 2022-08-24 | AG119: 2022-08-17 | AH119: 2022-08-24 | AI119: Yes | AJ119: Yes | AK119: Complete | AL119: 0 | AW119: 2022-09-16 | AY119: 4693019 | AZ119: -4693019 | BA119: 1877207.6 | BB119: 469301.9 | BC119: 6 | BD119: 4693019 | BE119: 0 | BF119: Yes | BG119: No | BH119: 0 | BJ119: 1712856 | BL119: 935062 | BM119: 1288000 | BN119: 787681 | BO119: 4723599 | BP119: -30580 | BR119: 0.3626167251 | BS119: 0 | BT119: 0.1979554149 | BU119: 0.2726734424 | BV119: 0.1667544176
E120: Lane BHRN 3Centro Latino Americano | F120: Lane | G120: 39 | H120: Lane BHRN 3 | I120: #NO MATCH | J120: 177576 | K120: Centro Latino Americano | L120: Centro Latino Americano | M120: 021 | N120: TRUE | O120: 2023-06-23 | P120: Valid | Q120: TRUE | R120: 170482 | AA120: 177576 | AB120: 177576-0 | AC120: 2022-08-19 | AD120: #NO MATCH | AE120: #NO MATCH | AF120: 2022-08-15 | AG120: 2022-08-11 | AH120: 2022-08-12 | AI120: Yes | AJ120: Yes | AK120: Complete | AL120: 0 | AW120: 2022-09-10 | AY120: 4565567 | AZ120: -4565567 | BA120: 1826226.8 | BB120: 456556.7 | BC120: 6 | BD120: 4565567 | BE120: 0 | BF120: Yes | BG120: No | BH120: 0 | BJ120: 1323662.4 | BK120: 43828.49 | BL120: 804504.22 | BM120: 2137118 | BN120: 256454.16 | BO120: 4565567.27 | BP120: -0.2699999996 | BR120: 0.2899228774 | BS120: 0.009599790652 | BT120: 0.1762112291 | BU120: 0.4680947347 | BV120: 0.05617136816
E121: Lane BHRN 3HIV Alliance | F121: Lane | G121: 39 | H121: Lane BHRN 3 | I121: #NO MATCH | J121: 177580 | K121: HIV Alliance | L121: HIV Alliance | M121: 058 | N121: TRUE | O121: 2022-09-21 | P121: Valid | Q121: TRUE | R121: 172261 | AA121: 177580 | AB121: 177580-0 | AC121: 2022-08-23 | AD121: #NO MATCH | AE121: #NO MATCH | AF121: 2022-08-15 | AG121: 2022-08-11 | AH121: 2022-08-12 | AI121: Yes | AJ121: Yes | AK121: Complete | AL121: 0 | AW121: 2022-09-10 | AY121: 1302583 | AZ121: -1302583 | BA121: 521033.2 | BB121: 130258.3 | BC121: 6 | BD121: 1302583 | BE121: 0 | BF121: Yes | BG121: No | BH121: 0 | BJ121: 917256 | BK121: 2500 | BL121: 199410 | BM121: 65000 | BN121: 118417 | BO121: 1302583 | BP121: 0 | BR121: 0.7041823822 | BS121: 0.001919263494 | BT121: 0.1530881333 | BU121: 0.04990085085 | BV121: 0.09090937007
E122: Lincoln County BHRN 1Coastal Phoenix Rising | F122: Lincoln | G122: 41 | H122: Lincoln County BHRN 1 | I122: #NO MATCH | J122: 177803 | K122: Coastal Phoenix Rising | L122: Coastal Phoenix Rising, Inc. | M122: 026 | N122: TRUE | O122: 2023-02-23 | P122: Valid | AA122: 177803 | AB122: 177803-0 | AC122: Pending | AD122: #NO MATCH | AE122: #NO MATCH | AK122: #NO MATCH | AL122: 0 | AY122: 479997 | AZ122: -479997 | BA122: 191990.8 | BB122: 47997.7 | BC122: 6 | BD122: 479977 | BE122: 20 | BF122: No | BG122: No | BH122: 0 | BJ122: 0 | BK122: 0 | BL122: 460475 | BM122: 19500 | BN122: 0 | BO122: 479975 | BP122: 22 | BQ122: No budget in CLM folder | BR122: 0 | BS122: 0 | BT122: 0.959372884 | BU122: 0.040627116 | BV122: 0
E123: Lincoln County BHRN 1Faith, Hope and Charity, Inc. (FHC) | F123: Lincoln | G123: 41 | H123: Lincoln County BHRN 1 | I123: #NO MATCH | J123: #INVALID OPERATION | K123: Faith, Hope and Charity, Inc. (FHC) | L123: FHC Faith, Hope, & Charity, Inc. | M123: 044 | O123: 2022-05-30 | P123: Expired | AB123: -0 | AD123: #NO MATCH | AE123: #NO MATCH | AK123: Pending Grant Agreement Execution | AL123: 0 | AY123: 208955 | AZ123: -208955 | BA123: 83582 | BB123: 20895.5 | BC123: 6 | BD123: 208955 | BE123: 0 | BF123: No | BG123: No | BH123: 0 | BJ123: 146323 | BK123: 8150 | BL123: 37565 | BM123: 0 | BN123: 16917 | BO123: 208955 | BP123: 0 | BR123: 0.7002608217 | BS123: 0.03900361322 | BT123: 0.1797755498 | BU123: 0 | BV123: 0.08096001531
E124: Lincoln County BHRN 2CHANCE | F124: Lincoln | G124: 41 | H124: Lincoln County BHRN 2 | I124: #NO MATCH | J124: #INVALID OPERATION | K124: CHANCE | L124: CHANCE LLC | M124: 022 | N124: TRUE | O124: 2022-11-15 | P124: Valid | V124: 2023-07-01 | W124: 2023-07-01 | X124: 2023-07-01 | Y124: Yes | AB124: -0 | AD124: #NO MATCH | AE124: #NO MATCH | AK124: Pending Grant Agreement Execution | AL124: 0 | AY124: 310320 | AZ124: -310320 | BA124: 124128 | BB124: 31032 | BC124: 6 | BD124: 310320 | BE124: 0 | BF124: No | BG124: No | BH124: 0 | BJ124: 234000 | BK124: 5250 | BL124: 71070 | BM124: 0 | BN124: 0 | BO124: 310320 | BP124: 0 | BR124: 0.7540603248 | BS124: 0.01691802011 | BT124: 0.2290216551 | BU124: 0 | BV124: 0
E125: Lincoln County BHRN 1Community Services Consortium | F125: Lincoln | G125: 41 | H125: Lincoln County BHRN 1 | I125: #NO MATCH | J125: #INVALID OPERATION | K125: Community Services Consortium | L125: Community Services Consortium | M125: 033 | N125: TRUE | O125: 2023-12-17 | P125: Valid | W125: 2023-07-01 | X125: 2023-07-01 | Y125: No | Z125: No professional liability coverage | AB125: -0 | AD125: #NO MATCH | AE125: #NO MATCH | AK125: Pending Grant Agreement Execution | AL125: 0 | AY125: 390494 | AZ125: -390494 | BA125: 156197.6 | BB125: 39049.4 | BC125: 6 | BD125: 390494 | BE125: 0 | BF125: No | BG125: No | BH125: 0 | BJ125: 177585 | BK125: 9000 | BL125: 153250 | BM125: 0 | BN125: 50659 | BO125: 390494 | BP125: 0 | BR125: 0.4547701117 | BS125: 0.02304772929 | BT125: 0.3924516126 | BU125: 0 | BV125: 0.1297305464
E126: Lincoln County BHRN 2Phoenix Wellness Center LLC | F126: Lincoln | G126: 41 | H126: Lincoln County BHRN 2 | I126: #NO MATCH | J126: 177779 | K126: Phoenix Wellness Center LLC | L126: Phoenix Wellness Center LLC | M126: 104 | N126: TRUE | O126: 2022-10-30 | P126: Valid | Q126: TRUE | R126: 170795 | AA126: 177779 | AB126: 177779-0 | AC126: 2022-08-31 | AD126: #NO MATCH | AE126: #NO MATCH | AK126: #NO MATCH | AL126: 0 | AY126: 1536047 | AZ126: -1536047 | BA126: 614418.8 | BB126: 153604.7 | BC126: 6 | BD126: 1536047 | BE126: 0 | BF126: No | BG126: No | BH126: 0 | BJ126: 1356543.95 | BK126: 22000 | BL126: 91708 | BM126: 65795 | BN126: 0 | BO126: 1536046.95 | BP126: 0.05000000005 | BR126: 0.8831396397 | BS126: 0.01432247888 | BT126: 0.05970390423 | BU126: 0.04283397718 | BV126: 0
E127: Lincoln County BHRN 1Confederated Tribes of the Siletz | F127: Lincoln | G127: 41 | H127: Lincoln County BHRN 1 | I127: #NO MATCH | J127: 177782 | K127: Confederated Tribes of the Siletz | L127: The Confederated Tribes of Siletz Indians | M127: 036 | N127: TRUE | O127: Inactive | P127: #INVALID OPERATION | AA127: 177782 | AB127: 177782-0 | AC127: Pending | AD127: #NO MATCH | AE127: #NO MATCH | AK127: #NO MATCH | AL127: 0 | AY127: 78452 | AZ127: -78452 | BA127: 73075.35 | BB127: 13075.33 | BC127: 5 | BD127: 138452 | BE127: -60000 | BF127: No | BG127: No | BH127: 0 | BJ127: 47397.53 | BK127: 0 | BL127: 12289.11 | BM127: 0 | BN127: 18765.48 | BO127: 78452.12 | BP127: -0.12 | BR127: 0.6041586894 | BS127: 0 | BT127: 0.1566447153 | BU127: 0 | BV127: 0.2391965953
E128: Lincoln County BHRN 1Lincoln County Harm Reduction Program | F128: Lincoln | G128: 41 | H128: Lincoln County BHRN 1 | I128: #NO MATCH | J128: #INVALID OPERATION | K128: Lincoln County Harm Reduction Program | L128: Lincoln County HHS | M128: 072 | AB128: -0 | AD128: #NO MATCH | AE128: #NO MATCH | AK128: Pending Grant Agreement Execution | AL128: 0 | AY128: 1196010 | AZ128: -1196010 | BA128: 478404 | BB128: 119601 | BC128: 6 | BD128: 1196010 | BE128: 0 | BF128: No | BG128: No | BH128: 0 | BJ128: 829708.59 | BK128: 45000 | BL128: 169601 | BM128: 151700.8 | BN128: 0 | BO128: 1196010.39 | BP128: -0.3899999999 | BR128: 0.6937302526 | BS128: 0.0376250912 | BT128: 0.1418056243 | BU128: 0.1268390319 | BV128: 0
E129: Lincoln County BHRN 2Coastal Phoenix Rising | F129: Lincoln | G129: 41 | H129: Lincoln County BHRN 2 | I129: #NO MATCH | J129: 177803 | K129: Coastal Phoenix Rising | L129: Coastal Phoenix Rising, Inc. | M129: 026 | O129: 2023-02-23 | P129: Valid | AA129: 177803 | AB129: 177803-0 | AC129: Pending | AD129: #NO MATCH | AE129: #NO MATCH | AK129: #NO MATCH | AL129: 0 | AY129: 479997 | AZ129: -479997 | BA129: 191990.8 | BB129: 47997.7 | BC129: 6 | BD129: 479977 | BE129: 20 | BF129: No | BG129: No | BH129: 0 | BJ129: 0 | BK129: 0 | BL129: 460475 | BM129: 19500 | BN129: 0 | BO129: 479975 | BP129: 22 | BR129: 0 | BS129: 0 | BT129: 0.959372884 | BU129: 0.040627116 | BV129: 0
E130: =_xlfn.CONCAT(H130,K130) -> Lincoln County BHRN 2Lincoln County HHS Harm Reduction Program | F130: Lincoln | G130: 41 | H130: Lincoln County BHRN 2 | I130: #NO MATCH | J130: #INVALID OPERATION | K130: Lincoln County HHS Harm Reduction Program | L130: Lincoln County HHS | M130: #NO MATCH | AB130: -0 | AD130: #NO MATCH | AE130: #NO MATCH | AF130: #NO MATCH | AK130: Pending Grant Agreement Execution | AL130: 0 | AX130: #NO MATCH | AY130: 1196010 | BA130: 478404 | BB130: 119601 | BC130: 6 | BD130: 1196010 | BF130: No | BG130: #NO MATCH | BH130: #NO MATCH | BI130: #NO MATCH | BJ130: 829708.59 | BK130: 45000 | BL130: 169601 | BM130: 151700.8 | BN130: 0 | BO130: 1196010.39 | BP130: -1196010.39 | BR130: 0.6937302526 | BS130: 0.0376250912 | BT130: 0.1418056243 | BU130: 0.1268390319 | BV130: 0
E131: Lincoln County BHRN 1Samaritan Treatment & Recovery | F131: Lincoln | G131: 41 | H131: Lincoln County BHRN 1 | I131: #NO MATCH | J131: 177783 | K131: Samaritan Treatment & Recovery | M131: 123 | AA131: 177783 | AB131: 177783-0 | AC131: Pending | AD131: #NO MATCH | AE131: #NO MATCH | AK131: #NO MATCH | AL131: 0 | AY131: 455143 | AZ131: -455143 | BA131: 182057.2 | BB131: 45154.3 | BC131: 6 | BD131: 452983 | BE131: 2160 | BF131: No | BG131: No | BH131: 0 | BJ131: 170354 | BK131: 10500 | BL131: 232920 | BM131: 0 | BN131: 41377 | BO131: 455151 | BP131: -8 | BR131: 0.3742801839 | BS131: 0.02306926712 | BT131: =IFERROR(BL131/$BO131,"") -> 0.511742257 | BU131: =IFERROR(BM131/$BO131,"") -> 0 | BV131: =IFERROR(BN131/$BO131,"") -> 0.09090829197
E132: LinnAddiction Counseling and Education Services (Emergence) | F132: Linn | G132: 43 | H132: Linn | I132: 27 | J132: 177480 | K132: Addiction Counseling and Education Services (Emergence) | M132: 002 | AA132: 177480 | AB132: 177480-0 | AC132: 2022-08-09 | AF132: 2022-08-10 | AH132: 2022-08-10 | AI132: Yes | AJ132: Yes | AK132: Complete | AL132: 0 | AY132: 175388.05 | AZ132: -175388.05 | BA132: 29231.25 | BB132: 29231.34 | BC132: 5 | BD132: 175387.95 | BE132: 0.09999999998 | BF132: Yes | BG132: No | BH132: #INVALID OPERATION | BI132: #INVALID OPERATION | BJ132: 137046.37 | BK132: 10625 | BL132: 4039 | BM132: 0 | BN132: 22876.71 | BO132: 174587.08 | BP132: 800.97 | BR132: =IFERROR(BJ132/$BO132,"") -> 0.7849742948 | BS132: 0.0608578825 | BT132: 0.02313458705 | BU132: 0 | BV132: 0.1310332357
E133: LinnAlbany Comprehensive Treatment (CRC Health OR) | F133: Linn | G133: 43 | H133: Linn | I133: 27 | J133: 177477 | K133: Albany Comprehensive Treatment (CRC Health OR) | L133: Albany Comprehensive Treatment | M133: 006 | N133: TRUE | O133: 2023-01-26 | P133: Valid | AA133: 177477 | AB133: 177477-0 | AC133: 2022-08-09 | AF133: 2022-08-10 | AH133: 2022-08-10 | AI133: Yes | AJ133: Yes | AK133: Complete | AL133: 0 | AY133: 110720 | AZ133: -110720 | BA133: 44288 | BB133: 11072 | BC133: 6 | BD133: 110720 | BE133: 0 | BF133: Yes | BG133: No | BH133: 0 | BJ133: 0 | BK133: 0 | BL133: 110720 | BM133: 0 | BN133: 0 | BO133: 110720 | BP133: 0 | BR133: 0 | BS133: 0 | BT133: 1 | BU133: 0 | BV133: 0
E134: LinnCHANCE | F134: Linn | G134: 43 | H134: Linn | I134: 27 | J134: 177475 | K134: CHANCE | L134: CHANCE LLC | M134: 022 | N134: TRUE | O134: 2022-11-15 | P134: Valid | V134: 2023-07-01 | W134: 2023-07-01 | X134: 2023-07-01 | Y134: Yes | AA134: 177475 | AB134: 177475-0 | AC134: 2022-08-23 | AF134: 2022-08-10 | AH134: 2022-08-10 | AI134: Yes | AJ134: Yes | AK134: Complete | AL134: 0 | AY134: 3645179 | AZ134: -3645179 | BA134: 1458071.6 | BB134: 364517.9 | BC134: 6 | BD134: 3645179 | BE134: 0 | BF134: Yes | BG134: No | BH134: 0 | BL134: 1401139 | BM134: 94000 | BO134: 1495139 | BP134: 2150040 | BQ134: Only noted costs that are one-time only for Start-Up purposes, and will not be on-going. | BR134: 0 | BS134: 0 | BT134: 0.9371295913 | BU134: 0.0628704087 | BV134: 0
E135: LinnCommunity Services Consortium | F135: Linn | G135: 43 | H135: Linn | I135: 27 | J135: 177472 | K135: Community Services Consortium | L135: Community Services Consortium | M135: 033 | N135: TRUE | O135: 2023-12-17 | P135: Valid | W135: 2023-07-01 | X135: 2023-07-01 | Y135: No | Z135: No professional liability coverage | AA135: 177472 | AB135: 177472-0 | AC135: 2022-08-08 | AF135: 2022-08-10 | AH135: 2022-08-10 | AI135: Yes | AJ135: Yes | AK135: Complete | AL135: 0 | AY135: 890000 | AZ135: -890000 | BA135: 356000 | BB135: 89000 | BC135: 6 | BD135: 890000 | BE135: 0 | BF135: Yes | BG135: No | BH135: 356000 | BI135: 0 | BJ135: 449872 | BK135: 11740 | BL135: 339388 | BM135: 89000 | BN135: 0 | BO135: 890000 | BP135: 0 | BR135: 0.5054741573 | BS135: 0.01319101124 | BT135: 0.3813348315 | BU135: 0.1 | BV135: 0
E136: LinnFaith, Hope and Charity, Inc. (FHC) | F136: Linn | G136: 43 | H136: Linn | I136: 27 | J136: 177473 | K136: Faith, Hope and Charity, Inc. (FHC) | L136: FHC Faith, Hope, & Charity, Inc. | M136: 044 | O136: 2022-05-30 | P136: Expired | AA136: 177473 | AB136: 177473-0 | AC136: 2022-08-23 | AF136: 2022-08-10 | AG136: 2022-07-28 | AH136: 2022-08-10 | AI136: Yes | AJ136: Yes | AK136: Complete | AL136: 0 | AW136: 2022-08-27 | AY136: 504210.96 | AZ136: -504210.96 | BA136: 201684.42 | BB136: 50421.09 | BC136: 6 | BD136: 504210.96 | BE136: 0 | BF136: Yes | BG136: No | BH136: 0 | BJ136: 411074 | BK136: 4400 | BL136: 42900 | BM136: 0 | BN136: 45837 | BO136: 504211 | BP136: -0.03999999998 | BR136: 0.8152816975 | BS136: 0.008726505372 | BT136: 0.08508342737 | BU136: 0 | BV136: 0.09090836971
E137: LinnFamily Tree Relief Nursery | F137: Linn | G137: 43 | H137: Linn | I137: 27 | J137: 177460 | K137: Family Tree Relief Nursery | L137: Family Tree Relief Nursery | M137: 047 | N137: TRUE | O137: 2023-02-27 | P137: Valid | AA137: 177460 | AB137: 177460-0 | AC137: 2022-08-15 | AF137: 2022-08-10 | AH137: 2022-08-10 | AI137: Yes | AJ137: Yes | AK137: Complete | AL137: 0 | AY137: 843323 | AZ137: -843323 | BA137: 140553.85 | BB137: 140553.83 | BC137: 5 | BD137: 843323 | BE137: 0 | BF137: Yes | BG137: No | BH137: 140553.85 | BI137: 0 | BJ137: 566192 | BK137: 29500 | BL137: 227131 | BM137: 20500 | BO137: 843323 | BP137: 0 | BR137: 0.6713821395 | BS137: 0.03498066577 | BT137: 0.2693285965 | BU137: 0.02430859825 | BV137: 0
E138: LinnSamaritan Health Services | F138: Linn | G138: 43 | H138: Linn | I138: 27 | J138: 177464 | K138: Samaritan Health Services | L138: Samaritan Health Services, Inc. | M138: 122 | N138: TRUE | O138: 2023-01-25 | P138: Valid | Q138: TRUE | R138: 172237 | AA138: 177464 | AB138: 177464-0 | AC138: Pending | AF138: 2022-08-10 | AH138: 2022-08-10 | AI138: Yes | AJ138: Yes | AK138: Complete | AL138: 0 | AY138: 1081702.5 | AZ138: -1081702.5 | BA138: 432681 | BB138: 108170.25 | BC138: 6 | BD138: 1081702.5 | BE138: 0 | BF138: Yes | BG138: No | BH138: 0 | BJ138: 541815 | BK138: 29800 | BL138: 411751 | BM138: 0 | BN138: 98337 | BO138: 1081703 | BP138: -0.5 | BR138: 0.5008907251 | BS138: 0.02754915166 | BT138: 0.3806506962 | BU138: 0 | BV138: 0.09090942708
E139: MalheurEastern Oregon Center for Independent Living | F139: Malheur | G139: 45 | H139: Malheur | I139: 28 | J139: 177286 | K139: Eastern Oregon Center for Independent Living | L139: Eastern Oregon Center for Independent Living | M139: 042 | N139: TRUE | O139: 2022-08-25 | P139: Expired | V139: 2022-12-01 | W139: 2023-01-12 | Y139: No | Z139: Umbrella aggregate coverage is $1M but Grant Agreement requires $2M of annual aggregate professional liability coverage | AA139: 177286 | AB139: 177286-0 | AC139: 2022-08-02 | AF139: 2022-07-22 | AG139: 2022-07-22 | AH139: 2022-07-22 | AI139: Yes | AJ139: Yes | AK139: Complete | AL139: 0 | AW139: 2022-08-21 | AY139: 515535.79 | AZ139: -515535.79 | BA139: 206214.37 | BB139: 51553.57 | BC139: 6 | BD139: 515535.79 | BE139: 0 | BF139: Yes | BG139: No | BH139: 206214.37 | BI139: 0 | BJ139: 109749.15 | BK139: 0 | BL139: 9413.13 | BM139: 350500 | BN139: 46873.51 | BO139: 516535.79 | BP139: -1000 | BR139: 0.2124715308 | BS139: 0 | BT139: 0.0182235775 | BU139: 0.6785589823 | BV139: 0.0907459094
E140: MalheurLifeways | F140: Malheur | G140: 45 | H140: Malheur | I140: 28 | J140: 177305 | K140: Lifeways | L140: Lifeways, Inc. | M140: 070 | N140: TRUE | O140: 2022-11-03 | P140: Valid | AA140: 177305 | AB140: 177305-0 | AC140: 2022-08-02 | AF140: 2022-07-22 | AG140: 2022-07-22 | AH140: 2022-07-22 | AI140: Yes | AJ140: Yes | AK140: Complete | AL140: 0 | AW140: 2022-08-21 | AY140: 698210 | AZ140: -698210 | BA140: 116368.35 | BB140: 116368.33 | BC140: 5 | BD140: 698210 | BE140: 0 | BF140: Yes | BG140: No | BH140: 116368.35 | BI140: 0 | BJ140: 618197 | BK140: 0 | BL140: 59613 | BM140: 20400 | BN140: 0 | BO140: 698210 | BP140: 0 | BR140: 0.8854026725 | BS140: 0 | BT140: 0.08537975681 | BU140: 0.02921757064 | BV140: 0
E141: MalheurOrigins Faith Community Outreach Initiative (OFCOI) | F141: Malheur | G141: 45 | H141: Malheur | I141: 28 | J141: 177284 | K141: Origins Faith Community Outreach Initiative (OFCOI) | M141: 098 | AA141: 177284 | AB141: 177284-0 | AC141: 2022-08-02 | AF141: 2022-07-22 | AG141: 2022-07-22 | AH141: 2022-07-22 | AI141: Yes | AJ141: Yes | AK141: Complete | AL141: 0 | AW141: 2022-08-21 | AY141: 616152 | AZ141: -616152 | BA141: 102692 | BB141: 102692 | BC141: 5 | BD141: 616152 | BE141: 0 | BF141: Yes | BG141: No | BH141: 102692 | BI141: 0 | BJ141: 310694 | BK141: 119781 | BL141: 121400 | BM141: 0 | BN141: 64277 | BO141: 616152 | BP141: 0 | BR141: 0.5042489516 | BS141: 0.1944017061 | BT141: 0.1970293045 | BU141: 0 | BV141: 0.1043200379
E142: MarionBridgeway | F142: Marion | G142: 47 | H142: Marion | I142: 29 | J142: 176716 | K142: Bridgeway | L142: Bridgeway Recovery Services, Inc. | M142: 012 | N142: TRUE | O142: 2022-10-28 | P142: Valid | Q142: TRUE | R142: 170491 | AA142: 176716 | AB142: 176716-0 | AC142: 2022-07-12 | AF142: 2022-07-21 | AG142: 2022-07-06 | AH142: 2022-07-21 | AI142: Yes | AJ142: Yes | AK142: Complete | AL142: 0 | AW142: 2022-08-05 | AY142: 11096437 | AZ142: -11096437 | BA142: 4438574.8 | BB142: 1109643.7 | BC142: 6 | BD142: 11096437 | BE142: 0 | BF142: Yes | BG142: No | BH142: 4438574.8 | BI142: 0 | BJ142: 1077515 | BK142: 1223917 | BL142: 0 | BM142: 8194000 | BN142: 601005 | BO142: 11096437 | BP142: 0 | BR142: 0.09710459312 | BS142: 0.1102981975 | BT142: 0 | BU142: 0.7384352293 | BV142: 0.0541619801
E143: MarionHIV Alliance | F143: Marion | G143: 47 | H143: Marion | I143: 29 | J143: 176744 | K143: HIV Alliance | L143: HIV Alliance | M143: 058 | N143: TRUE | O143: 2022-09-21 | P143: Valid | Q143: TRUE | R143: 172261 | AA143: 176744 | AB143: 176744-0 | AC143: 2022-07-06 | AF143: 2022-07-21 | AG143: 2022-07-06 | AH143: 2022-07-21 | AI143: Yes | AJ143: Yes | AK143: Complete | AL143: 0 | AW143: 2022-08-05 | AY143: 388105 | AZ143: -388105 | BA143: 64684.2 | BB143: 64684.16 | BC143: 5 | BD143: 388105 | BE143: 0 | BF143: Yes | BG143: No | BH143: 64684.2 | BI143: 0 | BJ143: 274917 | BK143: 2000 | BL143: 75906 | BM143: 0 | BN143: 35282 | BO143: 388105 | BP143: 0 | BR143: 0.7083572744 | BS143: 0.005153244612 | BT143: 0.1955810927 | BU143: 0 | BV143: 0.09090838819
E144: MarionIdeal Option | F144: Marion | G144: 47 | H144: Marion | I144: 29 | J144: 176746 | K144: Ideal Option | L144: Ideal Option PLLC | M144: 061 | N144: TRUE | O144: 2023-06-13 | P144: Valid | V144: 2023-05-01 | W144: 2023-05-01 | X144: 2023-05-01 | Y144: Yes | AA144: 176746 | AB144: 176746-0 | AC144: 2022-07-05 | AF144: 2022-07-21 | AG144: 2022-07-06 | AH144: 2022-07-21 | AI144: Yes | AJ144: Yes | AK144: Complete | AL144: 0 | AW144: 2022-08-05 | AY144: 924441 | AZ144: -924441 | BA144: 369776.4 | BB144: 92444.1 | BC144: 6 | BD144: 924441 | BE144: 0 | BF144: Yes | BG144: No | BH144: 0 | BJ144: 118370 | BK144: 0 | BL144: 806071 | BM144: 0 | BN144: 0 | BO144: 924441 | BP144: 0 | BR144: 0.1280449482 | BS144: 0 | BT144: 0.8719550518 | BU144: 0 | BV144: 0
E145: MarionIron Tribe Network | F145: Marion | G145: 47 | H145: Marion | I145: 29 | J145: 176747 | K145: Iron Tribe Network | L145: Iron Tribe Network | M145: 062 | N145: TRUE | O145: 2023-06-29 | P145: Valid | V145: 2023-07-01 | W145: 2023-01-02 | X145: 2023-01-02 | Y145: Yes | AA145: 176747 | AB145: 176747-0 | AC145: 2022-06-28 | AF145: 2022-07-21 | AG145: 2022-07-06 | AH145: 2022-07-21 | AI145: Yes | AJ145: Yes | AK145: Complete | AL145: 0 | AW145: 2022-08-05 | AY145: 768824 | AZ145: -768824 | BA145: 307529.6 | BB145: 76882.4 | BC145: 6 | BD145: 768824 | BE145: 0 | BF145: Yes | BG145: No | BH145: 0 | BJ145: 184249 | BK145: 2850 | BL145: 233824 | BM145: 535000 | BN145: 0 | BO145: 955923 | BP145: -187099 | BR145: 0.1927446039 | BS145: 0.002981411683 | BT145: 0.2446054755 | BU145: 0.5596685089 | BV145: 0
E146: MarionMarion County | F146: Marion | G146: 47 | H146: Marion | I146: 29 | J146: 176751 | K146: Marion County | L146: Marion County Health and Human Services | M146: 075 | AA146: 176751 | AB146: 176751-0 | AC146: 2022-08-31 | AF146: 2022-07-21 | AG146: 2022-06-30 | AH146: 2022-07-21 | AI146: Yes | AJ146: Yes | AK146: Complete | AL146: 0 | AW146: 2022-07-30 | AY146: 6419022 | AZ146: -6419022 | BA146: 1069837 | BB146: 1069837 | BC146: 5 | BD146: 6419022 | BE146: 0 | BF146: Yes | BG146: No | BH146: 0 | BJ146: 2158922.54 | BK146: 9000 | BL146: 2711100 | BM146: 1540000 | BN146: 0 | BO146: 6419022.54 | BP146: -0.54 | BR146: 0.3363319768 | BS146: 0.001402082629 | BT146: 0.422354024 | BU146: 0.2399119166 | BV146: 0
E147: MarionPathfinder Club of Oregon | F147: Marion | G147: 47 | H147: Marion | I147: 29 | J147: 176753 | K147: Pathfinder Club of Oregon | L147: Pathfinders of Oregon | N147: TRUE | O147: 2022-08-05 | P147: Expired | Q147: TRUE | R147: 170794 | V147: 2023-07-01 | W147: 2023-06-01 | X147: 2023-06-01 | Y147: Yes | AA147: 176753 | AB147: 176753-0 | AC147: 2022-07-07 | AF147: 2022-07-21 | AG147: 2022-07-06 | AH147: 2022-07-21 | AI147: Yes | AJ147: Yes | AK147: Complete | AL147: 0 | AW147: 2022-08-05 | AY147: 493935 | AZ147: -493935 | BA147: 197574 | BB147: 49393.5 | BC147: 6 | BD147: 493935 | BE147: 0 | BF147: Yes | BG147: No | BH147: 0 | BJ147: 299473 | BK147: 1800 | BL147: 112259 | BM147: 35500 | BN147: 44903 | BO147: 493935 | BP147: 0 | BR147: 0.6063004241 | BS147: 0.003644204197 | BT147: 0.2272748439 | BU147: 0.07187180499 | BV147: 0.09090872281
E148: MorrowCommunity Counseling Solutions | F148: Morrow | G148: 49 | H148: Morrow | I148: 30 | J148: 176490 | K148: Community Counseling Solutions | L148: Community Counseling Solutions | M148: 031 | N148: TRUE | O148: 2022-11-02 | P148: Valid | AA148: 176490 | AB148: 176490-0 | AC148: 2022-06-13 | AD148: 2022-06-13 | AE148: 2022-07-13 | AG148: N/A | AH148: N/A | AI148: No MOU Required | AJ148: No MOU Required | AK148: Complete | AL148: 0 | AW148: 2022-07-13 | AX148: 924517 | AY148: 924517.12 | AZ148: -0.12 | BA148: 369806.92 | BB148: 92451.7 | BC148: 6 | BD148: 924517.12 | BE148: 0 | BF148: Yes | BG148: No | BH148: 369806.92 | BI148: 0 | BJ148: 444573 | BK148: 0 | BL148: 0 | BM148: 352395 | BN148: 127500 | BO148: 924468 | BP148: 49.12 | BR148: 0.4808960397 | BS148: 0 | BT148: 0 | BU148: 0.3811868015 | BV148: 0.1379171588
E149: East Multnomah BHRN ProvidersBright Transitions | F149: Multnomah | G149: 51 | H149: East Multnomah BHRN Providers | I149: 31 | J149: 177742 | K149: Bright Transitions | L149: Bright Transitions LLC | M149: 013 | O149: 2022-05-23 | P149: Expired | AA149: 177742 | AB149: 177742-0 | AC149: 2022-09-01 | AF149: 2022-07-21 | AG149: 2022-07-21 | AH149: 2022-07-21 | AI149: Yes | AJ149: Yes | AK149: Complete | AL149: 0 | AW149: 2022-08-20 | AY149: 898018.15 | AZ149: -898018.15 | BA149: 358407.23 | BB149: 89601.82 | BC149: 6 | BD149: 896018.15 | BE149: 2000 | BF149: Yes | BG149: No | BH149: 0 | BJ149: 611618 | BK149: 3300 | BL149: 60000 | BM149: 221100 | BO149: 896018 | BP149: 2000.15 | BR149: 0.6825956621 | BS149: 0.003682961726 | BT149: 0.06696294048 | BU149: 0.2467584357 | BV149: 0
E150: East Multnomah BHRN ProvidersCascadia Behavioral Healthcare, Inc. | F150: Multnomah | G150: 51 | H150: East Multnomah BHRN Providers | I150: 31 | J150: 177740 | K150: Cascadia Behavioral Healthcare, Inc. | L150: Cascadia Inc. | M150: 017 | AA150: 177740 | AB150: 177740-0 | AC150: Pending | AF150: 2022-07-12 | AG150: 2022-07-11 | AH150: 2022-07-12 | AI150: Yes | AJ150: Yes | AK150: Complete | AL150: 0 | AW150: 2022-08-10 | AY150: 797355.41 | AZ150: -797355.41 | BA150: 318942.17 | BB150: 79735.54 | BC150: 6 | BD150: 797355.41 | BE150: 0 | BF150: Yes | BG150: No | BH150: 0 | BJ150: 633986.6 | BK150: 5000 | BL150: 115575.84 | BM150: 14999.94 | BN150: 27793.03 | BO150: 797355.41 | BP150: 0 | BR150: 0.7951116805 | BS150: 0.006270729385 | BT150: 0.1449489632 | BU150: 0.01881211291 | BV150: 0.03485651399
E151: East Multnomah BHRN ProvidersCODA, Inc. | F151: Multnomah | G151: 51 | H151: East Multnomah BHRN Providers | I151: 31 | J151: 177741 | K151: CODA, Inc. | L151: CODA, Inc. | M151: 027 | N151: TRUE | O151: 2022-09-26 | P151: Valid | AA151: 177741 | AB151: 177741-0 | AC151: Pending | AF151: 2022-07-12 | AG151: 2022-07-08 | AH151: 2022-07-12 | AI151: Yes | AJ151: Yes | AK151: Complete | AL151: 0 | AW151: 2022-08-07 | AY151: 545025 | AZ151: -545025 | BA151: 90837.5 | BB151: 90837.5 | BC151: 5 | BD151: 545025 | BE151: 0 | BF151: Yes | BG151: No | BH151: 0 | BJ151: 368346 | BK151: 0 | BL151: 33250 | BM151: 14813 | BN151: 128511 | BO151: 544920 | BP151: 105 | BQ151: No budget in CLM folder | BR151: 0.6759634442 | BS151: 0 | BT151: 0.0610181311 | BU151: 0.0271838068 | BV151: 0.2358346179
E152: East Multnomah BHRN ProvidersIron Tribe Network | F152: Multnomah | G152: 51 | H152: East Multnomah BHRN Providers | I152: 31 | J152: 177755 | K152: Iron Tribe Network | L152: Iron Tribe Network | M152: 062 | N152: TRUE | O152: 2023-06-29 | P152: Valid | V152: 2023-07-01 | W152: 2023-01-02 | X152: 2023-01-02 | Y152: Yes | AA152: 177755 | AB152: 177755-0 | AC152: 2022-09-07 | AF152: 2022-07-12 | AG152: 2022-07-08 | AH152: 2022-07-12 | AI152: Yes | AJ152: Yes | AK152: Complete | AL152: 0 | AW152: 2022-08-07 | AY152: 395361.1 | AZ152: -395361.1 | BA152: 158144.4 | BB152: 39536.1 | BC152: 6 | BD152: 395361 | BE152: 0.09999999998 | BF152: Yes | BG152: No | BH152: 0 | BJ152: 209886 | BK152: 2850 | BL152: 162625 | BM152: 20000 | BN152: 0 | BO152: 395361 | BP152: 0.09999999998 | BR152: 0.5308717855 | BS152: 0.007208601759 | BT152: 0.4113329337 | BU152: 0.05058667901 | BV152: 0
E153: East Multnomah BHRN ProvidersMorrison Child and Family Services | F153: Multnomah | G153: 51 | H153: East Multnomah BHRN Providers | I153: 31 | J153: 177718 | K153: Morrison Child and Family Services | L153: Morrison Child and Family Services | M153: 082 | N153: TRUE | O153: 2023-03-15 | P153: Valid | Q153: TRUE | R153: 170819 | AA153: 177718 | AB153: 177718-0 | AC153: 2022-08-28 | AF153: 2022-07-12 | AG153: 2022-07-12 | AH153: 2022-07-12 | AI153: Yes | AJ153: Yes | AK153: Complete | AL153: 0 | AW153: 2022-08-11 | AY153: 287521.13 | AZ153: -287521.13 | BA153: 47920.18 | BB153: 47920.19 | BC153: 5 | BD153: 287521.13 | BE153: 0 | BF153: Yes | BG153: No | BH153: 0 | BJ153: 210826 | BK153: 424 | BL153: 47546 | BM153: 0 | BN153: 28726 | BO153: 287522 | BP153: -0.87 | BR153: 0.7332517164 | BS153: 0.001474669764 | BT153: 0.1653647373 | BU153: 0 | BV153: 0.09990887654
E154: East Multnomah BHRN ProvidersNew Avenues for Youth | F154: Multnomah | G154: 51 | H154: East Multnomah BHRN Providers | I154: 31 | J154: 177720 | K154: New Avenues for Youth | L154: New Avenues for Youth, Inc. | M154: 083 | N154: TRUE | O154: 2023-02-18 | P154: Valid | AA154: 177720 | AB154: 177720-0 | AC154: 2022-09-02 | AF154: 2022-07-12 | AG154: 2022-07-08 | AH154: 2022-07-12 | AI154: Yes | AJ154: Yes | AK154: Complete | AL154: 0 | AW154: 2022-08-07 | AY154: 1059239 | AZ154: -1059239 | BA154: 423695.6 | BB154: 105923.9 | BC154: 6 | BD154: 1059239 | BE154: 0 | BF154: Yes | BG154: No | BH154: 0 | BJ154: 549750 | BK154: 26000 | BL154: 192327.4 | BM154: 153000 | BN154: 138161.61 | BO154: 1059239.01 | BP154: -0.01000000001 | BR154: 0.5190046768 | BS154: 0.02454592378 | BT154: 0.1815712962 | BU154: 0.1444433207 | BV154: 0.1304347826
E155: East Multnomah BHRN ProvidersNorthwest Family Services | F155: Multnomah | G155: 51 | H155: East Multnomah BHRN Providers | I155: 31 | J155: 177725 | K155: Northwest Family Services | L155: Northwest Family Services | M155: 087 | N155: TRUE | O155: 2023-07-07 | P155: Valid | Q155: TRUE | R155: 171993 | W155: 2022-12-31 | Y155: No | Z155: No professional liability coverage or worker's compensation | AA155: 177725 | AB155: 177725-0 | AC155: Pending | AF155: 2022-07-12 | AG155: 2022-07-08 | AH155: 2022-07-12 | AI155: Yes | AJ155: Yes | AK155: Complete | AL155: 0 | AW155: 2022-08-07 | AY155: 512760.25 | AZ155: -512760.25 | BF155: Yes | BG155: No | BH155: 0 | BJ155: 446931 | BK155: 2000 | BL155: 17216 | BM155: 0 | BN155: 46615 | BO155: 512762 | BP155: -1.75 | BR155: 0.8716149013 | BS155: 0.003900445041 | BT155: 0.03357503091 | BU155: 0 | BV155: 0.09090962279
E156: East Multnomah BHRN ProvidersPathfinders of Oregon | F156: Multnomah | G156: 51 | H156: East Multnomah BHRN Providers | I156: 31 | J156: 177727 | K156: Pathfinders of Oregon | L156: Pathfinders of Oregon | N156: TRUE | O156: 2022-08-05 | P156: Expired | Q156: TRUE | R156: 170794 | V156: 2023-07-01 | W156: 2023-06-01 | X156: 2023-06-01 | Y156: Yes | AA156: 177727 | AB156: 177727-0 | AC156: 2022-08-29 | AF156: 2022-07-12 | AG156: 2022-07-12 | AH156: 2022-07-12 | AI156: Yes | AJ156: Yes | AK156: Complete | AL156: 0 | AW156: 2022-08-11 | AY156: 1660187 | AZ156: -1660187 | BA156: 664074.8 | BB156: 166018.7 | BC156: 6 | BD156: 1660187 | BE156: 0 | BF156: Yes | BG156: No | BH156: 0 | BJ156: 827644 | BK156: 13050 | BL156: 364707 | BM156: 106264 | BN156: 131167 | BO156: 1442832 | BP156: 217355 | BR156: 0.5736246493 | BS156: 0.009044712066 | BT156: 0.2527716325 | BU156: 0.07364960023 | BV156: 0.09090940595
E157: East Multnomah BHRN ProvidersPhoenix Rising | F157: Multnomah | G157: 51 | H157: East Multnomah BHRN Providers | I157: 31 | J157: 177744 | K157: Phoenix Rising | L157: Phoenix Rising | M157: 103 | N157: TRUE | O157: 2022-10-15 | P157: Valid | AA157: 177744 | AB157: 177744-0 | AC157: 2022-08-30 | AF157: 2022-07-12 | AG157: 2022-07-08 | AH157: 2022-07-12 | AI157: Yes | AJ157: Yes | AK157: Complete | AL157: 0 | AW157: 2022-08-07 | AY157: 168927.55 | AZ157: -168927.55 | BA157: 67570.99 | BB157: 16892.76 | BC157: 6 | BD157: 168927.55 | BE157: 0 | BF157: Yes | BG157: No | BH157: 0 | BJ157: 147781.92 | BK157: 1500 | BL157: 19645.63 | BM157: 0 | BN157: 0 | BO157: 168927.55 | BP157: 0 | BR157: 0.8748242664 | BS157: 0.008879546291 | BT157: 0.1162961873 | BU157: 0 | BV157: 0
E158: East Multnomah BHRN ProvidersRaphael House of Portland | F158: Multnomah | G158: 51 | H158: East Multnomah BHRN Providers | I158: 31 | J158: 177745 | K158: Raphael House of Portland | L158: Raphael House of Portland | M158: 114 | N158: TRUE | O158: 2022-11-15 | P158: Valid | Q158: TRUE | R158: 170470 | AA158: 177745 | AB158: 177745-0 | AC158: 2022-09-07 | AF158: 2022-07-12 | AG158: 2022-07-08 | AH158: 2022-07-12 | AI158: Yes | AJ158: Yes | AK158: Complete | AL158: 0 | AW158: 2022-08-07 | AY158: 109855.95 | AZ158: -109855.95 | BA158: 43942.35 | BB158: 10985.6 | BC158: 6 | BD158: 109855.95 | BE158: 0 | BF158: Yes | BG158: No | BH158: 0 | BJ158: 83663 | BK158: 600 | BL158: 15606 | BM158: 0 | BN158: 9986.9 | BO158: 109855.9 | BP158: 0.05 | BR158: 0.7615703845 | BS158: 0.005461700282 | BT158: 0.1420588243 | BU158: 0 | BV158: 0.09090909091
E159: East Multnomah BHRN ProvidersThe 4th Dimension Recovery Center | F159: Multnomah | G159: 51 | H159: East Multnomah BHRN Providers | I159: 31 | J159: 177738 | K159: The 4th Dimension Recovery Center | L159: The 4th Dimension Recovery Center | M159: 131 | Q159: TRUE | R159: 170896 | AA159: 177738 | AB159: 177738-0 | AC159: 2022-09-02 | AF159: 2022-07-12 | AH159: 2022-07-12 | AI159: Yes | AJ159: Yes | AK159: Complete | AL159: 0 | AY159: 2639337.16 | AZ159: -2639337.16 | BA159: 439889.51 | BB159: 439889.53 | BC159: 5 | BD159: 2639337.16 | BE159: 0 | BF159: Yes | BG159: No | BH159: 0 | BJ159: 784595.13 | BK159: 2000 | BL159: 1467069.06 | BM159: 20000 | BN159: 365672.96 | BO159: 2639337.15 | BP159: 0.01000000024 | BQ159: Could not find in county folder | BR159: 0.2972697634 | BS159: 0.0007577660171 | BT159: 0.5558475392 | BU159: 0.007577660171 | BV159: 0.1385472712
E160: East Multnomah BHRN ProvidersThe Insight Alliance | F160: Multnomah | G160: 51 | H160: East Multnomah BHRN Providers | I160: 31 | J160: 177752 | K160: The Insight Alliance | L160: The Insight Alliance | M160: 134 | N160: TRUE | O160: 2023-05-07 | P160: Valid | AA160: 177752 | AB160: 177752-0 | AC160: 2022-09-07 | AF160: 2022-07-12 | AG160: 2022-07-08 | AH160: 2022-07-12 | AI160: Yes | AJ160: Yes | AK160: Complete | AL160: 0 | AW160: 2022-08-07 | AY160: 1008030.5 | AZ160: -1008030.5 | BA160: 403212.2 | BB160: 100803.05 | BC160: 6 | BD160: 1008030.5 | BE160: 0 | BF160: Yes | BG160: No | BH160: 0 | BJ160: 244480.5 | BK160: 43400 | BL160: 225150 | BM160: 495000 | BN160: 0 | BO160: 1008030.5 | BP160: 0 | BR160: 0.24253284 | BS160: 0.04305425282 | BT160: 0.2233563369 | BU160: 0.4910565702 | BV160: 0
E161: East Multnomah BHRN ProvidersThe Mental Health & Addiction Association of Oregon | F161: Multnomah | G161: 51 | H161: East Multnomah BHRN Providers | I161: 31 | J161: 177709 | K161: The Mental Health & Addiction Association of Oregon | L161: The Mental Health & Addiction Association of Oregon | M161: 136 | N161: TRUE | O161: 2023-07-20 | P161: Valid | AA161: 177709 | AB161: 177709-0 | AC161: 2022-08-30 | AF161: 2022-07-12 | AG161: 2022-07-11 | AH161: 2022-07-12 | AI161: Yes | AJ161: Yes | AK161: Complete | AL161: 0 | AW161: 2022-08-10 | AY161: 4015518.63 | AZ161: -4015518.63 | BA161: 1606207.47 | BB161: 401551.86 | BC161: 6 | BD161: 4015518.63 | BE161: 0 | BF161: Yes | BG161: No | BH161: #INVALID OPERATION | BI161: #INVALID OPERATION | BJ161: 2850038.354 | BK161: 0 | BL161: 879602.7 | BN161: 372964.11 | BO161: 4102605.164 | BP161: -87086.534 | BQ161: Was not sure if this one was the grant for Multnomah or east Multnomah | BR161: 0.6946898958 | BS161: 0 | BT161: 0.2144010122 | BU161: 0 | BV161: 0.09090909193
E162: East Multnomah BHRN ProvidersVolunteers of America Oregon | F162: Multnomah | G162: 51 | H162: East Multnomah BHRN Providers | I162: 31 | J162: 177746 | K162: Volunteers of America Oregon | L162: Volunteers of America Oregon, Inc. | M162: 147 | N162: TRUE | O162: 2022-10-03 | P162: Valid | AA162: 177746 | AB162: 177746-0 | AC162: Pending | AF162: 2022-07-12 | AG162: 2022-07-12 | AH162: 2022-07-12 | AI162: Yes | AJ162: Yes | AK162: Complete | AL162: 0 | AW162: 2022-08-11 | AY162: 947613.96 | AZ162: -947613.96 | BA162: 379045.56 | BB162: 94761.4 | BC162: 6 | BD162: 947613.96 | BE162: 0 | BF162: Yes | BG162: No | BH162: 0 | BJ162: 315096 | BK162: 2223 | BL162: 300391 | BM162: 135896 | BN162: 70000 | BO162: 823606 | BP162: 124007.96 | BR162: 0.3825809914 | BS162: 0.002699106126 | BT162: 0.3647265804 | BU162: 0.1650012263 | BV162: 0.08499209574
E163: East Multnomah BHRN ProvidersWomenFirst Transition & Referral Center | F163: Multnomah | G163: 51 | H163: East Multnomah BHRN Providers | I163: 31 | J163: 177710 | K163: WomenFirst Transition & Referral Center | L163: WomanFirst Reentry Transition Center | M163: 152 | AA163: 177710 | AB163: 177710-0 | AF163: 2022-07-12 | AG163: 2022-07-08 | AH163: 2022-07-12 | AI163: Yes | AJ163: Yes | AK163: Pending Grant Agreement Execution | AL163: 0 | AW163: 2022-08-07 | AY163: 952979.31 | AZ163: -952979.31 | BA163: 381191.73 | BB163: 95297.93 | BC163: 6 | BD163: 952979.31 | BE163: 0 | BF163: Yes | BG163: No | BH163: #INVALID OPERATION | BI163: #INVALID OPERATION | BJ163: 509263 | BK163: 500 | BL163: 342400 | BM163: 26000 | BN163: 74816.3 | BO163: 952979.3 | BP163: 0.01000000001 | BQ163: Not sure which is which, repeats | BR163: 0.5343904112 | BS163: 0.000524670368 | BT163: 0.359294268 | BU163: 0.02728285913 | BV163: 0.0785077913
E164: East Multnomah BHRN ProvidersYasiin's Luv LLC | F164: Multnomah | G164: 51 | H164: East Multnomah BHRN Providers | I164: 31 | J164: 177748 | K164: Yasiin's Luv LLC | L164: Yasiin's Luv LLC | M164: 155 | N164: TRUE | O164: 2022-10-14 | P164: Valid | AA164: 177748 | AB164: 177748-0 | AC164: 2022-08-29 | AF164: 2022-07-12 | AG164: 2022-07-11 | AH164: 2022-07-12 | AI164: Yes | AJ164: Yes | AK164: Complete | AL164: 0 | AW164: 2022-08-10 | AY164: 388335.65 | AZ164: -388335.65 | BA164: 155334.23 | BB164: 38833.57 | BC164: 6 | BD164: 388335.65 | BE164: 0 | BF164: Yes | BG164: No | BH164: 0 | BJ164: 306241 | BK164: 9200 | BL164: 72894 | BM164: 0 | BN164: 0 | BO164: 388335 | BP164: 0.65 | BR164: 0.7886000489 | BS164: 0.02369088545 | BT164: 0.1877090656 | BU164: 0 | BV164: 0
E165: Indigeninity BHRN ProvidersAlano Club of Portland | F165: Multnomah | G165: 51 | H165: Indigeninity BHRN Providers | I165: 32 | J165: 177705 | K165: Alano Club of Portland | L165: The Alano Club of Portland, Oregon | M165: 005 | N165: TRUE | O165: 2022-12-09 | P165: Valid | Q165: TRUE | R165: 170478 | AA165: 177705 | AB165: 177705-0 | AC165: Pending | AF165: 2022-07-14 | AG165: 2022-07-14 | AH165: 2022-07-18 | AI165: Yes | AJ165: Yes | AK165: Complete | AL165: 0 | AW165: 2022-08-13 | AY165: 1175008.59 | AZ165: -1175008.59 | BA165: 470003.49 | BB165: 117500.85 | BC165: 6 | BD165: 1175008.59 | BE165: 0 | BF165: Yes | BG165: No | BH165: 0 | BJ165: 706541.6 | BK165: 9600 | BL165: 105836.67 | BM165: 282376.16 | BN165: 70654.16 | BO165: 1175008.59 | BP165: 0 | BR165: 0.6013076041 | BS165: 0.008170153037 | BT165: 0.09007310321 | BU165: 0.2403183793 | BV165: 0.06013076041
E166: Indigeninity BHRN ProvidersBridges to Change | F166: Multnomah | G166: 51 | H166: Indigeninity BHRN Providers | I166: 32 | J166: 177728 | K166: Bridges to Change | L166: Bridges to Change, Inc. | M166: 011 | N166: TRUE | O166: 2023-02-13 | P166: Valid | Q166: TRUE | R166: 170864 | AA166: 177728 | AB166: 177728-0 | AC166: Pending | AF166: 2022-07-18 | AG166: 2022-07-14 | AH166: 2022-07-18 | AI166: Yes | AJ166: Yes | AK166: Complete | AL166: 0 | AW166: 2022-08-13 | AY166: 8483789.84 | AZ166: -8483789.84 | BA166: 3393515.96 | BB166: 848378.98 | BC166: 6 | BD166: 8483789.84 | BE166: 0 | BF166: Yes | BG166: No | BH166: 0 | BO166: 0 | BQ166: Budget is very unclear
E167: Indigeninity BHRN ProvidersFresh-Out Community Based Re-Entry Program | F167: Multnomah | G167: 51 | H167: Indigeninity BHRN Providers | I167: 32 | J167: 177717 | K167: Fresh-Out Community Based Re-Entry Program | L167: Fresh Out Community Based Reentry Program | M167: 049 | Q167: TRUE | R167: 170827 | AA167: 177717 | AB167: 177717-0 | AC167: 2022-08-28 | AF167: 2022-07-13 | AG167: 2022-07-11 | AH167: 2022-07-18 | AI167: Yes | AJ167: Yes | AK167: Complete | AL167: 0 | AW167: 2022-08-10 | AY167: 494408 | AZ167: -494408 | BA167: 197763.2 | BB167: 49440.8 | BC167: 6 | BD167: 494408 | BE167: 0 | BF167: Yes | BG167: No | BH167: 0 | BJ167: 17000 | BK167: 21240 | BL167: 409440 | BM167: 0 | BN167: 46728 | BO167: 494408 | BP167: 0 | BR167: 0.03438455688 | BS167: 0.0429604699 | BT167: 0.8281419395 | BU167: 0 | BV167: 0.09451303377
E168: Indigeninity BHRN ProvidersGoing Home II | F168: Multnomah | G168: 51 | H168: Indigeninity BHRN Providers | I168: 32 | J168: 177719 | K168: Going Home II | L168: Going Home II | M168: 051 | N168: TRUE | O168: 2023-01-16 | P168: Valid | AA168: 177719 | AB168: 177719-0 | AC168: 2022-09-02 | AF168: 2022-07-18 | AG168: 2022-07-14 | AH168: 2022-07-18 | AI168: Yes | AJ168: Yes | AK168: Complete | AL168: 0 | AW168: 2022-08-13 | AY168: 4954114 | AZ168: -4954114 | BA168: 1981645.6 | BB168: 495411.4 | BC168: 6 | BD168: 4954114 | BE168: 0 | BF168: Yes | BG168: No | BH168: 0 | BJ168: 1705041 | BK168: 64542 | BL168: 721061 | BM168: 2213000 | BN168: 250470 | BO168: 4954114 | BP168: 0 | BR168: 0.3441666865 | BS168: 0.0130279602 | BT168: 0.1455479224 | BU168: 0.4466994502 | BV168: 0.0505579807
E169: Indigeninity BHRN ProvidersJust Men In Recovery | F169: Multnomah | G169: 51 | H169: Indigeninity BHRN Providers | I169: 32 | J169: 177686 | K169: Just Men In Recovery | L169: Just Men In Recovery | M169: 065 | N169: TRUE | O169: 2023-04-08 | P169: Valid | AA169: 177686 | AB169: 177686-0 | AC169: 2022-08-29 | AF169: 2022-07-13 | AG169: 2022-07-14 | AH169: 2022-07-18 | AI169: Yes | AJ169: Yes | AK169: Complete | AL169: 0 | AW169: 2022-08-13 | AY169: 2230324.5 | AZ169: -2230324.5 | BA169: 892009.8 | BB169: 223002.45 | BC169: 6 | BD169: 2230024.5 | BE169: 300 | BF169: Yes | BG169: No | BH169: 0 | BJ169: 661125 | BK169: 22500 | BL169: 1329270 | BM169: 19400 | BN169: 202729.5 | BO169: 2235024.5 | BP169: -4700 | BQ169: The budget table subtotals do not add up to the sum in the budget, there is an error somewhere | BR169: 0.2958021266 | BS169: 0.01006700374 | BT169: 0.5947451583 | BU169: 0.008679994336 | BV169: 0.0907057171
E170: Indigeninity BHRN ProvidersMetroPlus Association | F170: Multnomah | G170: 51 | H170: Indigeninity BHRN Providers | I170: 32 | J170: 177721 | K170: MetroPlus Association | L170: MetroPlus Association of Addiction Peer Professionals | M170: 078 | N170: TRUE | O170: 2024-06-22 | P170: Valid | AA170: 177721 | AB170: 177721-0 | AC170: 2022-09-02 | AF170: #NO MATCH | AG170: 2022-07-15 | AH170: 2022-07-18 | AI170: Yes | AJ170: Yes | AK170: Complete | AL170: 0 | AW170: 2022-08-14 | AX170: #NO MATCH | AY170: 418627.52 | AZ170: #INVALID OPERATION | BA170: 167451.02 | BB170: 41862.75 | BC170: 6 | BD170: 418627.52 | BE170: 0 | BF170: Yes | BG170: No | BH170: 0 | BJ170: 71085.6 | BK170: 260811.96 | BL170: 86729.96 | BM170: 0 | BN170: 0 | BO170: 418627.52 | BP170: 0 | BQ170: Could not locate grant | BR170: 0.1698063233 | BS170: 0.6230167572 | BT170: 0.2071769195 | BU170: 0 | BV170: 0
E171: Indigeninity BHRN ProvidersOregon Change Clinic | F171: Multnomah | G171: 51 | H171: Indigeninity BHRN Providers | I171: 32 | J171: 177731 | K171: Oregon Change Clinic | L171: Oregon Change Clinic, LLC | M171: 097 | N171: TRUE | O171: 2022-10-14 | P171: Valid | Q171: TRUE | R171: 170866 | AA171: 177731 | AB171: 177731-0 | AC171: 2022-09-01 | AF171: 2022-07-18 | AG171: 2022-07-14 | AH171: 2022-07-18 | AI171: Yes | AJ171: Yes | AK171: Complete | AL171: 0 | AW171: 2022-08-13 | AY171: 3218373 | AZ171: -3218373 | BA171: 1287349.2 | BB171: 321837.3 | BC171: 6 | BD171: 3218373 | BE171: 0 | BF171: Yes | BG171: No | BH171: 0 | BJ171: 1345050 | BK171: 0 | BL171: 504000 | BM171: 1373050 | BN171: 0 | BO171: 3222100 | BP171: -3727 | BQ171: Budget is kind of unclear this is a best guess | BR171: 0.4174451445 | BS171: 0 | BT171: 0.1564197263 | BU171: 0.4261351293 | BV171: 0
E172: Indigeninity BHRN ProvidersOutside In | F172: Multnomah | G172: 51 | H172: Indigeninity BHRN Providers | I172: 32 | J172: 177707 | K172: Outside In | L172: Outside In | M172: 100 | N172: TRUE | O172: 2022-09-23 | P172: Valid | Q172: TRUE | R172: 170897 | AA172: 177707 | AB172: 177707-0 | AC172: 2022-08-28 | AF172: 2022-07-18 | AG172: 2022-07-15 | AH172: 2022-07-18 | AI172: Yes | AJ172: Yes | AK172: Complete | AL172: 0 | AW172: 2022-08-14 | AY172: 2110456 | AZ172: -2110456 | BA172: 351742.65 | BB172: 351742.67 | BC172: 5 | BD172: 2110456 | BE172: 0 | BF172: Yes | BG172: No | BH172: 0 | BJ172: 1265882 | BK172: 28800 | BL172: 623915 | BM172: 0 | BN172: 191860 | BO172: 2110457 | BP172: -1 | BR172: 0.5998141635 | BS172: 0.01364633347 | BT172: 0.2956302829 | BU172: 0 | BV172: 0.09090922014
E173: Indigeninity BHRN ProvidersPainted Horse Recovery | F173: Multnomah | G173: 51 | H173: Indigeninity BHRN Providers | I173: 32 | J173: 177722 | K173: Painted Horse Recovery | L173: Painted Horse Recovery | M173: 101 | N173: TRUE | O173: 2023-05-06 | P173: Valid | AA173: 177722 | AB173: 177722-0 | AC173: 2022-08-31 | AF173: 2022-07-13 | AG173: 2022-07-15 | AH173: 2022-07-18 | AI173: Yes | AJ173: Yes | AK173: Complete | AL173: 0 | AW173: 2022-08-14 | AY173: 866221.67 | AZ173: -866221.67 | BA173: 144370.27 | BB173: 144370.28 | BC173: 5 | BD173: 866221.67 | BE173: 0 | BF173: Yes | BG173: No | BH173: 0 | BJ173: 441600.07 | BK173: 1000 | BL173: 267881.19 | BM173: 60000 | BN173: 115740.42 | BO173: 886221.68 | BP173: -20000.01 | BR173: 0.4982952685 | BS173: 0.001128385846 | BT173: 0.3022733432 | BU173: 0.06770315075 | BV173: 0.1305998517
E174: Indigeninity BHRN ProvidersProject Patchwork | F174: Multnomah | G174: 51 | H174: Indigeninity BHRN Providers | I174: 32 | J174: 177723 | K174: Project Patchwork | L174: Project Patchwork | M174: 107 | N174: TRUE | O174: 2022-04-08 | P174: Expired | W174: 9/7/023 | X174: 9/7/023 | Y174: No | Z174: No worker's compensation | AA174: 177723 | AB174: 177723-0 | AC174: 2022-09-02 | AF174: 2022-07-18 | AG174: 2022-07-14 | AH174: 2022-07-18 | AI174: Yes | AJ174: Yes | AK174: Complete | AL174: 0 | AW174: 2022-08-13 | AY174: 1127145.29 | AZ174: -1127145.29 | BA174: 450858.11 | BB174: 112714.53 | BC174: 6 | BD174: 1127145.29 | BE174: 0 | BF174: Yes | BG174: No | BH174: 0 | BJ174: 160189.49 | BK174: 2643.8 | BL174: 210612 | BM174: 753700 | BN174: 0 | BO174: 1127145.29 | BP174: 0 | BR174: 0.1421196464 | BS174: 0.002345571617 | BT174: 0.1868543495 | BU174: 0.6686804325 | BV174: 0
E175: Indigeninity BHRN ProvidersProject Quest (Quest Center for Integrative Health) | F175: Multnomah | G175: 51 | H175: Indigeninity BHRN Providers | I175: 32 | J175: 177724 | K175: Project Quest (Quest Center for Integrative Health) | L175: Project Quest | M175: 108 | N175: TRUE | O175: 2022-07-06 | P175: Expired | AA175: 177724 | AB175: 177724-0 | AC175: 2022-08-28 | AF175: 2022-07-11 | AG175: 2022-07-14 | AH175: 2022-07-18 | AI175: Yes | AJ175: Yes | AK175: Complete | AL175: 0 | AW175: 2022-08-13 | AY175: 2807764.31 | AZ175: -2807764.31 | BA175: 1123105.73 | BB175: 280776.43 | BC175: 6 | BD175: 2807764.31 | BE175: 0 | BF175: Yes | BG175: No | BH175: 0 | BJ175: 2053398.24 | BK175: 0 | BL175: 314366.07 | BM175: 440000 | BN175: 0 | BO175: 2807764.31 | BP175: 0 | BR175: 0.7313285637 | BS175: 0 | BT175: 0.1119631263 | BU175: 0.15670831 | BV175: 0
E176: Indigeninity BHRN ProvidersSE Works Inc | F176: Multnomah | G176: 51 | H176: Indigeninity BHRN Providers | I176: 32 | J176: 177706 | K176: SE Works Inc | L176: SE Works Inc. | M176: 124 | N176: TRUE | O176: 2022-09-10 | P176: Valid | Q176: TRUE | R176: 170471 | V176: 2023-07-01 | W176: 2023-07-01 | Y176: No | Z176: No professional liability coverage | AA176: 177706 | AB176: 177706-0 | AC176: Pending | AF176: 2022-07-12 | AG176: 2022-07-14 | AH176: 2022-07-18 | AI176: Yes | AJ176: Yes | AK176: Complete | AL176: 0 | AW176: 2022-08-13 | AY176: 917806.84 | AZ176: -917806.84 | BA176: 152967.79 | BB176: 152967.81 | BC176: 5 | BD176: 917806.84 | BE176: 0 | BF176: Yes | BG176: No | BH176: 0 | BJ176: 442891.54 | BK176: 1000 | BL176: 369083.61 | BM176: 18400 | BN176: 86431.7 | BO176: 917806.85 | BP176: -0.01000000001 | BR176: 0.4825541888 | BS176: 0.001089553864 | BT176: 0.4021364735 | BU176: 0.0200477911 | BV176: 0.09417199272
E177: Indigeninity BHRN ProvidersSovalti LLC | F177: Multnomah | G177: 51 | H177: Indigeninity BHRN Providers | I177: 32 | J177: 177678 | K177: Sovalti LLC | L177: Sovalti L.L.C. | M177: 128 | N177: TRUE | O177: 2022-11-13 | P177: Valid | AA177: 177678 | AB177: 177678-0 | AC177: 2022-08-30 | AF177: 2022-07-18 | AG177: 2022-07-15 | AH177: 2022-07-18 | AI177: Yes | AJ177: Yes | AK177: Complete | AL177: 0 | AW177: 2022-08-14 | AY177: 152866.59 | AZ177: -152866.59 | BA177: 61146.63 | BB177: 15286.66 | BC177: 6 | BD177: 152866.59 | BE177: 0 | BF177: Yes | BG177: No | BH177: 0 | BJ177: 75753 | BK177: 3780 | BL177: 53320 | BM177: 0 | BN177: 0 | BO177: 132853 | BP177: 20013.59 | BR177: 0.5702016514 | BS177: 0.02845250013 | BT177: 0.4013458484 | BU177: 0 | BV177: 0
E178: Indigeninity BHRN ProvidersThe 4th Dimension Recovery Center | F178: Multnomah | G178: 51 | H178: Indigeninity BHRN Providers | I178: 32 | J178: 177738 | K178: The 4th Dimension Recovery Center | L178: The 4th Dimension Recovery Center | M178: 131 | N178: TRUE | O178: 2023-01-14 | P178: Valid | Q178: TRUE | R178: 170896 | AA178: 177738 | AB178: 177738-0 | AC178: 2022-09-02 | AF178: 2022-07-12 | AG178: 2022-07-18 | AH178: 2022-07-18 | AI178: Yes | AJ178: Yes | AK178: Complete | AL178: 0 | AW178: 2022-08-17 | AY178: 2639337.16 | AZ178: -2639337.16 | BA178: 439889.51 | BB178: 439889.53 | BC178: 5 | BD178: 2639337.16 | BE178: 0 | BF178: Yes | BG178: No | BH178: 0 | BJ178: 784595.13 | BK178: 2000 | BL178: 1467069.06 | BM178: 20000 | BN178: 365672.96 | BO178: 2639337.15 | BP178: 0.01000000024 | BR178: 0.2972697634 | BS178: 0.0007577660171 | BT178: 0.5558475392 | BU178: 0.007577660171 | BV178: 0.1385472712
E179: Indigeninity BHRN ProvidersThe Mental Health & Addiction Association of Oregon | F179: Multnomah | G179: 51 | H179: Indigeninity BHRN Providers | I179: 32 | J179: 177709 | K179: The Mental Health & Addiction Association of Oregon | L179: The Mental Health & Addiction Association of Oregon | M179: 136 | N179: TRUE | O179: 2023-07-20 | P179: Valid | AA179: 177709 | AB179: 177709-0 | AC179: 2022-08-30 | AF179: 2022-07-12 | AG179: 2022-07-15 | AH179: 2022-07-18 | AI179: Yes | AJ179: Yes | AK179: Complete | AL179: 0 | AW179: 2022-08-14 | AY179: 4015518.63 | AZ179: -4015518.63 | BA179: 1606207.47 | BB179: 401551.86 | BC179: 6 | BD179: 4015518.63 | BE179: 0 | BF179: Yes | BG179: No | BH179: #INVALID OPERATION | BI179: #INVALID OPERATION | BJ179: 2850038.354 | BK179: 0 | BL179: 879602.7 | BN179: 372964.11 | BO179: 4102605.164 | BP179: -87086.534 | BQ179: Not able to find this one, might be the other | BR179: 0.6946898958 | BS179: 0 | BT179: 0.2144010122 | BU179: 0 | BV179: 0.09090909193
E180: Indigeninity BHRN ProvidersThe Miracles Club | F180: Multnomah | G180: 51 | H180: Indigeninity BHRN Providers | I180: 32 | J180: 177730 | K180: The Miracles Club | L180: The Miracles Club | M180: 137 | N180: TRUE | O180: 2022-11-14 | P180: Valid | Q180: TRUE | R180: 170476 | AA180: 177730 | AB180: 177730-0 | AC180: 2022-09-02 | AF180: 2022-07-14 | AG180: 2022-07-14 | AH180: 2022-07-18 | AI180: Yes | AJ180: Yes | AK180: Complete | AL180: 0 | AW180: 2022-08-13 | AY180: 3201077 | AZ180: -3201077 | BA180: 533512.85 | BB180: 533512.83 | BC180: 5 | BD180: 3201077 | BE180: 0 | BF180: Yes | BG180: No | BH180: 0 | BJ180: 1186560 | BK180: 4800 | BL180: 608035 | BM180: 323000 | BN180: 305898 | BO180: 2428293 | BP180: 772784 | BQ180: Budget table has a separate line item called extended housing that matches the variance, not sure what that falls under | BR180: 0.4886395505 | BS180: 0.001976697211 | BT180: 0.2503960601 | BU180: 0.1330152498 | BV180: 0.1259724424
E181: Indigeninity BHRN ProvidersWomenFirst Transition & Referral Center | F181: Multnomah | G181: 51 | H181: Indigeninity BHRN Providers | I181: 32 | J181: 177710 | K181: WomenFirst Transition & Referral Center | L181: WomenFirst Transition & Referral Center | M181: 152 | AA181: 177710 | AB181: 177710-0 | AF181: 2022-07-12 | AG181: 2022-07-18 | AH181: 2022-07-18 | AI181: Yes | AJ181: Yes | AK181: Pending Grant Agreement Execution | AL181: 0 | AW181: 2022-08-17 | AY181: 952972.31 | AZ181: -952972.31 | BA181: 381191.73 | BB181: 95297.93 | BC181: 6 | BD181: 952979.31 | BE181: -7 | BF181: Yes | BG181: No | BH181: #INVALID OPERATION | BI181: #INVALID OPERATION | BJ181: 509263 | BK181: 500 | BL181: 342400 | BM181: 26000 | BO181: 878163 | BP181: 74809.31 | BQ181: Not sure which is which, repeats | BR181: 0.5799185345 | BS181: 0.0005693703788 | BT181: 0.3899048354 | BU181: 0.0296072597 | BV181: 0
E182: Latino/a/x Multnomah County BHRNCentral City Concern Puentes | F182: Multnomah | G182: 51 | H182: Latino/a/x Multnomah County BHRN | I182: 33 | J182: 177739 | K182: Central City Concern Puentes | L182: Central City Concern | M182: 020 | Q182: TRUE | R182: 170858 | AA182: 177739 | AB182: 177739-0 | AC182: Pending | AF182: 2022-07-20 | AG182: 2022-07-18 | AH182: 2022-07-20 | AI182: Yes | AJ182: Yes | AK182: Complete | AL182: 0 | AW182: 2022-08-17 | AY182: 633099.63 | AZ182: -633099.63 | BA182: 105516.58 | BB182: 105516.61 | BC182: 5 | BD182: 633099.63 | BE182: 0 | BF182: Yes | BG182: No | BH182: 0 | BJ182: 480547 | BK182: 3340 | BL182: 149199 | BM182: 0 | BN182: 0 | BO182: 633086 | BP182: 13.63 | BR182: 0.7590548519 | BS182: 0.005275744528 | BT182: 0.2356694035 | BU182: 0 | BV182: 0
E183: Latino/a/x Multnomah County BHRNFresh-Out Community Based Re-Entry Program | F183: Multnomah | G183: 51 | H183: Latino/a/x Multnomah County BHRN | I183: 33 | J183: 177717 | K183: Fresh-Out Community Based Re-Entry Program | L183: Fresh Out Community Based Reentry Program | M183: 049 | Q183: TRUE | R183: 170827 | AA183: 177717 | AB183: 177717-0 | AC183: 2022-08-28 | AF183: 2022-07-13 | AG183: 2022-07-19 | AH183: 2022-07-20 | AI183: Yes | AJ183: Yes | AK183: Complete | AL183: 0 | AW183: 2022-08-18 | AY183: 494408 | AZ183: -494408 | BA183: 197763.2 | BB183: 49440.8 | BC183: 6 | BD183: 494408 | BE183: 0 | BF183: Yes | BG183: No | BH183: 0 | BJ183: 17000 | BK183: 21240 | BL183: 409440 | BM183: 0 | BN183: 46728 | BO183: 494408 | BP183: 0 | BR183: 0.03438455688 | BS183: 0.0429604699 | BT183: 0.8281419395 | BU183: 0 | BV183: 0.09451303377
E184: Latino/a/x Multnomah County BHRNJuntos LLC | F184: Multnomah | G184: 51 | H184: Latino/a/x Multnomah County BHRN | I184: 33 | J184: 177729 | K184: Juntos LLC | L184: Juntos, LLC | M184: 064 | N184: TRUE | O184: 2022-11-01 | P184: Valid | W184: 2023-06-08 | X184: 2023-06-08 | Y184: No | Z184: No worker's compensation (does have Umbrella coverage) | AA184: 177729 | AB184: 177729-0 | AC184: Pending | AF184: 2022-07-20 | AG184: 2022-07-15 | AH184: 2022-07-20 | AI184: Yes | AJ184: Yes | AK184: Complete | AL184: 0 | AW184: 2022-08-14 | AY184: 564793.91 | AZ184: -564793.91 | BA184: 225917.57 | BB184: 56479.39 | BC184: 6 | BD184: 564793.91 | BE184: 0 | BF184: Yes | BG184: No | BH184: 0 | BJ184: 316350 | BK184: 5000 | BL184: 250944 | BM184: 0 | BN184: 0 | BO184: 572294 | BP184: -7500.09 | BR184: 0.5527753218 | BS184: 0.008736768165 | BT184: 0.4384879101 | BU184: 0 | BV184: 0
E185: Latino/a/x Multnomah County BHRNNew Avenues for Youth | F185: Multnomah | G185: 51 | H185: Latino/a/x Multnomah County BHRN | I185: 33 | J185: 177720 | K185: New Avenues for Youth | L185: New Avenues for Youth, Inc. | M185: 083 | N185: TRUE | O185: 2023-02-18 | P185: Valid | AA185: 177720 | AB185: 177720-0 | AC185: 2022-09-02 | AF185: 2022-07-12 | AG185: 2022-07-15 | AH185: 2022-07-20 | AI185: Yes | AJ185: Yes | AK185: Complete | AL185: 0 | AW185: 2022-08-14 | AY185: 1059239 | AZ185: -1059239 | BA185: 423965.6 | BB185: 105923.9 | BC185: 6 | BD185: 1059509 | BE185: -270 | BF185: Yes | BG185: No | BH185: 0 | BJ185: 549750 | BK185: 26000 | BL185: 192327.4 | BM185: 153000 | BN185: 138461.61 | BO185: 1059539.01 | BP185: -300.01 | BR185: 0.5188577247 | BS185: 0.02453897379 | BT185: 0.1815198857 | BU185: 0.1444024227 | BV185: 0.130680993
E186: Latino/a/x Multnomah County BHRNNorthwest Family Services | F186: Multnomah | G186: 51 | H186: Latino/a/x Multnomah County BHRN | I186: 33 | J186: 177725 | K186: Northwest Family Services | L186: Northwest Family Services | M186: 087 | N186: TRUE | O186: 2023-07-07 | P186: Valid | Q186: TRUE | R186: 171993 | W186: 2022-12-31 | Y186: No | Z186: No professional liability coverage or worker's compensation | AA186: 177725 | AB186: 177725-0 | AC186: Pending | AF186: 2022-07-12 | AG186: 2022-07-15 | AH186: 2022-07-20 | AI186: Yes | AJ186: Yes | AK186: Complete | AL186: 0 | AW186: 2022-08-14 | AY186: 512761.25 | AZ186: -512761.25 | BA186: 205104.47 | BB186: 51276.13 | BC186: 6 | BD186: 512761.25 | BE186: 0 | BF186: Yes | BG186: No | BH186: 0 | BJ186: 446931 | BK186: 2000 | BL186: 17216 | BM186: 0 | BN186: 46615 | BO186: 512762 | BP186: -0.75 | BR186: 0.8716149013 | BS186: 0.003900445041 | BT186: 0.03357503091 | BU186: 0 | BV186: 0.09090962279
E187: Latino/a/x Multnomah County BHRNNorthwest Instituto Latino De Adicciones | F187: Multnomah | G187: 51 | H187: Latino/a/x Multnomah County BHRN | I187: 33 | J187: 177715 | K187: Northwest Instituto Latino De Adicciones | L187: Northwest Instituto Latino De Adicciones | M187: 088 | N187: TRUE | O187: 2023-06-15 | P187: Valid | Q187: TRUE | R187: 170473 | W187: 2022-12-31 | Y187: No | Z187: No professional liability coverage or worker's compensation | AA187: 177715 | AB187: 177715-0 | AC187: 2022-09-07 | AF187: 2022-07-20 | AG187: 2022-07-18 | AH187: 2022-07-20 | AI187: Yes | AJ187: Yes | AK187: Complete | AL187: 0 | AW187: 2022-08-17 | AY187: 1204980.84 | AZ187: -1204980.84 | BA187: 481992.36 | BB187: 120498.08 | BC187: 6 | BD187: 1204980.84 | BE187: 0 | BF187: Yes | BG187: No | BH187: 0 | BJ187: 662287.39 | BK187: 107431.56 | BL187: 323300 | BN187: 111961.89 | BO187: 1204980.84 | BP187: 0 | BR187: 0.5496248305 | BS187: 0.0891562392 | BT187: 0.2683030213 | BU187: 0 | BV187: 0.09291590894
E188: Latino/a/x Multnomah County BHRNSE Works Inc | F188: Multnomah | G188: 51 | H188: Latino/a/x Multnomah County BHRN | I188: 33 | J188: 177706 | K188: SE Works Inc | L188: SE Works Inc. | M188: 124 | N188: TRUE | O188: 2022-09-10 | P188: Valid | Q188: TRUE | R188: 170471 | V188: 2023-07-01 | W188: 2023-07-01 | Y188: No | Z188: No professional liability coverage | AA188: 177706 | AB188: 177706-0 | AC188: Pending | AF188: 2022-07-12 | AG188: 2022-07-15 | AH188: 2022-07-20 | AI188: Yes | AJ188: Yes | AK188: Complete | AL188: 0 | AW188: 2022-08-14 | AY188: 917806.84 | AZ188: -917806.84 | BA188: 152967.79 | BB188: 152967.81 | BC188: 5 | BD188: 917806.84 | BE188: 0 | BF188: Yes | BG188: No | BH188: 0 | BJ188: 442891.54 | BK188: 1000 | BL188: 369083.61 | BM188: 18400 | BN188: 86431.7 | BO188: 917806.85 | BP188: -0.01000000001 | BR188: 0.4825541888 | BS188: 0.001089553864 | BT188: 0.4021364735 | BU188: 0.0200477911 | BV188: 0.09417199272
E189: Latino/a/x Multnomah County BHRNThe 4th Dimension Recovery Center | F189: Multnomah | G189: 51 | H189: Latino/a/x Multnomah County BHRN | I189: 33 | J189: 177738 | K189: The 4th Dimension Recovery Center | L189: The 4th Dimension Recovery Center | M189: 131 | N189: TRUE | O189: 2023-01-14 | P189: Valid | Q189: TRUE | R189: 170896 | AA189: 177738 | AB189: 177738-0 | AC189: 2022-09-02 | AF189: 2022-07-12 | AG189: 2022-07-15 | AH189: 2022-07-20 | AI189: Yes | AJ189: Yes | AK189: Complete | AL189: 0 | AW189: 2022-08-14 | AY189: 2639337.16 | AZ189: -2639337.16 | BA189: 439889.51 | BB189: 439889.53 | BC189: 5 | BD189: 2639337.16 | BE189: 0 | BF189: Yes | BG189: No | BH189: 0 | BJ189: 784595.13 | BK189: 2000 | BL189: 1467069.06 | BM189: 20000 | BN189: 365672.96 | BO189: 2639337.15 | BP189: 0.01000000024 | BR189: 0.2972697634 | BS189: 0.0007577660171 | BT189: 0.5558475392 | BU189: 0.007577660171 | BV189: 0.1385472712
E190: Latino/a/x Multnomah County BHRNThe Pathfinder Network | F190: Multnomah | G190: 51 | H190: Latino/a/x Multnomah County BHRN | I190: 33 | J190: 177727 | K190: The Pathfinder Network | L190: Pathfinders of Oregon | N190: TRUE | O190: 2022-08-05 | P190: Expired | Q190: TRUE | R190: 170794 | V190: 2023-07-01 | W190: 2023-06-01 | X190: 2023-06-01 | Y190: Yes | AA190: 177727 | AB190: 177727-0 | AC190: 2022-08-29 | AF190: #NO MATCH | AG190: 2022-07-18 | AH190: 2022-07-20 | AI190: Yes | AJ190: Yes | AK190: Complete | AL190: 0 | AW190: 2022-08-17 | AX190: #NO MATCH | AY190: 1660187 | AZ190: #INVALID OPERATION | BA190: 664074.8 | BB190: 166018.7 | BC190: 6 | BD190: 1660187 | BE190: 0 | BF190: Yes | BG190: No | BH190: #INVALID OPERATION | BI190: #INVALID OPERATION | BJ190: 827644 | BK190: 13050 | BL190: 364707 | BM190: 106264 | BN190: 131167 | BO190: 1442832 | BP190: 217355 | BQ190: Grant not found, there is a pathfinders of oregon org that is listed above, could be the same thing | BR190: 0.5736246493 | BS190: 0.009044712066 | BT190: 0.2527716325 | BU190: 0.07364960023 | BV190: 0.09090940595
E191: No Wrong Door BHRN ProvidersCascade Aids Project | F191: Multnomah | G191: 51 | H191: No Wrong Door BHRN Providers | I191: 34 | J191: 177693 | K191: Cascade Aids Project | L191: Cascade Aids Project | M191: 016 | AA191: 177693 | AB191: 177693-0 | AC191: Pending | AF191: 2022-07-18 | AG191: 2022-07-18 | AH191: 2022-07-18 | AI191: Yes | AJ191: Yes | AK191: Complete | AL191: 0 | AW191: 2022-08-17 | AY191: 359175.9 | AZ191: -359175.9 | BA191: 59862.65 | BB191: 59862.65 | BC191: 5 | BD191: 359175.9 | BE191: 0 | BF191: Yes | BG191: No | BH191: 0 | BJ191: 243575 | BK191: 2500 | BL191: 113100.9 | BM191: 0 | BN191: 0 | BO191: 359175.9 | BP191: 0 | BQ191: No budget in the folder | BR191: 0.6781496197 | BS191: 0.00696037791 | BT191: 0.3148900024 | BU191: 0 | BV191: 0
E192: No Wrong Door BHRN ProvidersCascadia Behavioral Healthcare | F192: Multnomah | G192: 51 | H192: No Wrong Door BHRN Providers | I192: 34 | J192: 177740 | K192: Cascadia Behavioral Healthcare | L192: Cascadia Behavioral Healthcare, Inc. | M192: 017 | R192: 172070 | AA192: 177740 | AB192: 177740-0 | AC192: Pending | AF192: #NO MATCH | AG192: 2022-07-18 | AH192: 2022-07-18 | AI192: Yes | AJ192: Yes | AK192: Complete | AL192: 0 | AW192: 2022-08-17 | AX192: #NO MATCH | AY192: 797355.41 | AZ192: #INVALID OPERATION | BA192: 318942.17 | BB192: 79735.54 | BC192: 6 | BD192: 797355.41 | BE192: 0 | BF192: Yes | BG192: No | BH192: 0 | BJ192: 633986.6 | BK192: 5000 | BL192: 130575.78 | BM192: 0 | BN192: 27793.03 | BO192: 797355.41 | BP192: 0 | BR192: 0.7951116805 | BS192: 0.006270729385 | BT192: 0.1637610761 | BU192: 0 | BV192: 0.03485651399
E193: No Wrong Door BHRN ProvidersLutheran Community Services | F193: Multnomah | G193: 51 | H193: No Wrong Door BHRN Providers | I193: 34 | J193: 177695 | K193: Lutheran Community Services | L193: Lutheran Community Services Northwest | M193: 074 | N193: TRUE | O193: 2023-01-04 | P193: Valid | Q193: TRUE | R193: 170487 | V193: 2023-01-01 | W193: 2022-07-31 | X193: 2023-07-31 | Y193: Yes | AA193: 177695 | AB193: 177695-0 | AC193: Pending | AF193: 2022-07-18 | AG193: 2022-07-18 | AH193: 2022-07-18 | AI193: Yes | AJ193: Yes | AK193: Complete | AL193: 0 | AW193: 2022-08-17 | AY193: 1447214.06 | AZ193: -1447214.06 | BA193: 578885.6 | BB193: 144721.41 | BC193: 6 | BD193: 1447214.06 | BE193: 0 | BF193: Yes | BG193: No | BH193: 0 | BJ193: 780034 | BK193: 38091 | BL193: 629089 | BM193: 0 | BN193: 0 | BO193: 1447214 | BP193: 0.06000000006 | BQ193: Unable to locate grant in CLM, multiple Lutheran Community Services but none for Multnomah | BR193: 0.5389900872 | BS193: 0.02632022631 | BT193: 0.4346896865 | BU193: 0 | BV193: 0
E194: =_xlfn.CONCAT(H194,K194) -> No Wrong Door BHRN ProvidersNew Avenues for Youth | F194: Multnomah | G194: 51 | H194: No Wrong Door BHRN Providers | I194: 34 | J194: 177720 | K194: New Avenues for Youth | L194: New Avenues for Youth, Inc. | M194: 083 | N194: TRUE | O194: 2023-02-18 | P194: Valid | AA194: 177720 | AB194: 177720-0 | AC194: 2022-09-02 | AF194: 2022-07-12 | AG194: 2022-07-12 | AH194: 2022-07-18 | AI194: Yes | AJ194: Yes | AK194: Complete | AL194: 0 | AW194: 2022-08-11 | AY194: 1059239 | AZ194: -1059239 | BA194: 423695.6 | BB194: 105923.9 | BC194: 6 | BD194: 1059239 | BE194: 0 | BF194: Yes | BG194: No | BH194: 0 | BJ194: 549750 | BK194: 26000 | BL194: 192327.4 | BM194: 153000 | BN194: 138161.61 | BO194: 1059239.01 | BP194: -0.01000000001 | BR194: 0.5190046768 | BS194: 0.02454592378 | BT194: 0.1815712962 | BU194: 0.1444433207 | BV194: 0.1304347826
E195: No Wrong Door BHRN ProvidersOHSU, Addiction and Complex Pain | F195: Multnomah | G195: 51 | H195: No Wrong Door BHRN Providers | I195: 34 | J195: 177711 | K195: OHSU, Addiction and Complex Pain | M195: 091 | AA195: 177711 | AB195: 177711-0 | AC195: Pending | AF195: 2022-07-18 | AG195: 2022-07-18 | AH195: 2022-07-18 | AI195: Yes | AJ195: Yes | AK195: Complete | AL195: 0 | AW195: 2022-08-17 | AY195: 15028.2 | AZ195: -15028.2 | BA195: 6011.28 | BB195: 1502.82 | BC195: 6 | BD195: 15028.2 | BE195: 0 | BF195: Yes | BG195: No | BH195: 0 | BJ195: 2835 | BK195: 0 | BL195: 8550 | BM195: 0 | BN195: 3643.2 | BO195: 15028.2 | BP195: 0 | BQ195: OHSU Budgets are in opposite folders | BR195: 0.1886453467 | BS195: 0 | BT195: =IFERROR(BL195/$BO195,"") -> 0.5689304108 | BU195: =IFERROR(BM195/$BO195,"") -> 0 | BV195: =IFERROR(BN195/$BO195,"") -> 0.2424242424
E196: No Wrong Door BHRN ProvidersOHSU, Partnership Project | F196: Multnomah | G196: 51 | H196: No Wrong Door BHRN Providers | I196: 34 | J196: 177712 | K196: OHSU, Partnership Project | M196: 092 | AA196: 177712 | AB196: 177712-0 | AC196: Pending | AF196: 2022-07-18 | AG196: 2022-07-18 | AH196: 2022-07-18 | AI196: Yes | AJ196: Yes | AK196: Complete | AL196: 0 | AW196: 2022-08-17 | AY196: 56875 | AZ196: -56875 | BA196: 22750 | BB196: 5687.5 | BC196: 6 | BD196: 56875 | BE196: 0 | BF196: Yes | BG196: No | BH196: 0 | BJ196: 0 | BK196: 0 | BL196: 49875 | BM196: 7000 | BO196: 56875 | BP196: 0 | BQ196: OHSU Budgets are in opposite folders | BR196: =IFERROR(BJ196/$BO196,"") -> 0 | BS196: 0 | BT196: 0.8769230769 | BU196: 0.1230769231 | BV196: 0
E197: No Wrong Door BHRN ProvidersPortland Street Medicine | F197: Multnomah | G197: 51 | H197: No Wrong Door BHRN Providers | I197: 34 | J197: 177750 | K197: Portland Street Medicine | L197: Portland Street Medicine | M197: 106 | N197: TRUE | O197: 2023-01-03 | P197: Valid | AA197: 177750 | AB197: 177750-0 | AC197: Pending | AF197: 2022-07-18 | AG197: 2022-07-12 | AH197: 2022-07-18 | AI197: Yes | AJ197: Yes | AK197: Complete | AL197: 0 | AW197: 2022-08-11 | AY197: 563472.51 | AZ197: -563472.51 | BA197: 225389.01 | BB197: 56347.25 | BC197: 6 | BD197: 563472.51 | BE197: 0 | BF197: Yes | BG197: No | BH197: 0 | BJ197: 264368 | BK197: 16000 | BL197: 168698 | BM197: 73500 | BN197: 44907 | BO197: 567473 | BP197: -4000.49 | BR197: 0.4658688607 | BS197: 0.02819517404 | BT197: 0.2972793419 | BU197: 0.1295215808 | BV197: 0.07913504255
E198: No Wrong Door BHRN ProvidersProvidence Portland Medical Foundation | F198: Multnomah | G198: 51 | H198: No Wrong Door BHRN Providers | I198: 34 | J198: 177733 | K198: Providence Portland Medical Foundation | L198: Providence Portland Medical Foundation | M198: 111 | N198: TRUE | O198: 2023-01-19 | P198: Valid | V198: 2023-01-01 | W198: 2023-06-01 | X198: 2023-06-01 | Y198: Yes | AA198: 177733 | AB198: 177733-0 | AC198: Pending | AF198: 2022-07-18 | AG198: 2022-07-13 | AH198: 2022-07-18 | AI198: Yes | AJ198: Yes | AK198: Complete | AL198: 0 | AW198: 2022-08-12 | AY198: 4306032.37 | AZ198: -4306032.37 | BA198: 1722412.93 | BB198: 430603.24 | BC198: 6 | BD198: 4306032.37 | BE198: 0 | BF198: Yes | BG198: No | BH198: 0 | BJ198: 1250921 | BK198: 64000 | BL198: 27150 | BM198: 2682000 | BN198: 0 | BO198: 4024071 | BP198: 281961.37 | BR198: 0.3108595748 | BS198: 0.01590429195 | BT198: 0.006746898849 | BU198: 0.6664892344 | BV198: 0
E199: No Wrong Door BHRN ProvidersSE Works Inc | F199: Multnomah | G199: 51 | H199: No Wrong Door BHRN Providers | I199: 34 | J199: 177706 | K199: SE Works Inc | L199: SE Works Inc. | M199: 124 | N199: TRUE | O199: 2022-09-10 | P199: Valid | Q199: TRUE | R199: 170471 | V199: 2023-07-01 | W199: 2023-07-01 | Y199: No | Z199: No professional liability coverage | AA199: 177706 | AB199: 177706-0 | AC199: Pending | AF199: 2022-07-12 | AG199: 2022-07-13 | AH199: 2022-07-18 | AI199: Yes | AJ199: Yes | AK199: Complete | AL199: 0 | AW199: 2022-08-12 | AY199: 917806.84 | AZ199: -917806.84 | BA199: 152967.79 | BB199: 152967.81 | BC199: 5 | BD199: 917806.84 | BE199: 0 | BF199: Yes | BG199: No | BH199: 0 | BJ199: 442891.54 | BK199: 1000 | BL199: 369083.61 | BM199: 18400 | BN199: 86431.7 | BO199: 917806.85 | BP199: -0.01000000001 | BR199: 0.4825541888 | BS199: 0.001089553864 | BT199: 0.4021364735 | BU199: 0.0200477911 | BV199: 0.09417199272
E200: No Wrong Door BHRN ProvidersThe 4th Dimension Recovery Center | F200: Multnomah | G200: 51 | H200: No Wrong Door BHRN Providers | I200: 34 | J200: 177738 | K200: The 4th Dimension Recovery Center | L200: The 4th Dimension Recovery Center | M200: 131 | N200: TRUE | O200: 2023-01-14 | P200: Valid | Q200: TRUE | R200: 170896 | AA200: 177738 | AB200: 177738-0 | AC200: 2022-09-02 | AF200: 2022-07-12 | AG200: 2022-07-12 | AH200: 2022-07-18 | AI200: Yes | AJ200: Yes | AK200: Complete | AL200: 0 | AW200: 2022-08-11 | AY200: 2639337.16 | AZ200: -2639337.16 | BA200: 439889.51 | BB200: 439889.53 | BC200: 5 | BD200: 2639337.16 | BE200: 0 | BF200: Yes | BG200: No | BH200: 0 | BJ200: 784595.13 | BK200: 2000 | BL200: 1467069.06 | BM200: 20000 | BN200: 365672.96 | BO200: 2639337.15 | BP200: 0.01000000024 | BR200: 0.2972697634 | BS200: 0.0007577660171 | BT200: 0.5558475392 | BU200: 0.007577660171 | BV200: 0.1385472712
... 71 more rows

Sheet Certification
B2: Certification
C4: I attest that these are only M110 funds (check box)
C7: Phil
C8: PREPARED BY
C11: AUTHORIZED AGENT SIGNATURE
C12: Please type your signature in the box above
C15: DATE

Sheet Data Entry Import (hidden)
B3: Informational Data | G3: M110 Budget by Budget Category (%) | L3: M110 Budget by Budget Category | Q3: Certification Information
A4: Expense Category | B4: BHRN Name | C4: BHRN Partner Name | D4: Grant Agreement Number | E4: Contract Not-to-Exceed Amount | F4: Does Original Budget Require Revision? | G4: Personnel Costs (%) | H4: Program Staff Training Costs (%) | I4: Services and Supplies Costs (%) | J4: Capital Outlay Costs (%) | K4: Admin Costs (%) | L4: Personnel Costs ($) | M4: Program Staff Training Costs ($) | N4: Services and Supplies Costs ($) | O4: Capital Outlay Costs ($) | P4: Admin Costs ($) | Q4: Prepared by: | R4: Authorized Agent Signature: | S4: Date
A5: Data | B5: ='Budget Report'!D6 -> Yamhill_County | C5: ='Budget Report'!D7 -> 0 | D5: ='Budget Report'!D8 ->  | E5: ='Budget Report'!D9 -> 0 | F5: ='Budget Report'!D11 -> 0 | G5: ='Budget Report'!E28 -> 0 | H5: ='Budget Report'!E29 -> 0 | I5: ='Budget Report'!E30 -> 0 | J5: ='Budget Report'!E31 -> 0 | K5: ='Budget Report'!E32 -> 0 | L5: ='Budget Report'!F28 -> 0 | M5: ='Budget Report'!F29 -> 0 | N5: ='Budget Report'!F30 -> 0 | O5: ='Budget Report'!F31 -> 0 | P5: ='Budget Report'!F32 -> num | Q5: =Certification!C7 -> Phil | R5: =Certification!C10 -> 0 | S5: =Certification!C14 -> 00:00:00
A7: Errors | B7: Result
A8: Is the Report Dated After 12/1/2022?
A9: Is report signed (Y/N)?
A10: Is the box checked to attest that only M110 funds are used?
A11: Section B Completed
A12: Report Balanced?
A13: Contract Number Entered?
A14: Expenditure Report does not include all prior quarters? | B14: Check If all prior quarter(s) totals included
A15: Current Quarter Expenditures Reported? | B15: Review If Current Quarter Expenditures Reported
A18: Error Code Legend
A19: 1 | B19: Is the Report Dated After 12/31/2022?
A20: 1 | B20: Is report signed (Y/N)?
A21: 3 | B21: Section B Completed
A22: 4 | B22: Report Balanced?
A23: 5 | B23: Outdated Template Submitted?
A24: 6 | B24: Contract Number Entered?
A25: 7 | B25: Expenditure Report does not include all prior quarters?
A26: 8 | B26: Current Quarter Expenditures Reported?
